Workbook

Sheet Start
A1: Three-phase Power Flow Calculation Tool
A4: Feeder detailed | B4: 2 | C4: Feeder overall | D4: 5
A5: Transformer | G5: Voltage Borders | J5: Input data
A6: Power | B6: Primary Voltage | C6: Load | D6: Workload | E6: uk | F6: Pk | G6: Upper | H6: Lower | K6: Input data in grey coloured fields has to be adapted with respect to the regarded low voltage grid
A7: 1200 | B7: 20 | C7: 616.5187308 | D7: =C7/A7 -> 0.513765609 | E7: 0.06 | F7: 150 | G7: 0.1 | H7: 0.1 | K7: Input data in light blue coloured fields is prefilled using input data from grey fields, but can be adapted for more detailed analysis
A10: 1 | C10: Low voltage knots | D10: Feeder length | E10: Lines(Typ, Number parallel lines) | J10: 2 | L10: Low voltage knots | M10: Feeder length | N10: Lines(Typ, Number parallel lines) | S10: 3-5 | U10: Low voltage knots | V10: Feeder length | W10: Lines(Typ, Number parallel lines)
C11: 20 | D11: 500 | E11: N(A)YY 4x150 | G11: 1 | L11: 20 | M11: 500 | N11: N(A)YY 4x150 | P11: 1 | U11: 20 | V11: 500 | W11: N(A)YY 4x150 | Y11: 1
A12: Charging power of EV | C12: 3.7 | D12: 11 | E12: 22 | F12: Number households | G12: Peak Power [kVA] | H12: Concurrency | J12: Charging power of EV | L12: 3.7 | M12: 11 | N12: 22 | O12: Number households | P12: Peak Power [kVA] | Q12: Concurrency | S12: Charging power of EV | U12: 3.7 | V12: 11 | W12: 22 | X12: Number households | Y12: Peak Power [kVA] | Z12: Concurrency
A13: Number EV | C13: 3 | D13: 2 | E13: 1 | F13: 10 | G13: 30 | H13: =Concurrency!$D$9+(1-Concurrency!$D$9)*POWER(F13,-3/4) -> 0.2312691248 | J13: Number EV | L13: 3 | M13: 2 | N13: 1 | O13: 10 | P13: 30 | Q13: =Concurrency!$D$9+(1-Concurrency!$D$9)*POWER(O13,-3/4) -> 0.2312691248 | S13: Number EV | U13: 3 | V13: 2 | W13: 1 | X13: 10 | Y13: 30 | Z13: =Concurrency!$D$9+(1-Concurrency!$D$9)*POWER(X13,-3/4) -> 0.2312691248
A14: Concurrency | C14: =IF(C13>Concurrency!$J$8+1,Concurrency!$H$8+(1-Concurrency!$H$8)/(C13-Concurrency!$J$8)^Concurrency!$I$8,1) -> 1 | D14: =IF(D13>Concurrency!$J$12+1,Concurrency!$H$12+(1-Concurrency!$H$12)/(D13-Concurrency!$J$12)^Concurrency!$I$12,1) -> 1 | E14: =IF(E13>Concurrency!$J$16+1,Concurrency!$H$16+(1-Concurrency!$H$16)/(E13-Concurrency!$J$16)^Concurrency!$I$16,1) -> 1 | F14: Power per household | G14: =H13*G13 -> 6.938073745 | J14: Concurrency | L14: =IF(L13>Concurrency!$J$8+1,Concurrency!$H$8+(1-Concurrency!$H$8)/(L13-Concurrency!$J$8)^Concurrency!$I$8,1) -> 1 | M14: =IF(M13>Concurrency!$J$12+1,Concurrency!$H$12+(1-Concurrency!$H$12)/(M13-Concurrency!$J$12)^Concurrency!$I$12,1) -> 1 | N14: =IF(N13>Concurrency!$J$16+1,Concurrency!$H$16+(1-Concurrency!$H$16)/(N13-Concurrency!$J$16)^Concurrency!$I$16,1) -> 1 | O14: Power per household | P14: =Q13*P13 -> 6.938073745 | S14: Concurrency | U14: =IF(U13>Concurrency!$J$8+1,Concurrency!$H$8+(1-Concurrency!$H$8)/(U13-Concurrency!$J$8)^Concurrency!$I$8,1) -> 1 | V14: =IF(V13>Concurrency!$J$12+1,Concurrency!$H$12+(1-Concurrency!$H$12)/(V13-Concurrency!$J$12)^Concurrency!$I$12,1) -> 1 | W14: =IF(W13>Concurrency!$J$16+1,Concurrency!$H$16+(1-Concurrency!$H$16)/(W13-Concurrency!$J$16)^Concurrency!$I$16,1) -> 1 | X14: Power per household | Y14: =Z13*Y13 -> 6.938073745
A15: Power | J15: Power | S15: Power
A16: Households | C16: E-Mobility | E16: PV | G16: Additional | J16: Households | L16: E-Mobility | N16: PV | P16: Additional | S16: Households | U16: E-Mobility | W16: PV | Y16: Additional
A17: S | B17: cos(ϕ) | C17: S | D17: cos(ϕ) | E17: S | F17: cos(ϕ) | G17: S | H17: cos(ϕ) | J17: S | K17: cos(ϕ) | L17: S | M17: cos(ϕ) | N17: S | O17: cos(ϕ) | P17: S | Q17: cos(ϕ) | S17: S | T17: cos(ϕ) | U17: S | V17: cos(ϕ) | W17: S | X17: cos(ϕ) | Y17: S | Z17: cos(ϕ)
A18: =F13*G14 -> 69.38073745 | B18: 0.95 | C18: =C13*C14*C12+D12*D13*D14+E12*E13*E14 -> 55.1 | D18: 1 | E18: 0 | F18: 0.95 | G18: 0 | H18: 0.95 | J18: =O13*P14 -> 69.38073745 | K18: 0.95 | L18: =L13*L14*L12+M12*M13*M14+N12*N13*N14 -> 55.1 | M18: 1 | N18: 0 | O18: 0.95 | P18: 0 | Q18: 0.95 | S18: =X13*Y14 -> 69.38073745 | T18: 0.95 | U18: =U13*U14*U12+V12*V13*V14+W12*W13*W14 -> 55.1 | V18: 1 | W18: 0 | X18: 0.95 | Y18: 0 | Z18: 0.95
C19: Max ΔU | E19: Current | L19: Max ΔU | N19: Current | U19: Max ΔU | W19: Current
C20: -0.03201924511 | E20: =MAX($F$24,$F$35,$F$46,$F$57,$F$68,$F$79,$F$90,$F$101,$F$112,$F$123,$F$134,$F$145,$F$156,$F$167,$F$178,$F$189,$F$200,$F$211,$F$222,$F$233) -> 177.9736276 | L20: -0.03201924511 | N20: =MAX($O$24,$O$35,$O$46,$O$57,$O$68,$O$79,$O$90,$O$101,$O$112,$O$123,$O$134,$O$145,$O$156,$O$167,$O$178,$O$189,$O$200,$O$211,$O$222,$O$233) -> 177.9736276 | U20: -0.03201924511 | W20: 177.9736276
A22: Knoten | F22: Lines | J22: Knoten | O22: Lines
A23: Nr. | B23: S | C23: cos(ϕ) | D23: Max ΔU | E23: Unbalanced | F23: Max Current | G23: Length | H23: Linetype | J23: Nr. | K23: S | L23: cos(ϕ) | M23: Max ΔU | N23: Unbalanced | O23: Max Current | P23: Length | Q23: Linetype
A24: 1 | B24: 6.146780892 | C24: 0.9843502047 | D24: -0.007407434315 | E24: =IF(AND(B27=D27,C27=E27,F27=D27,G27=E27,B28=D28,C28=E28,F28=D28,G28=E28,B29=D29,C29=E29,F29=D29,G29=E29,B30=D30,C30=E30,F30=D30,G30=E30),"No","Yes") -> No | F24: 177.9736276 | G24: 25 | H24: N(A)YY 4x150 | J24: 1 | K24: 6.146780892 | L24: 0.9843502047 | M24: -0.007407434315 | N24: =IF(AND(K27=M27,L27=N27,O27=M27,P27=N27,K28=M28,L28=N28,O28=M28,P28=N28,K29=M29,L29=N29,O29=M29,P29=N29,K30=M30,L30=N30,O30=M30,P30=N30),"No","Yes") -> No | O24: 177.9736276 | P24: 25 | Q24: N(A)YY 4x150
B25: L1 | D25: L2 | F25: L3 | H25: N | K25: L1 | M25: L2 | O25: L3 | Q25: N
B26: S | C26: cos(ϕ) | D26: S | E26: cos(ϕ) | F26: S | G26: cos(ϕ) | K26: S | L26: cos(ϕ) | M26: S | N26: cos(ϕ) | O26: S | P26: cos(ϕ)
A27: Households | B27: 1.156345624 | C27: 0.95 | D27: 1.156345624 | E27: 0.95 | F27: 1.156345624 | G27: 0.95 | J27: Households | K27: 1.156345624 | L27: 0.95 | M27: 1.156345624 | N27: 0.95 | O27: 1.156345624 | P27: 0.95
A28: E-Mobility | B28: 0.9183333333 | C28: 1 | D28: 0.9183333333 | E28: 1 | F28: 0.9183333333 | G28: 1 | J28: E-Mobility | K28: 0.9183333333 | L28: 1 | M28: 0.9183333333 | N28: 1 | O28: 0.9183333333 | P28: 1
A29: PV | B29: 0 | C29: 0.95 | D29: 0 | E29: 0.95 | F29: 0 | G29: 0.95 | J29: PV | K29: 0 | L29: 0.95 | M29: 0 | N29: 0.95 | O29: 0 | P29: 0.95
A30: Additional | B30: 0 | C30: 0.95 | D30: 0 | E30: 0.95 | F30: 0 | G30: 0.95 | J30: Additional | K30: 0 | L30: 0.95 | M30: 0 | N30: 0.95 | O30: 0 | P30: 0.95
A31: Sum | B31: 0.9183333333 | C31: 1 | D31: 0.9183333333 | E31: 1 | F31: 0.9183333333 | G31: 1 | J31: Sum | K31: 0.9183333333 | L31: 1 | M31: 0.9183333333 | N31: 1 | O31: 0.9183333333 | P31: 1
A32: ΔU | B32: -0.007407434315 | D32: -0.007407434315 | F32: -0.007407434315 | J32: ΔU | K32: -0.007407434315 | M32: -0.007407434315 | O32: -0.007407434315
A33: I | B33: 177.9736276 | D33: 177.9736276 | F33: 177.9736276 | H33: 8.038873388e-14 | J33: I | K33: 177.9736276 | M33: 177.9736276 | O33: 177.9736276 | Q33: 7.553172887e-14
A35: 2 | B35: 6.146780892 | C35: 0.9843502047 | D35: -0.009875829813 | E35: =IF(AND(B38=D38,C38=E38,F38=D38,G38=E38,B39=D39,C39=E39,F39=D39,G39=E39,B40=D40,C40=E40,F40=D40,G40=E40,B41=D41,C41=E41,F41=D41,G41=E41),"No","Yes") -> No | F35: 169.0689561 | G35: 25 | H35: N(A)YY 4x150 | J35: 2 | K35: 6.146780892 | L35: 0.9843502047 | M35: -0.009875829813 | N35: =IF(AND(K38=M38,L38=N38,O38=M38,P38=N38,K39=M39,L39=N39,O39=M39,P39=N39,K40=M40,L40=N40,O40=M40,P40=N40,K41=M41,L41=N41,O41=M41,P41=N41),"No","Yes") -> No | O35: 169.0689561 | P35: 25 | Q35: N(A)YY 4x150
B36: L1 | D36: L2 | F36: L3 | H36: N | K36: L1 | M36: L2 | O36: L3 | Q36: N
B37: S | C37: cos(ϕ) | D37: S | E37: cos(ϕ) | F37: S | G37: cos(ϕ) | K37: S | L37: cos(ϕ) | M37: S | N37: cos(ϕ) | O37: S | P37: cos(ϕ)
A38: Households | B38: 1.156345624 | C38: 0.95 | D38: 1.156345624 | E38: 0.95 | F38: 1.156345624 | G38: 0.95 | J38: Households | K38: 1.156345624 | L38: 0.95 | M38: 1.156345624 | N38: 0.95 | O38: 1.156345624 | P38: 0.95
A39: E-Mobility | B39: 0.9183333333 | C39: 1 | D39: 0.9183333333 | E39: 1 | F39: 0.9183333333 | G39: 1 | J39: E-Mobility | K39: 0.9183333333 | L39: 1 | M39: 0.9183333333 | N39: 1 | O39: 0.9183333333 | P39: 1
A40: PV | B40: 0 | C40: 0.95 | D40: 0 | E40: 0.95 | F40: 0 | G40: 0.95 | J40: PV | K40: 0 | L40: 0.95 | M40: 0 | N40: 0.95 | O40: 0 | P40: 0.95
A41: Additional | B41: 0 | C41: 0.95 | D41: 0 | E41: 0.95 | F41: 0 | G41: 0.95 | J41: Additional | K41: 0 | L41: 0.95 | M41: 0 | N41: 0.95 | O41: 0 | P41: 0.95
A42: Sum | B42: 0.9183333333 | C42: 1 | D42: 0.9183333333 | E42: 1 | F42: 0.9183333333 | G42: 1 | J42: Sum | K42: 0.9183333333 | L42: 1 | M42: 0.9183333333 | N42: 1 | O42: 0.9183333333 | P42: 1
A43: ΔU | B43: -0.009875829813 | D43: -0.009875829813 | F43: -0.009875829813 | J43: ΔU | K43: -0.009875829813 | M43: -0.009875829813 | O43: -0.009875829813
A44: I | B44: 169.0689561 | D44: 169.0689561 | F44: 169.0689561 | H44: 8.293893593e-14 | J44: I | K44: 169.0689561 | M44: 169.0689561 | O44: 169.0689561 | Q44: 7.324106878e-14
A46: 3 | B46: 6.146780892 | C46: 0.9843502047 | D46: -0.0122128498 | E46: =IF(AND(B49=D49,C49=E49,F49=D49,G49=E49,B50=D50,C50=E50,F50=D50,G50=E50,B51=D51,C51=E51,F51=D51,G51=E51,B52=D52,C52=E52,F52=D52,G52=E52),"No","Yes") -> No | F46: 160.1653703 | G46: 25 | H46: N(A)YY 4x150 | J46: 3 | K46: 6.146780892 | L46: 0.9843502047 | M46: -0.0122128498 | N46: =IF(AND(K49=M49,L49=N49,O49=M49,P49=N49,K50=M50,L50=N50,O50=M50,P50=N50,K51=M51,L51=N51,O51=M51,P51=N51,K52=M52,L52=N52,O52=M52,P52=N52),"No","Yes") -> No | O46: 160.1653703 | P46: 25 | Q46: N(A)YY 4x150
B47: L1 | D47: L2 | F47: L3 | H47: N | K47: L1 | M47: L2 | O47: L3 | Q47: N
B48: S | C48: cos(ϕ) | D48: S | E48: cos(ϕ) | F48: S | G48: cos(ϕ) | K48: S | L48: cos(ϕ) | M48: S | N48: cos(ϕ) | O48: S | P48: cos(ϕ)
A49: Households | B49: 1.156345624 | C49: 0.95 | D49: 1.156345624 | E49: 0.95 | F49: 1.156345624 | G49: 0.95 | J49: Households | K49: 1.156345624 | L49: 0.95 | M49: 1.156345624 | N49: 0.95 | O49: 1.156345624 | P49: 0.95
A50: E-Mobility | B50: 0.9183333333 | C50: 1 | D50: 0.9183333333 | E50: 1 | F50: 0.9183333333 | G50: 1 | J50: E-Mobility | K50: 0.9183333333 | L50: 1 | M50: 0.9183333333 | N50: 1 | O50: 0.9183333333 | P50: 1
A51: PV | B51: 0 | C51: 0.95 | D51: 0 | E51: 0.95 | F51: 0 | G51: 0.95 | J51: PV | K51: 0 | L51: 0.95 | M51: 0 | N51: 0.95 | O51: 0 | P51: 0.95
A52: Additional | B52: 0 | C52: 0.95 | D52: 0 | E52: 0.95 | F52: 0 | G52: 0.95 | J52: Additional | K52: 0 | L52: 0.95 | M52: 0 | N52: 0.95 | O52: 0 | P52: 0.95
A53: Sum | B53: 0.9183333333 | C53: 1 | D53: 0.9183333333 | E53: 1 | F53: 0.9183333333 | G53: 1 | J53: Sum | K53: 0.9183333333 | L53: 1 | M53: 0.9183333333 | N53: 1 | O53: 0.9183333333 | P53: 1
A54: ΔU | B54: -0.0122128498 | D54: -0.0122128498 | F54: -0.0122128498 | J54: ΔU | K54: -0.0122128498 | M54: -0.0122128498 | O54: -0.0122128498
A55: I | B55: 160.1653703 | D55: 160.1653703 | F55: 160.1653703 | H55: 8.556067555e-14 | J55: I | K55: 160.1653703 | M55: 160.1653703 | O55: 160.1653703 | Q55: 7.553172887e-14
A57: 4 | B57: 6.146780892 | C57: 0.9843502047 | D57: -0.01441872517 | E57: =IF(AND(B60=D60,C60=E60,F60=D60,G60=E60,B61=D61,C61=E61,F61=D61,G61=E61,B62=D62,C62=E62,F62=D62,G62=E62,B63=D63,C63=E63,F63=D63,G63=E63),"No","Yes") -> No | F57: 151.2627702 | G57: 25 | H57: N(A)YY 4x150 | J57: 4 | K57: 6.146780892 | L57: 0.9843502047 | M57: -0.01441872517 | N57: =IF(AND(K60=M60,L60=N60,O60=M60,P60=N60,K61=M61,L61=N61,O61=M61,P61=N61,K62=M62,L62=N62,O62=M62,P62=N62,K63=M63,L63=N63,O63=M63,P63=N63),"No","Yes") -> No | O57: 151.2627702 | P57: 25 | Q57: N(A)YY 4x150
B58: L1 | D58: L2 | F58: L3 | H58: N | K58: L1 | M58: L2 | O58: L3 | Q58: N
B59: S | C59: cos(ϕ) | D59: S | E59: cos(ϕ) | F59: S | G59: cos(ϕ) | K59: S | L59: cos(ϕ) | M59: S | N59: cos(ϕ) | O59: S | P59: cos(ϕ)
A60: Households | B60: 1.156345624 | C60: 0.95 | D60: 1.156345624 | E60: 0.95 | F60: 1.156345624 | G60: 0.95 | J60: Households | K60: 1.156345624 | L60: 0.95 | M60: 1.156345624 | N60: 0.95 | O60: 1.156345624 | P60: 0.95
A61: E-Mobility | B61: 0.9183333333 | C61: 1 | D61: 0.9183333333 | E61: 1 | F61: 0.9183333333 | G61: 1 | J61: E-Mobility | K61: 0.9183333333 | L61: 1 | M61: 0.9183333333 | N61: 1 | O61: 0.9183333333 | P61: 1
A62: PV | B62: 0 | C62: 0.95 | D62: 0 | E62: 0.95 | F62: 0 | G62: 0.95 | J62: PV | K62: 0 | L62: 0.95 | M62: 0 | N62: 0.95 | O62: 0 | P62: 0.95
A63: Additional | B63: 0 | C63: 0.95 | D63: 0 | E63: 0.95 | F63: 0 | G63: 0.95 | J63: Additional | K63: 0 | L63: 0.95 | M63: 0 | N63: 0.95 | O63: 0 | P63: 0.95
A64: Sum | B64: 0.9183333333 | C64: 1 | D64: 0.9183333333 | E64: 1 | F64: 0.9183333333 | G64: 1 | J64: Sum | K64: 0.9183333333 | L64: 1 | M64: 0.9183333333 | N64: 1 | O64: 0.9183333333 | P64: 1
A65: ΔU | B65: -0.01441872517 | D65: -0.01441872517 | F65: -0.01441872517 | J65: ΔU | K65: -0.01441872517 | M65: -0.01441872517 | O65: -0.01441872517
A66: I | B66: 151.2627702 | D66: 151.2627702 | F66: 151.2627702 | H66: 9.099386826e-14 | J66: I | K66: 151.2627702 | M66: 151.2627702 | O66: 151.2627702 | Q66: 4.832213033e-14
A68: 5 | B68: 6.146780892 | C68: 0.9843502047 | D68: -0.0164936756 | E68: =IF(AND(B71=D71,C71=E71,F71=D71,G71=E71,B72=D72,C72=E72,F72=D72,G72=E72,B73=D73,C73=E73,F73=D73,G73=E73,B74=D74,C74=E74,F74=D74,G74=E74),"No","Yes") -> No | F68: 142.3610625 | G68: 25 | H68: N(A)YY 4x150 | J68: 5 | K68: 6.146780892 | L68: 0.9843502047 | M68: -0.0164936756 | N68: =IF(AND(K71=M71,L71=N71,O71=M71,P71=N71,K72=M72,L72=N72,O72=M72,P72=N72,K73=M73,L73=N73,O73=M73,P73=N73,K74=M74,L74=N74,O74=M74,P74=N74),"No","Yes") -> No | O68: 142.3610625 | P68: 25 | Q68: N(A)YY 4x150
B69: L1 | D69: L2 | F69: L3 | H69: N | K69: L1 | M69: L2 | O69: L3 | Q69: N
B70: S | C70: cos(ϕ) | D70: S | E70: cos(ϕ) | F70: S | G70: cos(ϕ) | K70: S | L70: cos(ϕ) | M70: S | N70: cos(ϕ) | O70: S | P70: cos(ϕ)
A71: Households | B71: 1.156345624 | C71: 0.95 | D71: 1.156345624 | E71: 0.95 | F71: 1.156345624 | G71: 0.95 | J71: Households | K71: 1.156345624 | L71: 0.95 | M71: 1.156345624 | N71: 0.95 | O71: 1.156345624 | P71: 0.95
A72: E-Mobility | B72: 0.9183333333 | C72: 1 | D72: 0.9183333333 | E72: 1 | F72: 0.9183333333 | G72: 1 | J72: E-Mobility | K72: 0.9183333333 | L72: 1 | M72: 0.9183333333 | N72: 1 | O72: 0.9183333333 | P72: 1
A73: PV | B73: 0 | C73: 0.95 | D73: 0 | E73: 0.95 | F73: 0 | G73: 0.95 | J73: PV | K73: 0 | L73: 0.95 | M73: 0 | N73: 0.95 | O73: 0 | P73: 0.95
A74: Additional | B74: 0 | C74: 0.95 | D74: 0 | E74: 0.95 | F74: 0 | G74: 0.95 | J74: Additional | K74: 0 | L74: 0.95 | M74: 0 | N74: 0.95 | O74: 0 | P74: 0.95
A75: Sum | B75: 0.9183333333 | C75: 1 | D75: 0.9183333333 | E75: 1 | F75: 0.9183333333 | G75: 1 | J75: Sum | K75: 0.9183333333 | L75: 1 | M75: 0.9183333333 | N75: 1 | O75: 0.9183333333 | P75: 1
A76: ΔU | B76: -0.0164936756 | D76: -0.0164936756 | F76: -0.0164936756 | J76: ΔU | K76: -0.0164936756 | M76: -0.0164936756 | O76: -0.0164936756
A77: I | B77: 142.3610625 | D77: 142.3610625 | F77: 142.3610625 | H77: 7.553172887e-14 | J77: I | K77: 142.3610625 | M77: 142.3610625 | O77: 142.3610625 | Q77: 4.549693413e-14
A79: 6 | B79: 6.146780892 | C79: 0.9843502047 | D79: -0.01843790923 | E79: =IF(AND(B82=D82,C82=E82,F82=D82,G82=E82,B83=D83,C83=E83,F83=D83,G83=E83,B84=D84,C84=E84,F84=D84,G84=E84,B85=D85,C85=E85,F85=D85,G85=E85),"No","Yes") -> No | F79: 133.4601606 | G79: 25 | H79: N(A)YY 4x150 | J79: 6 | K79: 6.146780892 | L79: 0.9843502047 | M79: -0.01843790923 | N79: =IF(AND(K82=M82,L82=N82,O82=M82,P82=N82,K83=M83,L83=N83,O83=M83,P83=N83,K84=M84,L84=N84,O84=M84,P84=N84,K85=M85,L85=N85,O85=M85,P85=N85),"No","Yes") -> No | O79: 133.4601606 | P79: 25 | Q79: N(A)YY 4x150
B80: L1 | D80: L2 | F80: L3 | H80: N | K80: L1 | M80: L2 | O80: L3 | Q80: N
B81: S | C81: cos(ϕ) | D81: S | E81: cos(ϕ) | F81: S | G81: cos(ϕ) | K81: S | L81: cos(ϕ) | M81: S | N81: cos(ϕ) | O81: S | P81: cos(ϕ)
A82: Households | B82: 1.156345624 | C82: 0.95 | D82: 1.156345624 | E82: 0.95 | F82: 1.156345624 | G82: 0.95 | J82: Households | K82: 1.156345624 | L82: 0.95 | M82: 1.156345624 | N82: 0.95 | O82: 1.156345624 | P82: 0.95
A83: E-Mobility | B83: 0.9183333333 | C83: 1 | D83: 0.9183333333 | E83: 1 | F83: 0.9183333333 | G83: 1 | J83: E-Mobility | K83: 0.9183333333 | L83: 1 | M83: 0.9183333333 | N83: 1 | O83: 0.9183333333 | P83: 1
A84: PV | B84: 0 | C84: 0.95 | D84: 0 | E84: 0.95 | F84: 0 | G84: 0.95 | J84: PV | K84: 0 | L84: 0.95 | M84: 0 | N84: 0.95 | O84: 0 | P84: 0.95
A85: Additional | B85: 0 | C85: 0.95 | D85: 0 | E85: 0.95 | F85: 0 | G85: 0.95 | J85: Additional | K85: 0 | L85: 0.95 | M85: 0 | N85: 0.95 | O85: 0 | P85: 0.95
A86: Sum | B86: 0.9183333333 | C86: 1 | D86: 0.9183333333 | E86: 1 | F86: 0.9183333333 | G86: 1 | J86: Sum | K86: 0.9183333333 | L86: 1 | M86: 0.9183333333 | N86: 1 | O86: 0.9183333333 | P86: 1
A87: ΔU | B87: -0.01843790923 | D87: -0.01843790923 | F87: -0.01843790923 | J87: ΔU | K87: -0.01843790923 | M87: -0.01843790923 | O87: -0.01843790923
A88: I | B88: 133.4601606 | D88: 133.4601606 | F88: 133.4601606 | H88: 4.832213033e-14 | J88: I | K88: 133.4601606 | M88: 133.4601606 | O88: 133.4601606 | Q88: 4.549693413e-14
A90: 7 | B90: 6.146780892 | C90: 0.9843502047 | D90: -0.02025162246 | E90: =IF(AND(B93=D93,C93=E93,F93=D93,G93=E93,B94=D94,C94=E94,F94=D94,G94=E94,B95=D95,C95=E95,F95=D95,G95=E95,B96=D96,C96=E96,F96=D96,G96=E96),"No","Yes") -> No | F90: 124.5599839 | G90: 25 | H90: N(A)YY 4x150 | J90: 7 | K90: 6.146780892 | L90: 0.9843502047 | M90: -0.02025162246 | N90: =IF(AND(K93=M93,L93=N93,O93=M93,P93=N93,K94=M94,L94=N94,O94=M94,P94=N94,K95=M95,L95=N95,O95=M95,P95=N95,K96=M96,L96=N96,O96=M96,P96=N96),"No","Yes") -> No | O90: 124.5599839 | P90: 25 | Q90: N(A)YY 4x150
B91: L1 | D91: L2 | F91: L3 | H91: N | K91: L1 | M91: L2 | O91: L3 | Q91: N
B92: S | C92: cos(ϕ) | D92: S | E92: cos(ϕ) | F92: S | G92: cos(ϕ) | K92: S | L92: cos(ϕ) | M92: S | N92: cos(ϕ) | O92: S | P92: cos(ϕ)
A93: Households | B93: 1.156345624 | C93: 0.95 | D93: 1.156345624 | E93: 0.95 | F93: 1.156345624 | G93: 0.95 | J93: Households | K93: 1.156345624 | L93: 0.95 | M93: 1.156345624 | N93: 0.95 | O93: 1.156345624 | P93: 0.95
A94: E-Mobility | B94: 0.9183333333 | C94: 1 | D94: 0.9183333333 | E94: 1 | F94: 0.9183333333 | G94: 1 | J94: E-Mobility | K94: 0.9183333333 | L94: 1 | M94: 0.9183333333 | N94: 1 | O94: 0.9183333333 | P94: 1
A95: PV | B95: 0 | C95: 0.95 | D95: 0 | E95: 0.95 | F95: 0 | G95: 0.95 | J95: PV | K95: 0 | L95: 0.95 | M95: 0 | N95: 0.95 | O95: 0 | P95: 0.95
A96: Additional | B96: 0 | C96: 0.95 | D96: 0 | E96: 0.95 | F96: 0 | G96: 0.95 | J96: Additional | K96: 0 | L96: 0.95 | M96: 0 | N96: 0.95 | O96: 0 | P96: 0.95
A97: Sum | B97: 0.9183333333 | C97: 1 | D97: 0.9183333333 | E97: 1 | F97: 0.9183333333 | G97: 1 | J97: Sum | K97: 0.9183333333 | L97: 1 | M97: 0.9183333333 | N97: 1 | O97: 0.9183333333 | P97: 1
A98: ΔU | B98: -0.02025162246 | D98: -0.02025162246 | F98: -0.02025162246 | J98: ΔU | K98: -0.02025162246 | M98: -0.02025162246 | O98: -0.02025162246
A99: I | B99: 124.5599839 | D99: 124.5599839 | F99: 124.5599839 | H99: 3.826389735e-14 | J99: I | K99: 124.5599839 | M99: 124.5599839 | O99: 124.5599839 | Q99: 6.029155041e-14
A101: 8 | B101: 6.146780892 | C101: 0.9843502047 | D101: -0.02193499972 | E101: =IF(AND(B104=D104,C104=E104,F104=D104,G104=E104,B105=D105,C105=E105,F105=D105,G105=E105,B106=D106,C106=E106,F106=D106,G106=E106,B107=D107,C107=E107,F107=D107,G107=E107),"No","Yes") -> No | F101: 115.6604576 | G101: 25 | H101: N(A)YY 4x150 | J101: 8 | K101: 6.146780892 | L101: 0.9843502047 | M101: -0.02193499972 | N101: =IF(AND(K104=M104,L104=N104,O104=M104,P104=N104,K105=M105,L105=N105,O105=M105,P105=N105,K106=M106,L106=N106,O106=M106,P106=N106,K107=M107,L107=N107,O107=M107,P107=N107),"No","Yes") -> No | O101: 115.6604576 | P101: 25 | Q101: N(A)YY 4x150
B102: L1 | D102: L2 | F102: L3 | H102: N | K102: L1 | M102: L2 | O102: L3 | Q102: N
B103: S | C103: cos(ϕ) | D103: S | E103: cos(ϕ) | F103: S | G103: cos(ϕ) | K103: S | L103: cos(ϕ) | M103: S | N103: cos(ϕ) | O103: S | P103: cos(ϕ)
A104: Households | B104: 1.156345624 | C104: 0.95 | D104: 1.156345624 | E104: 0.95 | F104: 1.156345624 | G104: 0.95 | J104: Households | K104: 1.156345624 | L104: 0.95 | M104: 1.156345624 | N104: 0.95 | O104: 1.156345624 | P104: 0.95
A105: E-Mobility | B105: 0.9183333333 | C105: 1 | D105: 0.9183333333 | E105: 1 | F105: 0.9183333333 | G105: 1 | J105: E-Mobility | K105: 0.9183333333 | L105: 1 | M105: 0.9183333333 | N105: 1 | O105: 0.9183333333 | P105: 1
A106: PV | B106: 0 | C106: 0.95 | D106: 0 | E106: 0.95 | F106: 0 | G106: 0.95 | J106: PV | K106: 0 | L106: 0.95 | M106: 0 | N106: 0.95 | O106: 0 | P106: 0.95
A107: Additional | B107: 0 | C107: 0.95 | D107: 0 | E107: 0.95 | F107: 0 | G107: 0.95 | J107: Additional | K107: 0 | L107: 0.95 | M107: 0 | N107: 0.95 | O107: 0 | P107: 0.95
A108: Sum | B108: 0.9183333333 | C108: 1 | D108: 0.9183333333 | E108: 1 | F108: 0.9183333333 | G108: 1 | J108: Sum | K108: 0.9183333333 | L108: 1 | M108: 0.9183333333 | N108: 1 | O108: 0.9183333333 | P108: 1
A109: ΔU | B109: -0.02193499972 | D109: -0.02193499972 | F109: -0.02193499972 | J109: ΔU | K109: -0.02193499972 | M109: -0.02193499972 | O109: -0.02193499972
A110: I | B110: 115.6604576 | D110: 115.6604576 | F110: 115.6604576 | H110: 4.832213033e-14 | J110: I | K110: 115.6604576 | M110: 115.6604576 | O110: 115.6604576 | Q110: 3.826389735e-14
A112: 9 | B112: 6.146780892 | C112: 0.9843502047 | D112: -0.02348821323 | E112: =IF(AND(B115=D115,C115=E115,F115=D115,G115=E115,B116=D116,C116=E116,F116=D116,G116=E116,B117=D117,C117=E117,F117=D117,G117=E117,B118=D118,C118=E118,F118=D118,G118=E118),"No","Yes") -> No | F112: 106.7615124 | G112: 25 | H112: N(A)YY 4x150 | J112: 9 | K112: 6.146780892 | L112: 0.9843502047 | M112: -0.02348821323 | N112: =IF(AND(K115=M115,L115=N115,O115=M115,P115=N115,K116=M116,L116=N116,O116=M116,P116=N116,K117=M117,L117=N117,O117=M117,P117=N117,K118=M118,L118=N118,O118=M118,P118=N118),"No","Yes") -> No | O112: 106.7615124 | P112: 25 | Q112: N(A)YY 4x150
B113: L1 | D113: L2 | F113: L3 | H113: N | K113: L1 | M113: L2 | O113: L3 | Q113: N
B114: S | C114: cos(ϕ) | D114: S | E114: cos(ϕ) | F114: S | G114: cos(ϕ) | K114: S | L114: cos(ϕ) | M114: S | N114: cos(ϕ) | O114: S | P114: cos(ϕ)
A115: Households | B115: 1.156345624 | C115: 0.95 | D115: 1.156345624 | E115: 0.95 | F115: 1.156345624 | G115: 0.95 | J115: Households | K115: 1.156345624 | L115: 0.95 | M115: 1.156345624 | N115: 0.95 | O115: 1.156345624 | P115: 0.95
A116: E-Mobility | B116: 0.9183333333 | C116: 1 | D116: 0.9183333333 | E116: 1 | F116: 0.9183333333 | G116: 1 | J116: E-Mobility | K116: 0.9183333333 | L116: 1 | M116: 0.9183333333 | N116: 1 | O116: 0.9183333333 | P116: 1
A117: PV | B117: 0 | C117: 0.95 | D117: 0 | E117: 0.95 | F117: 0 | G117: 0.95 | J117: PV | K117: 0 | L117: 0.95 | M117: 0 | N117: 0.95 | O117: 0 | P117: 0.95
A118: Additional | B118: 0 | C118: 0.95 | D118: 0 | E118: 0.95 | F118: 0 | G118: 0.95 | J118: Additional | K118: 0 | L118: 0.95 | M118: 0 | N118: 0.95 | O118: 0 | P118: 0.95
A119: Sum | B119: 0.9183333333 | C119: 1 | D119: 0.9183333333 | E119: 1 | F119: 0.9183333333 | G119: 1 | J119: Sum | K119: 0.9183333333 | L119: 1 | M119: 0.9183333333 | N119: 1 | O119: 0.9183333333 | P119: 1
A120: ΔU | B120: -0.02348821323 | D120: -0.02348821323 | F120: -0.02348821323 | J120: ΔU | K120: -0.02348821323 | M120: -0.02348821323 | O120: -0.02348821323
A121: I | B121: 106.7615124 | D121: 106.7615124 | F121: 106.7615124 | H121: 3.826389735e-14 | J121: I | K121: 106.7615124 | M121: 106.7615124 | O121: 106.7615124 | Q121: 4.49386684e-14
A123: 10 | B123: 6.146780892 | C123: 0.9843502047 | D123: -0.0249114228 | E123: =IF(AND(B126=D126,C126=E126,F126=D126,G126=E126,B127=D127,C127=E127,F127=D127,G127=E127,B128=D128,C128=E128,F128=D128,G128=E128,B129=D129,C129=E129,F129=D129,G129=E129),"No","Yes") -> No | F123: 97.86308389 | G123: 25 | H123: N(A)YY 4x150 | J123: 10 | K123: 6.146780892 | L123: 0.9843502047 | M123: -0.0249114228 | N123: =IF(AND(K126=M126,L126=N126,O126=M126,P126=N126,K127=M127,L127=N127,O127=M127,P127=N127,K128=M128,L128=N128,O128=M128,P128=N128,K129=M129,L129=N129,O129=M129,P129=N129),"No","Yes") -> No | O123: 97.86308389 | P123: 25 | Q123: N(A)YY 4x150
B124: L1 | D124: L2 | F124: L3 | H124: N | K124: L1 | M124: L2 | O124: L3 | Q124: N
B125: S | C125: cos(ϕ) | D125: S | E125: cos(ϕ) | F125: S | G125: cos(ϕ) | K125: S | L125: cos(ϕ) | M125: S | N125: cos(ϕ) | O125: S | P125: cos(ϕ)
A126: Households | B126: 1.156345624 | C126: 0.95 | D126: 1.156345624 | E126: 0.95 | F126: 1.156345624 | G126: 0.95 | J126: Households | K126: 1.156345624 | L126: 0.95 | M126: 1.156345624 | N126: 0.95 | O126: 1.156345624 | P126: 0.95
A127: E-Mobility | B127: 0.9183333333 | C127: 1 | D127: 0.9183333333 | E127: 1 | F127: 0.9183333333 | G127: 1 | J127: E-Mobility | K127: 0.9183333333 | L127: 1 | M127: 0.9183333333 | N127: 1 | O127: 0.9183333333 | P127: 1
A128: PV | B128: 0 | C128: 0.95 | D128: 0 | E128: 0.95 | F128: 0 | G128: 0.95 | J128: PV | K128: 0 | L128: 0.95 | M128: 0 | N128: 0.95 | O128: 0 | P128: 0.95
A129: Additional | B129: 0 | C129: 0.95 | D129: 0 | E129: 0.95 | F129: 0 | G129: 0.95 | J129: Additional | K129: 0 | L129: 0.95 | M129: 0 | N129: 0.95 | O129: 0 | P129: 0.95
A130: Sum | B130: 0.9183333333 | C130: 1 | D130: 0.9183333333 | E130: 1 | F130: 0.9183333333 | G130: 1 | J130: Sum | K130: 0.9183333333 | L130: 1 | M130: 0.9183333333 | N130: 1 | O130: 0.9183333333 | P130: 1
A131: ΔU | B131: -0.0249114228 | D131: -0.0249114228 | F131: -0.0249114228 | J131: ΔU | K131: -0.0249114228 | M131: -0.0249114228 | O131: -0.0249114228
A132: I | B132: 97.86308389 | D132: 97.86308389 | F132: 97.86308389 | H132: 4.019436694e-14 | J132: I | K132: 97.86308389 | M132: 97.86308389 | O132: 97.86308389 | Q132: 5.123796534e-14
A134: 11 | B134: 6.146780892 | C134: 0.9843502047 | D134: -0.02620477568 | E134: =IF(AND(B137=D137,C137=E137,F137=D137,G137=E137,B138=D138,C138=E138,F138=D138,G138=E138,B139=D139,C139=E139,F139=D139,G139=E139,B140=D140,C140=E140,F140=D140,G140=E140),"No","Yes") -> No | F134: 88.96511249 | G134: 25 | H134: N(A)YY 4x150 | J134: 11 | K134: 6.146780892 | L134: 0.9843502047 | M134: -0.02620477568 | N134: =IF(AND(K137=M137,L137=N137,O137=M137,P137=N137,K138=M138,L138=N138,O138=M138,P138=N138,K139=M139,L139=N139,O139=M139,P139=N139,K140=M140,L140=N140,O140=M140,P140=N140),"No","Yes") -> No | O134: 88.96511249 | P134: 25 | Q134: N(A)YY 4x150
B135: L1 | D135: L2 | F135: L3 | H135: N | K135: L1 | M135: L2 | O135: L3 | Q135: N
B136: S | C136: cos(ϕ) | D136: S | E136: cos(ϕ) | F136: S | G136: cos(ϕ) | K136: S | L136: cos(ϕ) | M136: S | N136: cos(ϕ) | O136: S | P136: cos(ϕ)
A137: Households | B137: 1.156345624 | C137: 0.95 | D137: 1.156345624 | E137: 0.95 | F137: 1.156345624 | G137: 0.95 | J137: Households | K137: 1.156345624 | L137: 0.95 | M137: 1.156345624 | N137: 0.95 | O137: 1.156345624 | P137: 0.95
A138: E-Mobility | B138: 0.9183333333 | C138: 1 | D138: 0.9183333333 | E138: 1 | F138: 0.9183333333 | G138: 1 | J138: E-Mobility | K138: 0.9183333333 | L138: 1 | M138: 0.9183333333 | N138: 1 | O138: 0.9183333333 | P138: 1
A139: PV | B139: 0 | C139: 0.95 | D139: 0 | E139: 0.95 | F139: 0 | G139: 0.95 | J139: PV | K139: 0 | L139: 0.95 | M139: 0 | N139: 0.95 | O139: 0 | P139: 0.95
A140: Additional | B140: 0 | C140: 0.95 | D140: 0 | E140: 0.95 | F140: 0 | G140: 0.95 | J140: Additional | K140: 0 | L140: 0.95 | M140: 0 | N140: 0.95 | O140: 0 | P140: 0.95
A141: Sum | B141: 0.9183333333 | C141: 1 | D141: 0.9183333333 | E141: 1 | F141: 0.9183333333 | G141: 1 | J141: Sum | K141: 0.9183333333 | L141: 1 | M141: 0.9183333333 | N141: 1 | O141: 0.9183333333 | P141: 1
A142: ΔU | B142: -0.02620477568 | D142: -0.02620477568 | F142: -0.02620477568 | J142: ΔU | K142: -0.02620477568 | M142: -0.02620477568 | O142: -0.02620477568
A143: I | B143: 88.96511249 | D143: 88.96511249 | F143: 88.96511249 | H143: 6.355287432e-14 | J143: I | K143: 88.96511249 | M143: 88.96511249 | O143: 88.96511249 | Q143: 3.895854697e-14
A145: 12 | B145: 6.146780892 | C145: 0.9843502047 | D145: -0.02736840628 | E145: =IF(AND(B148=D148,C148=E148,F148=D148,G148=E148,B149=D149,C149=E149,F149=D149,G149=E149,B150=D150,C150=E150,F150=D150,G150=E150,B151=D151,C151=E151,F151=D151,G151=E151),"No","Yes") -> No | F145: 80.06754286 | G145: 25 | H145: N(A)YY 4x150 | J145: 12 | K145: 6.146780892 | L145: 0.9843502047 | M145: -0.02736840628 | N145: =IF(AND(K148=M148,L148=N148,O148=M148,P148=N148,K149=M149,L149=N149,O149=M149,P149=N149,K150=M150,L150=N150,O150=M150,P150=N150,K151=M151,L151=N151,O151=M151,P151=N151),"No","Yes") -> No | O145: 80.06754286 | P145: 25 | Q145: N(A)YY 4x150
B146: L1 | D146: L2 | F146: L3 | H146: N | K146: L1 | M146: L2 | O146: L3 | Q146: N
B147: S | C147: cos(ϕ) | D147: S | E147: cos(ϕ) | F147: S | G147: cos(ϕ) | K147: S | L147: cos(ϕ) | M147: S | N147: cos(ϕ) | O147: S | P147: cos(ϕ)
A148: Households | B148: 1.156345624 | C148: 0.95 | D148: 1.156345624 | E148: 0.95 | F148: 1.156345624 | G148: 0.95 | J148: Households | K148: 1.156345624 | L148: 0.95 | M148: 1.156345624 | N148: 0.95 | O148: 1.156345624 | P148: 0.95
A149: E-Mobility | B149: 0.9183333333 | C149: 1 | D149: 0.9183333333 | E149: 1 | F149: 0.9183333333 | G149: 1 | J149: E-Mobility | K149: 0.9183333333 | L149: 1 | M149: 0.9183333333 | N149: 1 | O149: 0.9183333333 | P149: 1
A150: PV | B150: 0 | C150: 0.95 | D150: 0 | E150: 0.95 | F150: 0 | G150: 0.95 | J150: PV | K150: 0 | L150: 0.95 | M150: 0 | N150: 0.95 | O150: 0 | P150: 0.95
A151: Additional | B151: 0 | C151: 0.95 | D151: 0 | E151: 0.95 | F151: 0 | G151: 0.95 | J151: Additional | K151: 0 | L151: 0.95 | M151: 0 | N151: 0.95 | O151: 0 | P151: 0.95
A152: Sum | B152: 0.9183333333 | C152: 1 | D152: 0.9183333333 | E152: 1 | F152: 0.9183333333 | G152: 1 | J152: Sum | K152: 0.9183333333 | L152: 1 | M152: 0.9183333333 | N152: 1 | O152: 0.9183333333 | P152: 1
A153: ΔU | B153: -0.02736840628 | D153: -0.02736840628 | F153: -0.02736840628 | J153: ΔU | K153: -0.02736840628 | M153: -0.02736840628 | O153: -0.02736840628
A154: I | B154: 80.06754286 | D154: 80.06754286 | F154: 80.06754286 | H154: 3.552713679e-14 | J154: I | K154: 80.06754286 | M154: 80.06754286 | O154: 80.06754286 | Q154: 4.146946797e-14
A156: 13 | B156: 6.146780892 | C156: 0.9843502047 | D156: -0.02840243611 | E156: =IF(AND(B159=D159,C159=E159,F159=D159,G159=E159,B160=D160,C160=E160,F160=D160,G160=E160,B161=D161,C161=E161,F161=D161,G161=E161,B162=D162,C162=E162,F162=D162,G162=E162),"No","Yes") -> No | F156: 71.17032358 | G156: 25 | H156: N(A)YY 4x150 | J156: 13 | K156: 6.146780892 | L156: 0.9843502047 | M156: -0.02840243611 | N156: =IF(AND(K159=M159,L159=N159,O159=M159,P159=N159,K160=M160,L160=N160,O160=M160,P160=N160,K161=M161,L161=N161,O161=M161,P161=N161,K162=M162,L162=N162,O162=M162,P162=N162),"No","Yes") -> No | O156: 71.17032358 | P156: 25 | Q156: N(A)YY 4x150
B157: L1 | D157: L2 | F157: L3 | H157: N | K157: L1 | M157: L2 | O157: L3 | Q157: N
B158: S | C158: cos(ϕ) | D158: S | E158: cos(ϕ) | F158: S | G158: cos(ϕ) | K158: S | L158: cos(ϕ) | M158: S | N158: cos(ϕ) | O158: S | P158: cos(ϕ)
A159: Households | B159: 1.156345624 | C159: 0.95 | D159: 1.156345624 | E159: 0.95 | F159: 1.156345624 | G159: 0.95 | J159: Households | K159: 1.156345624 | L159: 0.95 | M159: 1.156345624 | N159: 0.95 | O159: 1.156345624 | P159: 0.95
A160: E-Mobility | B160: 0.9183333333 | C160: 1 | D160: 0.9183333333 | E160: 1 | F160: 0.9183333333 | G160: 1 | J160: E-Mobility | K160: 0.9183333333 | L160: 1 | M160: 0.9183333333 | N160: 1 | O160: 0.9183333333 | P160: 1
A161: PV | B161: 0 | C161: 0.95 | D161: 0 | E161: 0.95 | F161: 0 | G161: 0.95 | J161: PV | K161: 0 | L161: 0.95 | M161: 0 | N161: 0.95 | O161: 0 | P161: 0.95
A162: Additional | B162: 0 | C162: 0.95 | D162: 0 | E162: 0.95 | F162: 0 | G162: 0.95 | J162: Additional | K162: 0 | L162: 0.95 | M162: 0 | N162: 0.95 | O162: 0 | P162: 0.95
A163: Sum | B163: 0.9183333333 | C163: 1 | D163: 0.9183333333 | E163: 1 | F163: 0.9183333333 | G163: 1 | J163: Sum | K163: 0.9183333333 | L163: 1 | M163: 0.9183333333 | N163: 1 | O163: 0.9183333333 | P163: 1
A164: ΔU | B164: -0.02840243611 | D164: -0.02840243611 | F164: -0.02840243611 | J164: ΔU | K164: -0.02840243611 | M164: -0.02840243611 | O164: -0.02840243611
A165: I | B165: 71.17032358 | D165: 71.17032358 | F165: 71.17032358 | H165: 4.146946797e-14 | J165: I | K165: 71.17032358 | M165: 71.17032358 | O165: 71.17032358 | Q165: 3.019806627e-14
A167: 14 | B167: 6.146780892 | C167: 0.9843502047 | D167: -0.02930697354 | E167: =IF(AND(B170=D170,C170=E170,F170=D170,G170=E170,B171=D171,C171=E171,F171=D171,G171=E171,B172=D172,C172=E172,F172=D172,G172=E172,B173=D173,C173=E173,F173=D173,G173=E173),"No","Yes") -> No | F167: 62.27340679 | G167: 25 | H167: N(A)YY 4x150 | J167: 14 | K167: 6.146780892 | L167: 0.9843502047 | M167: -0.02930697354 | N167: =IF(AND(K170=M170,L170=N170,O170=M170,P170=N170,K171=M171,L171=N171,O171=M171,P171=N171,K172=M172,L172=N172,O172=M172,P172=N172,K173=M173,L173=N173,O173=M173,P173=N173),"No","Yes") -> No | O167: 62.27340679 | P167: 25 | Q167: N(A)YY 4x150
B168: L1 | D168: L2 | F168: L3 | H168: N | K168: L1 | M168: L2 | O168: L3 | Q168: N
B169: S | C169: cos(ϕ) | D169: S | E169: cos(ϕ) | F169: S | G169: cos(ϕ) | K169: S | L169: cos(ϕ) | M169: S | N169: cos(ϕ) | O169: S | P169: cos(ϕ)
A170: Households | B170: 1.156345624 | C170: 0.95 | D170: 1.156345624 | E170: 0.95 | F170: 1.156345624 | G170: 0.95 | J170: Households | K170: 1.156345624 | L170: 0.95 | M170: 1.156345624 | N170: 0.95 | O170: 1.156345624 | P170: 0.95
A171: E-Mobility | B171: 0.9183333333 | C171: 1 | D171: 0.9183333333 | E171: 1 | F171: 0.9183333333 | G171: 1 | J171: E-Mobility | K171: 0.9183333333 | L171: 1 | M171: 0.9183333333 | N171: 1 | O171: 0.9183333333 | P171: 1
A172: PV | B172: 0 | C172: 0.95 | D172: 0 | E172: 0.95 | F172: 0 | G172: 0.95 | J172: PV | K172: 0 | L172: 0.95 | M172: 0 | N172: 0.95 | O172: 0 | P172: 0.95
A173: Additional | B173: 0 | C173: 0.95 | D173: 0 | E173: 0.95 | F173: 0 | G173: 0.95 | J173: Additional | K173: 0 | L173: 0.95 | M173: 0 | N173: 0.95 | O173: 0 | P173: 0.95
A174: Sum | B174: 0.9183333333 | C174: 1 | D174: 0.9183333333 | E174: 1 | F174: 0.9183333333 | G174: 1 | J174: Sum | K174: 0.9183333333 | L174: 1 | M174: 0.9183333333 | N174: 1 | O174: 0.9183333333 | P174: 1
A175: ΔU | B175: -0.02930697354 | D175: -0.02930697354 | F175: -0.02930697354 | J175: ΔU | K175: -0.02930697354 | M175: -0.02930697354 | O175: -0.02930697354
A176: I | B176: 62.27340679 | D176: 62.27340679 | F176: 62.27340679 | H176: 2.586414599e-14 | J176: I | K176: 62.27340679 | M176: 62.27340679 | O176: 62.27340679 | Q176: 1.888293222e-14
A178: 15 | B178: 6.146780892 | C178: 0.9843502047 | D178: -0.03008211371 | E178: =IF(AND(B181=D181,C181=E181,F181=D181,G181=E181,B182=D182,C182=E182,F182=D182,G182=E182,B183=D183,C183=E183,F183=D183,G183=E183,B184=D184,C184=E184,F184=D184,G184=E184),"No","Yes") -> No | F178: 53.37674774 | G178: 25 | H178: N(A)YY 4x150 | J178: 15 | K178: 6.146780892 | L178: 0.9843502047 | M178: -0.03008211371 | N178: =IF(AND(K181=M181,L181=N181,O181=M181,P181=N181,K182=M182,L182=N182,O182=M182,P182=N182,K183=M183,L183=N183,O183=M183,P183=N183,K184=M184,L184=N184,O184=M184,P184=N184),"No","Yes") -> No | O178: 53.37674774 | P178: 25 | Q178: N(A)YY 4x150
B179: L1 | D179: L2 | F179: L3 | H179: N | K179: L1 | M179: L2 | O179: L3 | Q179: N
B180: S | C180: cos(ϕ) | D180: S | E180: cos(ϕ) | F180: S | G180: cos(ϕ) | K180: S | L180: cos(ϕ) | M180: S | N180: cos(ϕ) | O180: S | P180: cos(ϕ)
A181: Households | B181: 1.156345624 | C181: 0.95 | D181: 1.156345624 | E181: 0.95 | F181: 1.156345624 | G181: 0.95 | J181: Households | K181: 1.156345624 | L181: 0.95 | M181: 1.156345624 | N181: 0.95 | O181: 1.156345624 | P181: 0.95
A182: E-Mobility | B182: 0.9183333333 | C182: 1 | D182: 0.9183333333 | E182: 1 | F182: 0.9183333333 | G182: 1 | J182: E-Mobility | K182: 0.9183333333 | L182: 1 | M182: 0.9183333333 | N182: 1 | O182: 0.9183333333 | P182: 1
A183: PV | B183: 0 | C183: 0.95 | D183: 0 | E183: 0.95 | F183: 0 | G183: 0.95 | J183: PV | K183: 0 | L183: 0.95 | M183: 0 | N183: 0.95 | O183: 0 | P183: 0.95
A184: Additional | B184: 0 | C184: 0.95 | D184: 0 | E184: 0.95 | F184: 0 | G184: 0.95 | J184: Additional | K184: 0 | L184: 0.95 | M184: 0 | N184: 0.95 | O184: 0 | P184: 0.95
A185: Sum | B185: 0.9183333333 | C185: 1 | D185: 0.9183333333 | E185: 1 | F185: 0.9183333333 | G185: 1 | J185: Sum | K185: 0.9183333333 | L185: 1 | M185: 0.9183333333 | N185: 1 | O185: 0.9183333333 | P185: 1
A186: ΔU | B186: -0.03008211371 | D186: -0.03008211371 | F186: -0.03008211371 | J186: ΔU | K186: -0.03008211371 | M186: -0.03008211371 | O186: -0.03008211371
A187: I | B187: 53.37674774 | D187: 53.37674774 | F187: 53.37674774 | H187: 1.913194867e-14 | J187: I | K187: 53.37674774 | M187: 53.37674774 | O187: 53.37674774 | Q187: 2.24693342e-14
A189: 16 | B189: 6.146780892 | C189: 0.9843502047 | D189: -0.03072793842 | E189: =IF(AND(B192=D192,C192=E192,F192=D192,G192=E192,B193=D193,C193=E193,F193=D193,G193=E193,B194=D194,C194=E194,F194=D194,G194=E194,B195=D195,C195=E195,F195=D195,G195=E195),"No","Yes") -> No | F189: 44.48030447 | G189: 25 | H189: N(A)YY 4x150 | J189: 16 | K189: 6.146780892 | L189: 0.9843502047 | M189: -0.03072793842 | N189: =IF(AND(K192=M192,L192=N192,O192=M192,P192=N192,K193=M193,L193=N193,O193=M193,P193=N193,K194=M194,L194=N194,O194=M194,P194=N194,K195=M195,L195=N195,O195=M195,P195=N195),"No","Yes") -> No | O189: 44.48030447 | P189: 25 | Q189: N(A)YY 4x150
B190: L1 | D190: L2 | F190: L3 | H190: N | K190: L1 | M190: L2 | O190: L3 | Q190: N
B191: S | C191: cos(ϕ) | D191: S | E191: cos(ϕ) | F191: S | G191: cos(ϕ) | K191: S | L191: cos(ϕ) | M191: S | N191: cos(ϕ) | O191: S | P191: cos(ϕ)
A192: Households | B192: 1.156345624 | C192: 0.95 | D192: 1.156345624 | E192: 0.95 | F192: 1.156345624 | G192: 0.95 | J192: Households | K192: 1.156345624 | L192: 0.95 | M192: 1.156345624 | N192: 0.95 | O192: 1.156345624 | P192: 0.95
A193: E-Mobility | B193: 0.9183333333 | C193: 1 | D193: 0.9183333333 | E193: 1 | F193: 0.9183333333 | G193: 1 | J193: E-Mobility | K193: 0.9183333333 | L193: 1 | M193: 0.9183333333 | N193: 1 | O193: 0.9183333333 | P193: 1
A194: PV | B194: 0 | C194: 0.95 | D194: 0 | E194: 0.95 | F194: 0 | G194: 0.95 | J194: PV | K194: 0 | L194: 0.95 | M194: 0 | N194: 0.95 | O194: 0 | P194: 0.95
A195: Additional | B195: 0 | C195: 0.95 | D195: 0 | E195: 0.95 | F195: 0 | G195: 0.95 | J195: Additional | K195: 0 | L195: 0.95 | M195: 0 | N195: 0.95 | O195: 0 | P195: 0.95
A196: Sum | B196: 0.9183333333 | C196: 1 | D196: 0.9183333333 | E196: 1 | F196: 0.9183333333 | G196: 1 | J196: Sum | K196: 0.9183333333 | L196: 1 | M196: 0.9183333333 | N196: 1 | O196: 0.9183333333 | P196: 1
A197: ΔU | B197: -0.03072793842 | D197: -0.03072793842 | F197: -0.03072793842 | J197: ΔU | K197: -0.03072793842 | M197: -0.03072793842 | O197: -0.03072793842
A198: I | B198: 44.48030447 | D198: 44.48030447 | F198: 44.48030447 | H198: 2.488485103e-14 | J198: I | K198: 44.48030447 | M198: 44.48030447 | O198: 44.48030447 | Q198: 1.551136925e-14
A200: 17 | B200: 6.146780892 | C200: 0.9843502047 | D200: -0.03124451598 | E200: =IF(AND(B203=D203,C203=E203,F203=D203,G203=E203,B204=D204,C204=E204,F204=D204,G204=E204,B205=D205,C205=E205,F205=D205,G205=E205,B206=D206,C206=E206,F206=D206,G206=E206),"No","Yes") -> No | F200: 35.58403738 | G200: 25 | H200: N(A)YY 4x150 | J200: 17 | K200: 6.146780892 | L200: 0.9843502047 | M200: -0.03124451598 | N200: =IF(AND(K203=M203,L203=N203,O203=M203,P203=N203,K204=M204,L204=N204,O204=M204,P204=N204,K205=M205,L205=N205,O205=M205,P205=N205,K206=M206,L206=N206,O206=M206,P206=N206),"No","Yes") -> No | O200: 35.58403738 | P200: 25 | Q200: N(A)YY 4x150
B201: L1 | D201: L2 | F201: L3 | H201: N | K201: L1 | M201: L2 | O201: L3 | Q201: N
B202: S | C202: cos(ϕ) | D202: S | E202: cos(ϕ) | F202: S | G202: cos(ϕ) | K202: S | L202: cos(ϕ) | M202: S | N202: cos(ϕ) | O202: S | P202: cos(ϕ)
A203: Households | B203: 1.156345624 | C203: 0.95 | D203: 1.156345624 | E203: 0.95 | F203: 1.156345624 | G203: 0.95 | J203: Households | K203: 1.156345624 | L203: 0.95 | M203: 1.156345624 | N203: 0.95 | O203: 1.156345624 | P203: 0.95
A204: E-Mobility | B204: 0.9183333333 | C204: 1 | D204: 0.9183333333 | E204: 1 | F204: 0.9183333333 | G204: 1 | J204: E-Mobility | K204: 0.9183333333 | L204: 1 | M204: 0.9183333333 | N204: 1 | O204: 0.9183333333 | P204: 1
A205: PV | B205: 0 | C205: 0.95 | D205: 0 | E205: 0.95 | F205: 0 | G205: 0.95 | J205: PV | K205: 0 | L205: 0.95 | M205: 0 | N205: 0.95 | O205: 0 | P205: 0.95
A206: Additional | B206: 0 | C206: 0.95 | D206: 0 | E206: 0.95 | F206: 0 | G206: 0.95 | J206: Additional | K206: 0 | L206: 0.95 | M206: 0 | N206: 0.95 | O206: 0 | P206: 0.95
A207: Sum | B207: 0.9183333333 | C207: 1 | D207: 0.9183333333 | E207: 1 | F207: 0.9183333333 | G207: 1 | J207: Sum | K207: 0.9183333333 | L207: 1 | M207: 0.9183333333 | N207: 1 | O207: 0.9183333333 | P207: 1
A208: ΔU | B208: -0.03124451598 | D208: -0.03124451598 | F208: -0.03124451598 | J208: ΔU | K208: -0.03124451598 | M208: -0.03124451598 | O208: -0.03124451598
A209: I | B209: 35.58403738 | D209: 35.58403738 | F209: 35.58403738 | H209: 1.509903313e-14 | J209: I | K209: 35.58403738 | M209: 35.58403738 | O209: 35.58403738 | Q209: 1.668735748e-14
A211: 18 | B211: 6.146780892 | C211: 0.9843502047 | D211: -0.03163190114 | E211: =IF(AND(B214=D214,C214=E214,F214=D214,G214=E214,B215=D215,C215=E215,F215=D215,G215=E215,B216=D216,C216=E216,F216=D216,G216=E216,B217=D217,C217=E217,F217=D217,G217=E217),"No","Yes") -> No | F211: 26.68790887 | G211: 25 | H211: N(A)YY 4x150 | J211: 18 | K211: 6.146780892 | L211: 0.9843502047 | M211: -0.03163190114 | N211: =IF(AND(K214=M214,L214=N214,O214=M214,P214=N214,K215=M215,L215=N215,O215=M215,P215=N215,K216=M216,L216=N216,O216=M216,P216=N216,K217=M217,L217=N217,O217=M217,P217=N217),"No","Yes") -> No | O211: 26.68790887 | P211: 25 | Q211: N(A)YY 4x150
B212: L1 | D212: L2 | F212: L3 | H212: N | K212: L1 | M212: L2 | O212: L3 | Q212: N
B213: S | C213: cos(ϕ) | D213: S | E213: cos(ϕ) | F213: S | G213: cos(ϕ) | K213: S | L213: cos(ϕ) | M213: S | N213: cos(ϕ) | O213: S | P213: cos(ϕ)
A214: Households | B214: 1.156345624 | C214: 0.95 | D214: 1.156345624 | E214: 0.95 | F214: 1.156345624 | G214: 0.95 | J214: Households | K214: 1.156345624 | L214: 0.95 | M214: 1.156345624 | N214: 0.95 | O214: 1.156345624 | P214: 0.95
A215: E-Mobility | B215: 0.9183333333 | C215: 1 | D215: 0.9183333333 | E215: 1 | F215: 0.9183333333 | G215: 1 | J215: E-Mobility | K215: 0.9183333333 | L215: 1 | M215: 0.9183333333 | N215: 1 | O215: 0.9183333333 | P215: 1
A216: PV | B216: 0 | C216: 0.95 | D216: 0 | E216: 0.95 | F216: 0 | G216: 0.95 | J216: PV | K216: 0 | L216: 0.95 | M216: 0 | N216: 0.95 | O216: 0 | P216: 0.95
A217: Additional | B217: 0 | C217: 0.95 | D217: 0 | E217: 0.95 | F217: 0 | G217: 0.95 | J217: Additional | K217: 0 | L217: 0.95 | M217: 0 | N217: 0.95 | O217: 0 | P217: 0.95
A218: Sum | B218: 0.9183333333 | C218: 1 | D218: 0.9183333333 | E218: 1 | F218: 0.9183333333 | G218: 1 | J218: Sum | K218: 0.9183333333 | L218: 1 | M218: 0.9183333333 | N218: 1 | O218: 0.9183333333 | P218: 1
A219: ΔU | B219: -0.03163190114 | D219: -0.03163190114 | F219: -0.03163190114 | J219: ΔU | K219: -0.03163190114 | M219: -0.03163190114 | O219: -0.03163190114
A220: I | B220: 26.68790887 | D220: 26.68790887 | F220: 26.68790887 | H220: 8.747542958e-15 | J220: I | K220: 26.68790887 | M220: 26.68790887 | O220: 26.68790887 | Q220: 1.065814104e-14
A222: 19 | B222: 6.146780892 | C222: 0.9843502047 | D222: -0.03189013503 | E222: =IF(AND(B225=D225,C225=E225,F225=D225,G225=E225,B226=D226,C226=E226,F226=D226,G226=E226,B227=D227,C227=E227,F227=D227,G227=E227,B228=D228,C228=E228,F228=D228,G228=E228),"No","Yes") -> No | F222: 17.7918829 | G222: 25 | H222: N(A)YY 4x150 | J222: 19 | K222: 6.146780892 | L222: 0.9843502047 | M222: -0.03189013503 | N222: =IF(AND(K225=M225,L225=N225,O225=M225,P225=N225,K226=M226,L226=N226,O226=M226,P226=N226,K227=M227,L227=N227,O227=M227,P227=N227,K228=M228,L228=N228,O228=M228,P228=N228),"No","Yes") -> No | O222: 17.7918829 | P222: 25 | Q222: N(A)YY 4x150
B223: L1 | D223: L2 | F223: L3 | H223: N | K223: L1 | M223: L2 | O223: L3 | Q223: N
... 18 more rows

Sheet Inputs (hidden)
A1: Knot Information | Q1: Lines | AF1: References | AM1: Linetypes
B2: L1 in W | D2: L2 in W | F2: L3 in W | H2: L1 in W | J2: L2 in W | L2: L3 in W | AL2: Boolean
AF3: Voltage | AG3: Power | AH3: Delta Newton Raphson | AI3: Delta CurrentInjection | AJ3: Max Iterations | AK3: Newton Raphson | AL3: 1 | AM3: Number | AN3: Type | AO3: R12 in Ohm/km | AP3: X12 in Ohm/km | AQ3: R0 in Ohm/km | AR3: X0 in Ohm/km | AS3: X0/XL | AT3: R0/RL | AU3: Ground
A4: Knot Nr. | B4: P | C4: Q | D4: P2 | E4: Q2 | F4: P3 | G4: Q3 | H4: P_Imp | I4: Q_Imp | J4: P2_Imp | K4: Q2_Imp | L4: P3_Imp | M4: Q3_Imp | N4: Slack | O4: Init. Voltage | Q4: Startknot | R4: Endknot | S4: R12 in Ohm | T4: X12 in Ohm | U4: R0 in Ohm | V4: X0 in Ohm | AF4: 400 | AG4: 1000 | AH4: 1e-05 | AI4: 1e-05 | AJ4: 100 | AK4: 1 | AL4: 0 | AM4: 1 | AN4: N(A)YY 4x10 | AO4: 1.83 | AP4: 0.0942 | AQ4: =Leitungstypen[[#This Row],[R12 in Ohm/km]]*Leitungstypen[[#This Row],[R0/RL]] -> 7.32 | AR4: =Leitungstypen[[#This Row],[X12 in Ohm/km]]*Leitungstypen[[#This Row],[X0/XL]] -> 0.3768 | AS4: 4 | AT4: 4 | AU4: 1
A5: 1 | B5: 0 | C5: 0 | D5: 0 | E5: 0 | F5: 0 | G5: 0 | H5: 0 | I5: 0 | J5: 0 | K5: 0 | L5: 0 | M5: 0 | N5: 1 | O5: 1 | Q5: 1 | R5: 2 | S5: 1.666666667e-05 | T5: 0.007999982639 | U5: 1.416666667e-05 | V5: 0.006799985243 | AM5: 2 | AN5: N(A)YY 4x16 | AO5: 1.15 | AP5: 0.0895 | AQ5: =Leitungstypen[[#This Row],[R12 in Ohm/km]]*Leitungstypen[[#This Row],[R0/RL]] -> 4.6 | AR5: =Leitungstypen[[#This Row],[X12 in Ohm/km]]*Leitungstypen[[#This Row],[X0/XL]] -> 0.358 | AS5: 4 | AT5: 4 | AU5: 1
A6: 2 | B6: 0 | C6: 0 | D6: 0 | E6: 0 | F6: 0 | G6: 0 | H6: 0 | I6: 0 | J6: 0 | K6: 0 | L6: 0 | M6: 0 | N6: 0 | O6: 1 | Q6: 2 | R6: 3 | S6: 0.003125 | T6: 0.0020175 | U6: 0.0105625 | V6: 0.00794895 | AM6: 3 | AN6: N(A)YY 4x25 | AO6: 0.727 | AP6: 0.088 | AQ6: =Leitungstypen[[#This Row],[R12 in Ohm/km]]*Leitungstypen[[#This Row],[R0/RL]] -> 1.71572 | AR6: =Leitungstypen[[#This Row],[X12 in Ohm/km]]*Leitungstypen[[#This Row],[X0/XL]] -> 1.14136 | AS6: 12.97 | AT6: 2.36 | AU6: 1
A7: 3 | B7: 918.3333333 | C7: 0 | D7: 918.3333333 | E7: 0 | F7: 918.3333333 | G7: 0 | H7: 1098.528343 | I7: 361.0688054 | J7: 1098.528343 | K7: 361.0688054 | L7: 1098.528343 | M7: 361.0688054 | N7: 0 | O7: 1 | Q7: 3 | R7: 4 | S7: 0.003125 | T7: 0.0020175 | U7: 0.0105625 | V7: 0.00794895 | AM7: 4 | AN7: N(A)YY 4x35 | AO7: 0.524 | AP7: 0.0851 | AQ7: =Leitungstypen[[#This Row],[R12 in Ohm/km]]*Leitungstypen[[#This Row],[R0/RL]] -> 1.42004 | AR7: =Leitungstypen[[#This Row],[X12 in Ohm/km]]*Leitungstypen[[#This Row],[X0/XL]] -> 0.852702 | AS7: 10.02 | AT7: 2.71 | AU7: 1
A8: 4 | B8: 918.3333333 | C8: 0 | D8: 918.3333333 | E8: 0 | F8: 918.3333333 | G8: 0 | H8: 1098.528343 | I8: 361.0688054 | J8: 1098.528343 | K8: 361.0688054 | L8: 1098.528343 | M8: 361.0688054 | N8: 0 | O8: 1 | Q8: 4 | R8: 5 | S8: 0.003125 | T8: 0.0020175 | U8: 0.0105625 | V8: 0.00794895 | AM8: 5 | AN8: N(A)YY 4x50 | AO8: 0.387 | AP8: 0.0848 | AQ8: =Leitungstypen[[#This Row],[R12 in Ohm/km]]*Leitungstypen[[#This Row],[R0/RL]] -> 1.14165 | AR8: =Leitungstypen[[#This Row],[X12 in Ohm/km]]*Leitungstypen[[#This Row],[X0/XL]] -> 0.645328 | AS8: 7.61 | AT8: 2.95 | AU8: 1
A9: 5 | B9: 918.3333333 | C9: 0 | D9: 918.3333333 | E9: 0 | F9: 918.3333333 | G9: 0 | H9: 1098.528343 | I9: 361.0688054 | J9: 1098.528343 | K9: 361.0688054 | L9: 1098.528343 | M9: 361.0688054 | N9: 0 | O9: 1 | Q9: 5 | R9: 6 | S9: 0.003125 | T9: 0.0020175 | U9: 0.0105625 | V9: 0.00794895 | AM9: 6 | AN9: N(A)YY 4x70 | AO9: 0.269 | AP9: 0.0823 | AQ9: =Leitungstypen[[#This Row],[R12 in Ohm/km]]*Leitungstypen[[#This Row],[R0/RL]] -> 0.85542 | AR9: =Leitungstypen[[#This Row],[X12 in Ohm/km]]*Leitungstypen[[#This Row],[X0/XL]] -> 0.467464 | AS9: 5.68 | AT9: 3.18 | AU9: 1
A10: 6 | B10: 918.3333333 | C10: 0 | D10: 918.3333333 | E10: 0 | F10: 918.3333333 | G10: 0 | H10: 1098.528343 | I10: 361.0688054 | J10: 1098.528343 | K10: 361.0688054 | L10: 1098.528343 | M10: 361.0688054 | N10: 0 | O10: 1 | Q10: 6 | R10: 7 | S10: 0.003125 | T10: 0.0020175 | U10: 0.0105625 | V10: 0.00794895 | AM10: 7 | AN10: N(A)YY 4x95 | AO10: 0.194 | AP10: 0.082 | AQ10: =Leitungstypen[[#This Row],[R12 in Ohm/km]]*Leitungstypen[[#This Row],[R0/RL]] -> 0.63826 | AR10: =Leitungstypen[[#This Row],[X12 in Ohm/km]]*Leitungstypen[[#This Row],[X0/XL]] -> 0.37966 | AS10: 4.63 | AT10: 3.29 | AU10: 1
A11: 7 | B11: 918.3333333 | C11: 0 | D11: 918.3333333 | E11: 0 | F11: 918.3333333 | G11: 0 | H11: 1098.528343 | I11: 361.0688054 | J11: 1098.528343 | K11: 361.0688054 | L11: 1098.528343 | M11: 361.0688054 | N11: 0 | O11: 1 | Q11: 7 | R11: 8 | S11: 0.003125 | T11: 0.0020175 | U11: 0.0105625 | V11: 0.00794895 | AM11: 8 | AN11: N(A)YY 4x120 | AO11: 0.154 | AP11: 0.0804 | AQ11: =Leitungstypen[[#This Row],[R12 in Ohm/km]]*Leitungstypen[[#This Row],[R0/RL]] -> 0.5159 | AR11: =Leitungstypen[[#This Row],[X12 in Ohm/km]]*Leitungstypen[[#This Row],[X0/XL]] -> 0.338484 | AS11: 4.21 | AT11: 3.35 | AU11: 1
A12: 8 | B12: 918.3333333 | C12: 0 | D12: 918.3333333 | E12: 0 | F12: 918.3333333 | G12: 0 | H12: 1098.528343 | I12: 361.0688054 | J12: 1098.528343 | K12: 361.0688054 | L12: 1098.528343 | M12: 361.0688054 | N12: 0 | O12: 1 | Q12: 8 | R12: 9 | S12: 0.003125 | T12: 0.0020175 | U12: 0.0105625 | V12: 0.00794895 | AM12: 9 | AN12: N(A)YY 4x150 | AO12: 0.125 | AP12: 0.0807 | AQ12: =Leitungstypen[[#This Row],[R12 in Ohm/km]]*Leitungstypen[[#This Row],[R0/RL]] -> 0.4225 | AR12: =Leitungstypen[[#This Row],[X12 in Ohm/km]]*Leitungstypen[[#This Row],[X0/XL]] -> 0.317958 | AS12: 3.94 | AT12: 3.38 | AU12: 1
A13: 9 | B13: 918.3333333 | C13: 0 | D13: 918.3333333 | E13: 0 | F13: 918.3333333 | G13: 0 | H13: 1098.528343 | I13: 361.0688054 | J13: 1098.528343 | K13: 361.0688054 | L13: 1098.528343 | M13: 361.0688054 | N13: 0 | O13: 1 | Q13: 9 | R13: 10 | S13: 0.003125 | T13: 0.0020175 | U13: 0.0105625 | V13: 0.00794895 | AM13: 10 | AN13: N(A)YY 4x185 | AO13: 0.101 | AP13: 0.0804 | AQ13: =Leitungstypen[[#This Row],[R12 in Ohm/km]]*Leitungstypen[[#This Row],[R0/RL]] -> 0.34441 | AR13: =Leitungstypen[[#This Row],[X12 in Ohm/km]]*Leitungstypen[[#This Row],[X0/XL]] -> 0.300696 | AS13: 3.74 | AT13: 3.41 | AU13: 1
A14: 10 | B14: 918.3333333 | C14: 0 | D14: 918.3333333 | E14: 0 | F14: 918.3333333 | G14: 0 | H14: 1098.528343 | I14: 361.0688054 | J14: 1098.528343 | K14: 361.0688054 | L14: 1098.528343 | M14: 361.0688054 | N14: 0 | O14: 1 | Q14: 10 | R14: 11 | S14: 0.003125 | T14: 0.0020175 | U14: 0.0105625 | V14: 0.00794895 | AM14: 11 | AN14: N(A)YY 4x240 | AO14: 0.0777 | AP14: 0.0801 | AQ14: =Leitungstypen[[#This Row],[R12 in Ohm/km]]*Leitungstypen[[#This Row],[R0/RL]] -> 0.265734 | AR14: =Leitungstypen[[#This Row],[X12 in Ohm/km]]*Leitungstypen[[#This Row],[X0/XL]] -> 0.289962 | AS14: 3.62 | AT14: 3.42 | AU14: 1
A15: 11 | B15: 918.3333333 | C15: 0 | D15: 918.3333333 | E15: 0 | F15: 918.3333333 | G15: 0 | H15: 1098.528343 | I15: 361.0688054 | J15: 1098.528343 | K15: 361.0688054 | L15: 1098.528343 | M15: 361.0688054 | N15: 0 | O15: 1 | Q15: 11 | R15: 12 | S15: 0.003125 | T15: 0.0020175 | U15: 0.0105625 | V15: 0.00794895 | AM15: 12 | AN15: N(A)YY 4x300 | AO15: 0.0629 | AP15: 0.0792 | AQ15: =Leitungstypen[[#This Row],[R12 in Ohm/km]]*Leitungstypen[[#This Row],[R0/RL]] -> 0.216376 | AR15: =Leitungstypen[[#This Row],[X12 in Ohm/km]]*Leitungstypen[[#This Row],[X0/XL]] -> 0.278784 | AS15: 3.52 | AT15: 3.44 | AU15: 1
A16: 12 | B16: 918.3333333 | C16: 0 | D16: 918.3333333 | E16: 0 | F16: 918.3333333 | G16: 0 | H16: 1098.528343 | I16: 361.0688054 | J16: 1098.528343 | K16: 361.0688054 | L16: 1098.528343 | M16: 361.0688054 | N16: 0 | O16: 1 | Q16: 12 | R16: 13 | S16: 0.003125 | T16: 0.0020175 | U16: 0.0105625 | V16: 0.00794895 | AM16: 13 | AN16: NYY 4x25 | AO16: 0.727 | AP16: 0.0861 | AQ16: =Leitungstypen[[#This Row],[R12 in Ohm/km]]*Leitungstypen[[#This Row],[R0/RL]] -> 1.68664 | AR16: =Leitungstypen[[#This Row],[X12 in Ohm/km]]*Leitungstypen[[#This Row],[X0/XL]] -> 1.542051 | AS16: 17.91 | AT16: 2.32 | AU16: 0
A17: 13 | B17: 918.3333333 | C17: 0 | D17: 918.3333333 | E17: 0 | F17: 918.3333333 | G17: 0 | H17: 1098.528343 | I17: 361.0688054 | J17: 1098.528343 | K17: 361.0688054 | L17: 1098.528343 | M17: 361.0688054 | N17: 0 | O17: 1 | Q17: 13 | R17: 14 | S17: 0.003125 | T17: 0.0020175 | U17: 0.0105625 | V17: 0.00794895 | AM17: 14 | AN17: NYY 4x35 | AO17: 0.524 | AP17: 0.0851 | AQ17: =Leitungstypen[[#This Row],[R12 in Ohm/km]]*Leitungstypen[[#This Row],[R0/RL]] -> 1.47768 | AR17: =Leitungstypen[[#This Row],[X12 in Ohm/km]]*Leitungstypen[[#This Row],[X0/XL]] -> 1.569244 | AS17: 18.44 | AT17: 2.82 | AU17: 0
A18: 14 | B18: 918.3333333 | C18: 0 | D18: 918.3333333 | E18: 0 | F18: 918.3333333 | G18: 0 | H18: 1098.528343 | I18: 361.0688054 | J18: 1098.528343 | K18: 361.0688054 | L18: 1098.528343 | M18: 361.0688054 | N18: 0 | O18: 1 | Q18: 14 | R18: 15 | S18: 0.003125 | T18: 0.0020175 | U18: 0.0105625 | V18: 0.00794895 | AM18: 15 | AN18: NYY 4x50 | AO18: 0.387 | AP18: 0.0851 | AQ18: =Leitungstypen[[#This Row],[R12 in Ohm/km]]*Leitungstypen[[#This Row],[R0/RL]] -> 1.33128 | AR18: =Leitungstypen[[#This Row],[X12 in Ohm/km]]*Leitungstypen[[#This Row],[X0/XL]] -> 1.146297 | AS18: 13.47 | AT18: 3.44 | AU18: 0
A19: 15 | B19: 918.3333333 | C19: 0 | D19: 918.3333333 | E19: 0 | F19: 918.3333333 | G19: 0 | H19: 1098.528343 | I19: 361.0688054 | J19: 1098.528343 | K19: 361.0688054 | L19: 1098.528343 | M19: 361.0688054 | N19: 0 | O19: 1 | Q19: 15 | R19: 16 | S19: 0.003125 | T19: 0.0020175 | U19: 0.0105625 | V19: 0.00794895 | AM19: 16 | AN19: NYY 4x70 | AO19: 0.269 | AP19: 0.0823 | AQ19: =Leitungstypen[[#This Row],[R12 in Ohm/km]]*Leitungstypen[[#This Row],[R0/RL]] -> 1.26968 | AR19: =Leitungstypen[[#This Row],[X12 in Ohm/km]]*Leitungstypen[[#This Row],[X0/XL]] -> 0.865796 | AS19: 10.52 | AT19: 4.72 | AU19: 0
A20: 16 | B20: 918.3333333 | C20: 0 | D20: 918.3333333 | E20: 0 | F20: 918.3333333 | G20: 0 | H20: 1098.528343 | I20: 361.0688054 | J20: 1098.528343 | K20: 361.0688054 | L20: 1098.528343 | M20: 361.0688054 | N20: 0 | O20: 1 | Q20: 16 | R20: 17 | S20: 0.003125 | T20: 0.0020175 | U20: 0.0105625 | V20: 0.00794895 | AM20: 17 | AN20: NYY 4x95 | AO20: 0.194 | AP20: 0.0829 | AQ20: =Leitungstypen[[#This Row],[R12 in Ohm/km]]*Leitungstypen[[#This Row],[R0/RL]] -> 0.9021 | AR20: =Leitungstypen[[#This Row],[X12 in Ohm/km]]*Leitungstypen[[#This Row],[X0/XL]] -> 0.682267 | AS20: 8.23 | AT20: 4.65 | AU20: 0
A21: 17 | B21: 918.3333333 | C21: 0 | D21: 918.3333333 | E21: 0 | F21: 918.3333333 | G21: 0 | H21: 1098.528343 | I21: 361.0688054 | J21: 1098.528343 | K21: 361.0688054 | L21: 1098.528343 | M21: 361.0688054 | N21: 0 | O21: 1 | Q21: 17 | R21: 18 | S21: 0.003125 | T21: 0.0020175 | U21: 0.0105625 | V21: 0.00794895 | AM21: 18 | AN21: NYY 4x120 | AO21: 0.154 | AP21: 0.0804 | AQ21: =Leitungstypen[[#This Row],[R12 in Ohm/km]]*Leitungstypen[[#This Row],[R0/RL]] -> 0.83314 | AR21: =Leitungstypen[[#This Row],[X12 in Ohm/km]]*Leitungstypen[[#This Row],[X0/XL]] -> 0.51054 | AS21: 6.35 | AT21: 5.41 | AU21: 0
A22: 18 | B22: 918.3333333 | C22: 0 | D22: 918.3333333 | E22: 0 | F22: 918.3333333 | G22: 0 | H22: 1098.528343 | I22: 361.0688054 | J22: 1098.528343 | K22: 361.0688054 | L22: 1098.528343 | M22: 361.0688054 | N22: 0 | O22: 1 | Q22: 18 | R22: 19 | S22: 0.003125 | T22: 0.0020175 | U22: 0.0105625 | V22: 0.00794895 | AM22: 19 | AN22: NYY 4x150 | AO22: 0.126 | AP22: 0.0807 | AQ22: =Leitungstypen[[#This Row],[R12 in Ohm/km]]*Leitungstypen[[#This Row],[R0/RL]] -> 0.65142 | AR22: =Leitungstypen[[#This Row],[X12 in Ohm/km]]*Leitungstypen[[#This Row],[X0/XL]] -> 0.525357 | AS22: 6.51 | AT22: 5.17 | AU22: 0
A23: 19 | B23: 918.3333333 | C23: 0 | D23: 918.3333333 | E23: 0 | F23: 918.3333333 | G23: 0 | H23: 1098.528343 | I23: 361.0688054 | J23: 1098.528343 | K23: 361.0688054 | L23: 1098.528343 | M23: 361.0688054 | N23: 0 | O23: 1 | Q23: 19 | R23: 20 | S23: 0.003125 | T23: 0.0020175 | U23: 0.0105625 | V23: 0.00794895 | AM23: 20 | AN23: NYY 4x185 | AO23: 0.101 | AP23: 0.0804 | AQ23: =Leitungstypen[[#This Row],[R12 in Ohm/km]]*Leitungstypen[[#This Row],[R0/RL]] -> 0.54237 | AR23: =Leitungstypen[[#This Row],[X12 in Ohm/km]]*Leitungstypen[[#This Row],[X0/XL]] -> 0.43416 | AS23: 5.4 | AT23: 5.37 | AU23: 0
A24: 20 | B24: 918.3333333 | C24: 0 | D24: 918.3333333 | E24: 0 | F24: 918.3333333 | G24: 0 | H24: 1098.528343 | I24: 361.0688054 | J24: 1098.528343 | K24: 361.0688054 | L24: 1098.528343 | M24: 361.0688054 | N24: 0 | O24: 1 | Q24: 20 | R24: 21 | S24: 0.003125 | T24: 0.0020175 | U24: 0.0105625 | V24: 0.00794895 | AM24: 21 | AN24: NYY 4x240 | AO24: 0.0778 | AP24: 0.0804 | AQ24: =Leitungstypen[[#This Row],[R12 in Ohm/km]]*Leitungstypen[[#This Row],[R0/RL]] -> 0.424788 | AR24: =Leitungstypen[[#This Row],[X12 in Ohm/km]]*Leitungstypen[[#This Row],[X0/XL]] -> 0.39798 | AS24: 4.95 | AT24: 5.46 | AU24: 0
A25: 21 | B25: 918.3333333 | C25: 0 | D25: 918.3333333 | E25: 0 | F25: 918.3333333 | G25: 0 | H25: 1098.528343 | I25: 361.0688054 | J25: 1098.528343 | K25: 361.0688054 | L25: 1098.528343 | M25: 361.0688054 | N25: 0 | O25: 1 | Q25: 21 | R25: 22 | S25: 0.003125 | T25: 0.0020175 | U25: 0.0105625 | V25: 0.00794895 | AM25: 22 | AN25: NYY 4x300 | AO25: 0.0631 | AP25: 0.0804 | AQ25: =Leitungstypen[[#This Row],[R12 in Ohm/km]]*Leitungstypen[[#This Row],[R0/RL]] -> 0.344526 | AR25: =Leitungstypen[[#This Row],[X12 in Ohm/km]]*Leitungstypen[[#This Row],[X0/XL]] -> 0.375468 | AS25: 4.67 | AT25: 5.46 | AU25: 0
A26: 22 | B26: 918.3333333 | C26: 0 | D26: 918.3333333 | E26: 0 | F26: 918.3333333 | G26: 0 | H26: 1098.528343 | I26: 361.0688054 | J26: 1098.528343 | K26: 361.0688054 | L26: 1098.528343 | M26: 361.0688054 | N26: 0 | O26: 1 | Q26: 2 | R26: 23 | S26: 0.003125 | T26: 0.0020175 | U26: 0.0105625 | V26: 0.00794895
A27: 23 | B27: 918.3333333 | C27: 0 | D27: 918.3333333 | E27: 0 | F27: 918.3333333 | G27: 0 | H27: 1098.528343 | I27: 361.0688054 | J27: 1098.528343 | K27: 361.0688054 | L27: 1098.528343 | M27: 361.0688054 | N27: 0 | O27: 1 | Q27: 23 | R27: 24 | S27: 0.003125 | T27: 0.0020175 | U27: 0.0105625 | V27: 0.00794895
A28: 24 | B28: 918.3333333 | C28: 0 | D28: 918.3333333 | E28: 0 | F28: 918.3333333 | G28: 0 | H28: 1098.528343 | I28: 361.0688054 | J28: 1098.528343 | K28: 361.0688054 | L28: 1098.528343 | M28: 361.0688054 | N28: 0 | O28: 1 | Q28: 24 | R28: 25 | S28: 0.003125 | T28: 0.0020175 | U28: 0.0105625 | V28: 0.00794895
A29: 25 | B29: 918.3333333 | C29: 0 | D29: 918.3333333 | E29: 0 | F29: 918.3333333 | G29: 0 | H29: 1098.528343 | I29: 361.0688054 | J29: 1098.528343 | K29: 361.0688054 | L29: 1098.528343 | M29: 361.0688054 | N29: 0 | O29: 1 | Q29: 25 | R29: 26 | S29: 0.003125 | T29: 0.0020175 | U29: 0.0105625 | V29: 0.00794895
A30: 26 | B30: 918.3333333 | C30: 0 | D30: 918.3333333 | E30: 0 | F30: 918.3333333 | G30: 0 | H30: 1098.528343 | I30: 361.0688054 | J30: 1098.528343 | K30: 361.0688054 | L30: 1098.528343 | M30: 361.0688054 | N30: 0 | O30: 1 | Q30: 26 | R30: 27 | S30: 0.003125 | T30: 0.0020175 | U30: 0.0105625 | V30: 0.00794895
A31: 27 | B31: 918.3333333 | C31: 0 | D31: 918.3333333 | E31: 0 | F31: 918.3333333 | G31: 0 | H31: 1098.528343 | I31: 361.0688054 | J31: 1098.528343 | K31: 361.0688054 | L31: 1098.528343 | M31: 361.0688054 | N31: 0 | O31: 1 | Q31: 27 | R31: 28 | S31: 0.003125 | T31: 0.0020175 | U31: 0.0105625 | V31: 0.00794895
A32: 28 | B32: 918.3333333 | C32: 0 | D32: 918.3333333 | E32: 0 | F32: 918.3333333 | G32: 0 | H32: 1098.528343 | I32: 361.0688054 | J32: 1098.528343 | K32: 361.0688054 | L32: 1098.528343 | M32: 361.0688054 | N32: 0 | O32: 1 | Q32: 28 | R32: 29 | S32: 0.003125 | T32: 0.0020175 | U32: 0.0105625 | V32: 0.00794895
A33: 29 | B33: 918.3333333 | C33: 0 | D33: 918.3333333 | E33: 0 | F33: 918.3333333 | G33: 0 | H33: 1098.528343 | I33: 361.0688054 | J33: 1098.528343 | K33: 361.0688054 | L33: 1098.528343 | M33: 361.0688054 | N33: 0 | O33: 1 | Q33: 29 | R33: 30 | S33: 0.003125 | T33: 0.0020175 | U33: 0.0105625 | V33: 0.00794895
A34: 30 | B34: 918.3333333 | C34: 0 | D34: 918.3333333 | E34: 0 | F34: 918.3333333 | G34: 0 | H34: 1098.528343 | I34: 361.0688054 | J34: 1098.528343 | K34: 361.0688054 | L34: 1098.528343 | M34: 361.0688054 | N34: 0 | O34: 1 | Q34: 30 | R34: 31 | S34: 0.003125 | T34: 0.0020175 | U34: 0.0105625 | V34: 0.00794895
A35: 31 | B35: 918.3333333 | C35: 0 | D35: 918.3333333 | E35: 0 | F35: 918.3333333 | G35: 0 | H35: 1098.528343 | I35: 361.0688054 | J35: 1098.528343 | K35: 361.0688054 | L35: 1098.528343 | M35: 361.0688054 | N35: 0 | O35: 1 | Q35: 31 | R35: 32 | S35: 0.003125 | T35: 0.0020175 | U35: 0.0105625 | V35: 0.00794895
A36: 32 | B36: 918.3333333 | C36: 0 | D36: 918.3333333 | E36: 0 | F36: 918.3333333 | G36: 0 | H36: 1098.528343 | I36: 361.0688054 | J36: 1098.528343 | K36: 361.0688054 | L36: 1098.528343 | M36: 361.0688054 | N36: 0 | O36: 1 | Q36: 32 | R36: 33 | S36: 0.003125 | T36: 0.0020175 | U36: 0.0105625 | V36: 0.00794895
A37: 33 | B37: 918.3333333 | C37: 0 | D37: 918.3333333 | E37: 0 | F37: 918.3333333 | G37: 0 | H37: 1098.528343 | I37: 361.0688054 | J37: 1098.528343 | K37: 361.0688054 | L37: 1098.528343 | M37: 361.0688054 | N37: 0 | O37: 1 | Q37: 33 | R37: 34 | S37: 0.003125 | T37: 0.0020175 | U37: 0.0105625 | V37: 0.00794895
A38: 34 | B38: 918.3333333 | C38: 0 | D38: 918.3333333 | E38: 0 | F38: 918.3333333 | G38: 0 | H38: 1098.528343 | I38: 361.0688054 | J38: 1098.528343 | K38: 361.0688054 | L38: 1098.528343 | M38: 361.0688054 | N38: 0 | O38: 1 | Q38: 34 | R38: 35 | S38: 0.003125 | T38: 0.0020175 | U38: 0.0105625 | V38: 0.00794895
A39: 35 | B39: 918.3333333 | C39: 0 | D39: 918.3333333 | E39: 0 | F39: 918.3333333 | G39: 0 | H39: 1098.528343 | I39: 361.0688054 | J39: 1098.528343 | K39: 361.0688054 | L39: 1098.528343 | M39: 361.0688054 | N39: 0 | O39: 1 | Q39: 35 | R39: 36 | S39: 0.003125 | T39: 0.0020175 | U39: 0.0105625 | V39: 0.00794895
A40: 36 | B40: 918.3333333 | C40: 0 | D40: 918.3333333 | E40: 0 | F40: 918.3333333 | G40: 0 | H40: 1098.528343 | I40: 361.0688054 | J40: 1098.528343 | K40: 361.0688054 | L40: 1098.528343 | M40: 361.0688054 | N40: 0 | O40: 1 | Q40: 36 | R40: 37 | S40: 0.003125 | T40: 0.0020175 | U40: 0.0105625 | V40: 0.00794895
A41: 37 | B41: 918.3333333 | C41: 0 | D41: 918.3333333 | E41: 0 | F41: 918.3333333 | G41: 0 | H41: 1098.528343 | I41: 361.0688054 | J41: 1098.528343 | K41: 361.0688054 | L41: 1098.528343 | M41: 361.0688054 | N41: 0 | O41: 1 | Q41: 37 | R41: 38 | S41: 0.003125 | T41: 0.0020175 | U41: 0.0105625 | V41: 0.00794895
A42: 38 | B42: 918.3333333 | C42: 0 | D42: 918.3333333 | E42: 0 | F42: 918.3333333 | G42: 0 | H42: 1098.528343 | I42: 361.0688054 | J42: 1098.528343 | K42: 361.0688054 | L42: 1098.528343 | M42: 361.0688054 | N42: 0 | O42: 1 | Q42: 38 | R42: 39 | S42: 0.003125 | T42: 0.0020175 | U42: 0.0105625 | V42: 0.00794895
A43: 39 | B43: 918.3333333 | C43: 0 | D43: 918.3333333 | E43: 0 | F43: 918.3333333 | G43: 0 | H43: 1098.528343 | I43: 361.0688054 | J43: 1098.528343 | K43: 361.0688054 | L43: 1098.528343 | M43: 361.0688054 | N43: 0 | O43: 1 | Q43: 39 | R43: 40 | S43: 0.003125 | T43: 0.0020175 | U43: 0.0105625 | V43: 0.00794895
A44: 40 | B44: 918.3333333 | C44: 0 | D44: 918.3333333 | E44: 0 | F44: 918.3333333 | G44: 0 | H44: 1098.528343 | I44: 361.0688054 | J44: 1098.528343 | K44: 361.0688054 | L44: 1098.528343 | M44: 361.0688054 | N44: 0 | O44: 1 | Q44: 40 | R44: 41 | S44: 0.003125 | T44: 0.0020175 | U44: 0.0105625 | V44: 0.00794895
A45: 41 | B45: 918.3333333 | C45: 0 | D45: 918.3333333 | E45: 0 | F45: 918.3333333 | G45: 0 | H45: 1098.528343 | I45: 361.0688054 | J45: 1098.528343 | K45: 361.0688054 | L45: 1098.528343 | M45: 361.0688054 | N45: 0 | O45: 1 | Q45: 41 | R45: 42 | S45: 0.003125 | T45: 0.0020175 | U45: 0.0105625 | V45: 0.00794895
A46: 42 | B46: 918.3333333 | C46: 0 | D46: 918.3333333 | E46: 0 | F46: 918.3333333 | G46: 0 | H46: 1098.528343 | I46: 361.0688054 | J46: 1098.528343 | K46: 361.0688054 | L46: 1098.528343 | M46: 361.0688054 | N46: 0 | O46: 1 | Q46: 2 | R46: 43 | S46: 0.003125 | T46: 0.0020175 | U46: 0.0105625 | V46: 0.00794895
A47: 43 | B47: 918.3333333 | C47: 0 | D47: 918.3333333 | E47: 0 | F47: 918.3333333 | G47: 0 | H47: 1098.528343 | I47: 361.0688054 | J47: 1098.528343 | K47: 361.0688054 | L47: 1098.528343 | M47: 361.0688054 | N47: 0 | O47: 1 | Q47: 43 | R47: 44 | S47: 0.003125 | T47: 0.0020175 | U47: 0.0105625 | V47: 0.00794895
A48: 44 | B48: 918.3333333 | C48: 0 | D48: 918.3333333 | E48: 0 | F48: 918.3333333 | G48: 0 | H48: 1098.528343 | I48: 361.0688054 | J48: 1098.528343 | K48: 361.0688054 | L48: 1098.528343 | M48: 361.0688054 | N48: 0 | O48: 1 | Q48: 44 | R48: 45 | S48: 0.003125 | T48: 0.0020175 | U48: 0.0105625 | V48: 0.00794895
A49: 45 | B49: 918.3333333 | C49: 0 | D49: 918.3333333 | E49: 0 | F49: 918.3333333 | G49: 0 | H49: 1098.528343 | I49: 361.0688054 | J49: 1098.528343 | K49: 361.0688054 | L49: 1098.528343 | M49: 361.0688054 | N49: 0 | O49: 1 | Q49: 45 | R49: 46 | S49: 0.003125 | T49: 0.0020175 | U49: 0.0105625 | V49: 0.00794895
A50: 46 | B50: 918.3333333 | C50: 0 | D50: 918.3333333 | E50: 0 | F50: 918.3333333 | G50: 0 | H50: 1098.528343 | I50: 361.0688054 | J50: 1098.528343 | K50: 361.0688054 | L50: 1098.528343 | M50: 361.0688054 | N50: 0 | O50: 1 | Q50: 46 | R50: 47 | S50: 0.003125 | T50: 0.0020175 | U50: 0.0105625 | V50: 0.00794895
A51: 47 | B51: 918.3333333 | C51: 0 | D51: 918.3333333 | E51: 0 | F51: 918.3333333 | G51: 0 | H51: 1098.528343 | I51: 361.0688054 | J51: 1098.528343 | K51: 361.0688054 | L51: 1098.528343 | M51: 361.0688054 | N51: 0 | O51: 1 | Q51: 47 | R51: 48 | S51: 0.003125 | T51: 0.0020175 | U51: 0.0105625 | V51: 0.00794895
A52: 48 | B52: 918.3333333 | C52: 0 | D52: 918.3333333 | E52: 0 | F52: 918.3333333 | G52: 0 | H52: 1098.528343 | I52: 361.0688054 | J52: 1098.528343 | K52: 361.0688054 | L52: 1098.528343 | M52: 361.0688054 | N52: 0 | O52: 1 | Q52: 48 | R52: 49 | S52: 0.003125 | T52: 0.0020175 | U52: 0.0105625 | V52: 0.00794895
A53: 49 | B53: 918.3333333 | C53: 0 | D53: 918.3333333 | E53: 0 | F53: 918.3333333 | G53: 0 | H53: 1098.528343 | I53: 361.0688054 | J53: 1098.528343 | K53: 361.0688054 | L53: 1098.528343 | M53: 361.0688054 | N53: 0 | O53: 1 | Q53: 49 | R53: 50 | S53: 0.003125 | T53: 0.0020175 | U53: 0.0105625 | V53: 0.00794895
A54: 50 | B54: 918.3333333 | C54: 0 | D54: 918.3333333 | E54: 0 | F54: 918.3333333 | G54: 0 | H54: 1098.528343 | I54: 361.0688054 | J54: 1098.528343 | K54: 361.0688054 | L54: 1098.528343 | M54: 361.0688054 | N54: 0 | O54: 1 | Q54: 50 | R54: 51 | S54: 0.003125 | T54: 0.0020175 | U54: 0.0105625 | V54: 0.00794895
A55: 51 | B55: 918.3333333 | C55: 0 | D55: 918.3333333 | E55: 0 | F55: 918.3333333 | G55: 0 | H55: 1098.528343 | I55: 361.0688054 | J55: 1098.528343 | K55: 361.0688054 | L55: 1098.528343 | M55: 361.0688054 | N55: 0 | O55: 1 | Q55: 51 | R55: 52 | S55: 0.003125 | T55: 0.0020175 | U55: 0.0105625 | V55: 0.00794895
A56: 52 | B56: 918.3333333 | C56: 0 | D56: 918.3333333 | E56: 0 | F56: 918.3333333 | G56: 0 | H56: 1098.528343 | I56: 361.0688054 | J56: 1098.528343 | K56: 361.0688054 | L56: 1098.528343 | M56: 361.0688054 | N56: 0 | O56: 1 | Q56: 52 | R56: 53 | S56: 0.003125 | T56: 0.0020175 | U56: 0.0105625 | V56: 0.00794895
A57: 53 | B57: 918.3333333 | C57: 0 | D57: 918.3333333 | E57: 0 | F57: 918.3333333 | G57: 0 | H57: 1098.528343 | I57: 361.0688054 | J57: 1098.528343 | K57: 361.0688054 | L57: 1098.528343 | M57: 361.0688054 | N57: 0 | O57: 1 | Q57: 53 | R57: 54 | S57: 0.003125 | T57: 0.0020175 | U57: 0.0105625 | V57: 0.00794895
A58: 54 | B58: 918.3333333 | C58: 0 | D58: 918.3333333 | E58: 0 | F58: 918.3333333 | G58: 0 | H58: 1098.528343 | I58: 361.0688054 | J58: 1098.528343 | K58: 361.0688054 | L58: 1098.528343 | M58: 361.0688054 | N58: 0 | O58: 1 | Q58: 54 | R58: 55 | S58: 0.003125 | T58: 0.0020175 | U58: 0.0105625 | V58: 0.00794895
A59: 55 | B59: 918.3333333 | C59: 0 | D59: 918.3333333 | E59: 0 | F59: 918.3333333 | G59: 0 | H59: 1098.528343 | I59: 361.0688054 | J59: 1098.528343 | K59: 361.0688054 | L59: 1098.528343 | M59: 361.0688054 | N59: 0 | O59: 1 | Q59: 55 | R59: 56 | S59: 0.003125 | T59: 0.0020175 | U59: 0.0105625 | V59: 0.00794895
A60: 56 | B60: 918.3333333 | C60: 0 | D60: 918.3333333 | E60: 0 | F60: 918.3333333 | G60: 0 | H60: 1098.528343 | I60: 361.0688054 | J60: 1098.528343 | K60: 361.0688054 | L60: 1098.528343 | M60: 361.0688054 | N60: 0 | O60: 1 | Q60: 56 | R60: 57 | S60: 0.003125 | T60: 0.0020175 | U60: 0.0105625 | V60: 0.00794895
A61: 57 | B61: 918.3333333 | C61: 0 | D61: 918.3333333 | E61: 0 | F61: 918.3333333 | G61: 0 | H61: 1098.528343 | I61: 361.0688054 | J61: 1098.528343 | K61: 361.0688054 | L61: 1098.528343 | M61: 361.0688054 | N61: 0 | O61: 1 | Q61: 57 | R61: 58 | S61: 0.003125 | T61: 0.0020175 | U61: 0.0105625 | V61: 0.00794895
A62: 58 | B62: 918.3333333 | C62: 0 | D62: 918.3333333 | E62: 0 | F62: 918.3333333 | G62: 0 | H62: 1098.528343 | I62: 361.0688054 | J62: 1098.528343 | K62: 361.0688054 | L62: 1098.528343 | M62: 361.0688054 | N62: 0 | O62: 1 | Q62: 58 | R62: 59 | S62: 0.003125 | T62: 0.0020175 | U62: 0.0105625 | V62: 0.00794895
A63: 59 | B63: 918.3333333 | C63: 0 | D63: 918.3333333 | E63: 0 | F63: 918.3333333 | G63: 0 | H63: 1098.528343 | I63: 361.0688054 | J63: 1098.528343 | K63: 361.0688054 | L63: 1098.528343 | M63: 361.0688054 | N63: 0 | O63: 1 | Q63: 59 | R63: 60 | S63: 0.003125 | T63: 0.0020175 | U63: 0.0105625 | V63: 0.00794895
A64: 60 | B64: 918.3333333 | C64: 0 | D64: 918.3333333 | E64: 0 | F64: 918.3333333 | G64: 0 | H64: 1098.528343 | I64: 361.0688054 | J64: 1098.528343 | K64: 361.0688054 | L64: 1098.528343 | M64: 361.0688054 | N64: 0 | O64: 1 | Q64: 60 | R64: 61 | S64: 0.003125 | T64: 0.0020175 | U64: 0.0105625 | V64: 0.00794895
A65: 61 | B65: 918.3333333 | C65: 0 | D65: 918.3333333 | E65: 0 | F65: 918.3333333 | G65: 0 | H65: 1098.528343 | I65: 361.0688054 | J65: 1098.528343 | K65: 361.0688054 | L65: 1098.528343 | M65: 361.0688054 | N65: 0 | O65: 1 | Q65: 61 | R65: 62 | S65: 0.003125 | T65: 0.0020175 | U65: 0.0105625 | V65: 0.00794895
A66: 62 | B66: 918.3333333 | C66: 0 | D66: 918.3333333 | E66: 0 | F66: 918.3333333 | G66: 0 | H66: 1098.528343 | I66: 361.0688054 | J66: 1098.528343 | K66: 361.0688054 | L66: 1098.528343 | M66: 361.0688054 | N66: 0 | O66: 1 | Q66: 2 | R66: 63 | S66: 0.003125 | T66: 0.0020175 | U66: 0.0105625 | V66: 0.00794895
A67: 63 | B67: 918.3333333 | C67: 0 | D67: 918.3333333 | E67: 0 | F67: 918.3333333 | G67: 0 | H67: 1098.528343 | I67: 361.0688054 | J67: 1098.528343 | K67: 361.0688054 | L67: 1098.528343 | M67: 361.0688054 | N67: 0 | O67: 1 | Q67: 63 | R67: 64 | S67: 0.003125 | T67: 0.0020175 | U67: 0.0105625 | V67: 0.00794895
A68: 64 | B68: 918.3333333 | C68: 0 | D68: 918.3333333 | E68: 0 | F68: 918.3333333 | G68: 0 | H68: 1098.528343 | I68: 361.0688054 | J68: 1098.528343 | K68: 361.0688054 | L68: 1098.528343 | M68: 361.0688054 | N68: 0 | O68: 1 | Q68: 64 | R68: 65 | S68: 0.003125 | T68: 0.0020175 | U68: 0.0105625 | V68: 0.00794895
A69: 65 | B69: 918.3333333 | C69: 0 | D69: 918.3333333 | E69: 0 | F69: 918.3333333 | G69: 0 | H69: 1098.528343 | I69: 361.0688054 | J69: 1098.528343 | K69: 361.0688054 | L69: 1098.528343 | M69: 361.0688054 | N69: 0 | O69: 1 | Q69: 65 | R69: 66 | S69: 0.003125 | T69: 0.0020175 | U69: 0.0105625 | V69: 0.00794895
A70: 66 | B70: 918.3333333 | C70: 0 | D70: 918.3333333 | E70: 0 | F70: 918.3333333 | G70: 0 | H70: 1098.528343 | I70: 361.0688054 | J70: 1098.528343 | K70: 361.0688054 | L70: 1098.528343 | M70: 361.0688054 | N70: 0 | O70: 1 | Q70: 66 | R70: 67 | S70: 0.003125 | T70: 0.0020175 | U70: 0.0105625 | V70: 0.00794895
A71: 67 | B71: 918.3333333 | C71: 0 | D71: 918.3333333 | E71: 0 | F71: 918.3333333 | G71: 0 | H71: 1098.528343 | I71: 361.0688054 | J71: 1098.528343 | K71: 361.0688054 | L71: 1098.528343 | M71: 361.0688054 | N71: 0 | O71: 1 | Q71: 67 | R71: 68 | S71: 0.003125 | T71: 0.0020175 | U71: 0.0105625 | V71: 0.00794895
A72: 68 | B72: 918.3333333 | C72: 0 | D72: 918.3333333 | E72: 0 | F72: 918.3333333 | G72: 0 | H72: 1098.528343 | I72: 361.0688054 | J72: 1098.528343 | K72: 361.0688054 | L72: 1098.528343 | M72: 361.0688054 | N72: 0 | O72: 1 | Q72: 68 | R72: 69 | S72: 0.003125 | T72: 0.0020175 | U72: 0.0105625 | V72: 0.00794895
A73: 69 | B73: 918.3333333 | C73: 0 | D73: 918.3333333 | E73: 0 | F73: 918.3333333 | G73: 0 | H73: 1098.528343 | I73: 361.0688054 | J73: 1098.528343 | K73: 361.0688054 | L73: 1098.528343 | M73: 361.0688054 | N73: 0 | O73: 1 | Q73: 69 | R73: 70 | S73: 0.003125 | T73: 0.0020175 | U73: 0.0105625 | V73: 0.00794895
A74: 70 | B74: 918.3333333 | C74: 0 | D74: 918.3333333 | E74: 0 | F74: 918.3333333 | G74: 0 | H74: 1098.528343 | I74: 361.0688054 | J74: 1098.528343 | K74: 361.0688054 | L74: 1098.528343 | M74: 361.0688054 | N74: 0 | O74: 1 | Q74: 70 | R74: 71 | S74: 0.003125 | T74: 0.0020175 | U74: 0.0105625 | V74: 0.00794895
A75: 71 | B75: 918.3333333 | C75: 0 | D75: 918.3333333 | E75: 0 | F75: 918.3333333 | G75: 0 | H75: 1098.528343 | I75: 361.0688054 | J75: 1098.528343 | K75: 361.0688054 | L75: 1098.528343 | M75: 361.0688054 | N75: 0 | O75: 1 | Q75: 71 | R75: 72 | S75: 0.003125 | T75: 0.0020175 | U75: 0.0105625 | V75: 0.00794895
A76: 72 | B76: 918.3333333 | C76: 0 | D76: 918.3333333 | E76: 0 | F76: 918.3333333 | G76: 0 | H76: 1098.528343 | I76: 361.0688054 | J76: 1098.528343 | K76: 361.0688054 | L76: 1098.528343 | M76: 361.0688054 | N76: 0 | O76: 1 | Q76: 72 | R76: 73 | S76: 0.003125 | T76: 0.0020175 | U76: 0.0105625 | V76: 0.00794895
A77: 73 | B77: 918.3333333 | C77: 0 | D77: 918.3333333 | E77: 0 | F77: 918.3333333 | G77: 0 | H77: 1098.528343 | I77: 361.0688054 | J77: 1098.528343 | K77: 361.0688054 | L77: 1098.528343 | M77: 361.0688054 | N77: 0 | O77: 1 | Q77: 73 | R77: 74 | S77: 0.003125 | T77: 0.0020175 | U77: 0.0105625 | V77: 0.00794895
A78: 74 | B78: 918.3333333 | C78: 0 | D78: 918.3333333 | E78: 0 | F78: 918.3333333 | G78: 0 | H78: 1098.528343 | I78: 361.0688054 | J78: 1098.528343 | K78: 361.0688054 | L78: 1098.528343 | M78: 361.0688054 | N78: 0 | O78: 1 | Q78: 74 | R78: 75 | S78: 0.003125 | T78: 0.0020175 | U78: 0.0105625 | V78: 0.00794895
A79: 75 | B79: 918.3333333 | C79: 0 | D79: 918.3333333 | E79: 0 | F79: 918.3333333 | G79: 0 | H79: 1098.528343 | I79: 361.0688054 | J79: 1098.528343 | K79: 361.0688054 | L79: 1098.528343 | M79: 361.0688054 | N79: 0 | O79: 1 | Q79: 75 | R79: 76 | S79: 0.003125 | T79: 0.0020175 | U79: 0.0105625 | V79: 0.00794895
A80: 76 | B80: 918.3333333 | C80: 0 | D80: 918.3333333 | E80: 0 | F80: 918.3333333 | G80: 0 | H80: 1098.528343 | I80: 361.0688054 | J80: 1098.528343 | K80: 361.0688054 | L80: 1098.528343 | M80: 361.0688054 | N80: 0 | O80: 1 | Q80: 76 | R80: 77 | S80: 0.003125 | T80: 0.0020175 | U80: 0.0105625 | V80: 0.00794895
A81: 77 | B81: 918.3333333 | C81: 0 | D81: 918.3333333 | E81: 0 | F81: 918.3333333 | G81: 0 | H81: 1098.528343 | I81: 361.0688054 | J81: 1098.528343 | K81: 361.0688054 | L81: 1098.528343 | M81: 361.0688054 | N81: 0 | O81: 1 | Q81: 77 | R81: 78 | S81: 0.003125 | T81: 0.0020175 | U81: 0.0105625 | V81: 0.00794895
A82: 78 | B82: 918.3333333 | C82: 0 | D82: 918.3333333 | E82: 0 | F82: 918.3333333 | G82: 0 | H82: 1098.528343 | I82: 361.0688054 | J82: 1098.528343 | K82: 361.0688054 | L82: 1098.528343 | M82: 361.0688054 | N82: 0 | O82: 1 | Q82: 78 | R82: 79 | S82: 0.003125 | T82: 0.0020175 | U82: 0.0105625 | V82: 0.00794895
A83: 79 | B83: 918.3333333 | C83: 0 | D83: 918.3333333 | E83: 0 | F83: 918.3333333 | G83: 0 | H83: 1098.528343 | I83: 361.0688054 | J83: 1098.528343 | K83: 361.0688054 | L83: 1098.528343 | M83: 361.0688054 | N83: 0 | O83: 1 | Q83: 79 | R83: 80 | S83: 0.003125 | T83: 0.0020175 | U83: 0.0105625 | V83: 0.00794895
A84: 80 | B84: 918.3333333 | C84: 0 | D84: 918.3333333 | E84: 0 | F84: 918.3333333 | G84: 0 | H84: 1098.528343 | I84: 361.0688054 | J84: 1098.528343 | K84: 361.0688054 | L84: 1098.528343 | M84: 361.0688054 | N84: 0 | O84: 1 | Q84: 80 | R84: 81 | S84: 0.003125 | T84: 0.0020175 | U84: 0.0105625 | V84: 0.00794895
A85: 81 | B85: 918.3333333 | C85: 0 | D85: 918.3333333 | E85: 0 | F85: 918.3333333 | G85: 0 | H85: 1098.528343 | I85: 361.0688054 | J85: 1098.528343 | K85: 361.0688054 | L85: 1098.528343 | M85: 361.0688054 | N85: 0 | O85: 1 | Q85: 81 | R85: 82 | S85: 0.003125 | T85: 0.0020175 | U85: 0.0105625 | V85: 0.00794895
A86: 82 | B86: 918.3333333 | C86: 0 | D86: 918.3333333 | E86: 0 | F86: 918.3333333 | G86: 0 | H86: 1098.528343 | I86: 361.0688054 | J86: 1098.528343 | K86: 361.0688054 | L86: 1098.528343 | M86: 361.0688054 | N86: 0 | O86: 1 | Q86: 2 | R86: 83 | S86: 0.003125 | T86: 0.0020175 | U86: 0.0105625 | V86: 0.00794895
A87: 83 | B87: 918.3333333 | C87: 0 | D87: 918.3333333 | E87: 0 | F87: 918.3333333 | G87: 0 | H87: 1098.528343 | I87: 361.0688054 | J87: 1098.528343 | K87: 361.0688054 | L87: 1098.528343 | M87: 361.0688054 | N87: 0 | O87: 1 | Q87: 83 | R87: 84 | S87: 0.003125 | T87: 0.0020175 | U87: 0.0105625 | V87: 0.00794895
A88: 84 | B88: 918.3333333 | C88: 0 | D88: 918.3333333 | E88: 0 | F88: 918.3333333 | G88: 0 | H88: 1098.528343 | I88: 361.0688054 | J88: 1098.528343 | K88: 361.0688054 | L88: 1098.528343 | M88: 361.0688054 | N88: 0 | O88: 1 | Q88: 84 | R88: 85 | S88: 0.003125 | T88: 0.0020175 | U88: 0.0105625 | V88: 0.00794895
A89: 85 | B89: 918.3333333 | C89: 0 | D89: 918.3333333 | E89: 0 | F89: 918.3333333 | G89: 0 | H89: 1098.528343 | I89: 361.0688054 | J89: 1098.528343 | K89: 361.0688054 | L89: 1098.528343 | M89: 361.0688054 | N89: 0 | O89: 1 | Q89: 85 | R89: 86 | S89: 0.003125 | T89: 0.0020175 | U89: 0.0105625 | V89: 0.00794895
A90: 86 | B90: 918.3333333 | C90: 0 | D90: 918.3333333 | E90: 0 | F90: 918.3333333 | G90: 0 | H90: 1098.528343 | I90: 361.0688054 | J90: 1098.528343 | K90: 361.0688054 | L90: 1098.528343 | M90: 361.0688054 | N90: 0 | O90: 1 | Q90: 86 | R90: 87 | S90: 0.003125 | T90: 0.0020175 | U90: 0.0105625 | V90: 0.00794895
A91: 87 | B91: 918.3333333 | C91: 0 | D91: 918.3333333 | E91: 0 | F91: 918.3333333 | G91: 0 | H91: 1098.528343 | I91: 361.0688054 | J91: 1098.528343 | K91: 361.0688054 | L91: 1098.528343 | M91: 361.0688054 | N91: 0 | O91: 1 | Q91: 87 | R91: 88 | S91: 0.003125 | T91: 0.0020175 | U91: 0.0105625 | V91: 0.00794895
A92: 88 | B92: 918.3333333 | C92: 0 | D92: 918.3333333 | E92: 0 | F92: 918.3333333 | G92: 0 | H92: 1098.528343 | I92: 361.0688054 | J92: 1098.528343 | K92: 361.0688054 | L92: 1098.528343 | M92: 361.0688054 | N92: 0 | O92: 1 | Q92: 88 | R92: 89 | S92: 0.003125 | T92: 0.0020175 | U92: 0.0105625 | V92: 0.00794895
A93: 89 | B93: 918.3333333 | C93: 0 | D93: 918.3333333 | E93: 0 | F93: 918.3333333 | G93: 0 | H93: 1098.528343 | I93: 361.0688054 | J93: 1098.528343 | K93: 361.0688054 | L93: 1098.528343 | M93: 361.0688054 | N93: 0 | O93: 1 | Q93: 89 | R93: 90 | S93: 0.003125 | T93: 0.0020175 | U93: 0.0105625 | V93: 0.00794895
A94: 90 | B94: 918.3333333 | C94: 0 | D94: 918.3333333 | E94: 0 | F94: 918.3333333 | G94: 0 | H94: 1098.528343 | I94: 361.0688054 | J94: 1098.528343 | K94: 361.0688054 | L94: 1098.528343 | M94: 361.0688054 | N94: 0 | O94: 1 | Q94: 90 | R94: 91 | S94: 0.003125 | T94: 0.0020175 | U94: 0.0105625 | V94: 0.00794895
A95: 91 | B95: 918.3333333 | C95: 0 | D95: 918.3333333 | E95: 0 | F95: 918.3333333 | G95: 0 | H95: 1098.528343 | I95: 361.0688054 | J95: 1098.528343 | K95: 361.0688054 | L95: 1098.528343 | M95: 361.0688054 | N95: 0 | O95: 1 | Q95: 91 | R95: 92 | S95: 0.003125 | T95: 0.0020175 | U95: 0.0105625 | V95: 0.00794895
A96: 92 | B96: 918.3333333 | C96: 0 | D96: 918.3333333 | E96: 0 | F96: 918.3333333 | G96: 0 | H96: 1098.528343 | I96: 361.0688054 | J96: 1098.528343 | K96: 361.0688054 | L96: 1098.528343 | M96: 361.0688054 | N96: 0 | O96: 1 | Q96: 92 | R96: 93 | S96: 0.003125 | T96: 0.0020175 | U96: 0.0105625 | V96: 0.00794895
A97: 93 | B97: 918.3333333 | C97: 0 | D97: 918.3333333 | E97: 0 | F97: 918.3333333 | G97: 0 | H97: 1098.528343 | I97: 361.0688054 | J97: 1098.528343 | K97: 361.0688054 | L97: 1098.528343 | M97: 361.0688054 | N97: 0 | O97: 1 | Q97: 93 | R97: 94 | S97: 0.003125 | T97: 0.0020175 | U97: 0.0105625 | V97: 0.00794895
A98: 94 | B98: 918.3333333 | C98: 0 | D98: 918.3333333 | E98: 0 | F98: 918.3333333 | G98: 0 | H98: 1098.528343 | I98: 361.0688054 | J98: 1098.528343 | K98: 361.0688054 | L98: 1098.528343 | M98: 361.0688054 | N98: 0 | O98: 1 | Q98: 94 | R98: 95 | S98: 0.003125 | T98: 0.0020175 | U98: 0.0105625 | V98: 0.00794895
A99: 95 | B99: 918.3333333 | C99: 0 | D99: 918.3333333 | E99: 0 | F99: 918.3333333 | G99: 0 | H99: 1098.528343 | I99: 361.0688054 | J99: 1098.528343 | K99: 361.0688054 | L99: 1098.528343 | M99: 361.0688054 | N99: 0 | O99: 1 | Q99: 95 | R99: 96 | S99: 0.003125 | T99: 0.0020175 | U99: 0.0105625 | V99: 0.00794895
A100: 96 | B100: 918.3333333 | C100: 0 | D100: 918.3333333 | E100: 0 | F100: 918.3333333 | G100: 0 | H100: 1098.528343 | I100: 361.0688054 | J100: 1098.528343 | K100: 361.0688054 | L100: 1098.528343 | M100: 361.0688054 | N100: 0 | O100: 1 | Q100: 96 | R100: 97 | S100: 0.003125 | T100: 0.0020175 | U100: 0.0105625 | V100: 0.00794895
A101: 97 | B101: 918.3333333 | C101: 0 | D101: 918.3333333 | E101: 0 | F101: 918.3333333 | G101: 0 | H101: 1098.528343 | I101: 361.0688054 | J101: 1098.528343 | K101: 361.0688054 | L101: 1098.528343 | M101: 361.0688054 | N101: 0 | O101: 1 | Q101: 97 | R101: 98 | S101: 0.003125 | T101: 0.0020175 | U101: 0.0105625 | V101: 0.00794895
A102: 98 | B102: 918.3333333 | C102: 0 | D102: 918.3333333 | E102: 0 | F102: 918.3333333 | G102: 0 | H102: 1098.528343 | I102: 361.0688054 | J102: 1098.528343 | K102: 361.0688054 | L102: 1098.528343 | M102: 361.0688054 | N102: 0 | O102: 1 | Q102: 98 | R102: 99 | S102: 0.003125 | T102: 0.0020175 | U102: 0.0105625 | V102: 0.00794895
A103: 99 | B103: 918.3333333 | C103: 0 | D103: 918.3333333 | E103: 0 | F103: 918.3333333 | G103: 0 | H103: 1098.528343 | I103: 361.0688054 | J103: 1098.528343 | K103: 361.0688054 | L103: 1098.528343 | M103: 361.0688054 | N103: 0 | O103: 1 | Q103: 99 | R103: 100 | S103: 0.003125 | T103: 0.0020175 | U103: 0.0105625 | V103: 0.00794895
A104: 100 | B104: 918.3333333 | C104: 0 | D104: 918.3333333 | E104: 0 | F104: 918.3333333 | G104: 0 | H104: 1098.528343 | I104: 361.0688054 | J104: 1098.528343 | K104: 361.0688054 | L104: 1098.528343 | M104: 361.0688054 | N104: 0 | O104: 1 | Q104: 100 | R104: 101 | S104: 0.003125 | T104: 0.0020175 | U104: 0.0105625 | V104: 0.00794895
A105: 101 | B105: 918.3333333 | C105: 0 | D105: 918.3333333 | E105: 0 | F105: 918.3333333 | G105: 0 | H105: 1098.528343 | I105: 361.0688054 | J105: 1098.528343 | K105: 361.0688054 | L105: 1098.528343 | M105: 361.0688054 | N105: 0 | O105: 1 | Q105: 101 | R105: 102 | S105: 0.003125 | T105: 0.0020175 | U105: 0.0105625 | V105: 0.00794895
A106: 102 | B106: 918.3333333 | C106: 0 | D106: 918.3333333 | E106: 0 | F106: 918.3333333 | G106: 0 | H106: 1098.528343 | I106: 361.0688054 | J106: 1098.528343 | K106: 361.0688054 | L106: 1098.528343 | M106: 361.0688054 | N106: 0 | O106: 1

Sheet Outputs (hidden)
A1: Knot Results | S1: Line Results
B3: Phase Values | L3: Sequence Components | T3: PhaseValues | AB3: Sequence Components
B4: Voltage in p.u. | F4: Voltage | I4: Angle | L4: Voltage in p.u | O4: Angle | T4: Current | X4: Angle | AB4: Current | AE4: Angle
AI5: Iterations Newton Raphson | AJ5: Iterations CurrentInjection | AK5: Calculation Times
A6: Knot Nr. | B6: U1 in p.u. | C6: U2 in p.u. | D6: U3 in p.u. | E6: Un in p.u. | F6: U1 | G6: U2 | H6: U3 | I6: Phi1 | J6: Phi2 | K6: Phi3 | L6: U_Zero | M6: U_Pos | N6: U_Neg | O6: Phi_Zero | P6: Phi_Pos | Q6: Phi_Neg | S6: Line Nr. | T6: I1 | U6: I2 | V6: I3 | W6: In | X6: Phi1 | Y6: Phi2 | Z6: Phi3 | AA6: PhiN | AB6: I_Zero | AC6: I_Pos | AD6: I_Neg | AE6: Phi_Zero | AF6: Phi_Pos | AG6: Phi_Neg | AI6: 5 | AJ6: 0 | AK6: 0.6328125
A7: 1 | B7: 1 | C7: 1 | D7: 1 | E7: 2.775557562e-16 | F7: 230.9401077 | G7: 230.9401077 | H7: 230.9401077 | I7: -1.697404166e-15 | J7: -120 | K7: 120 | L7: 2.775557562e-16 | M7: 1 | N7: 2.775557562e-17 | O7: 0 | P7: 1.420536924e-14 | Q7: 0 | S7: 1 | T7: 889.8681379 | U7: 889.8681379 | V7: 889.8681379 | W7: 2.808388501e-11 | X7: -9.726127915 | Y7: -129.7261279 | Z7: 110.2738721 | AA7: 0.8698083692 | AB7: 9.319446733e-12 | AC7: 889.8681379 | AD7: 8.955779123e-13 | AE7: -178.6289223 | AF7: -9.726127915 | AG7: -102.7937635
A8: 2 | B8: 0.9951925786 | C8: 0.9951925786 | D8: 0.9951925786 | E8: 6.800446601e-18 | F8: 229.8298813 | G8: 229.8298813 | H8: 229.8298813 | I8: -1.748862062 | J8: -121.7488621 | K8: 118.2511379 | L8: 6.800446601e-18 | M8: 0.9951925786 | N8: 7.364394781e-18 | O8: -151.8206299 | P8: -1.748862062 | Q8: 109.7087675 | S8: 2 | T8: 177.9736276 | U8: 177.9736276 | V8: 177.9736276 | W8: 8.038873388e-14 | X8: -9.726127915 | Y8: -129.7261279 | Z8: 110.2738721 | AA8: 135 | AB8: 4.79044571e-14 | AC8: 177.9736276 | AD8: 4.144210453e-14 | AE8: -62.02052561 | AF8: -9.726127915 | AG8: -163.1416012
A9: 3 | B9: 0.9925925657 | C9: 0.9925925657 | D9: 0.9925925657 | E9: 8.722805956e-18 | F9: 229.229434 | G9: 229.229434 | H9: 229.229434 | I9: -1.818448566 | J9: -121.8184486 | K9: 118.1815514 | L9: 8.722805956e-18 | M9: 0.9925925657 | N9: 7.719775367e-18 | O9: -166.406999 | P9: -1.818448566 | Q9: 105.414196 | S9: 3 | T9: 169.0689561 | U9: 169.0689561 | V9: 169.0689561 | W9: 8.293893593e-14 | X9: -9.717853359 | Y9: -129.7178534 | Z9: 110.2821466 | AA9: 133.2642954 | AB9: 4.567811192e-14 | AC9: 169.0689561 | AD9: 3.914790867e-14 | AE9: -60.87218385 | AF9: -9.717853359 | AG9: -162.1213034
A10: 4 | B10: 0.9901241702 | C10: 0.9901241702 | D10: 0.9901241702 | E10: 1.091384271e-17 | F10: 228.6593825 | G10: 228.6593825 | H10: 228.6593825 | I10: -1.884912424 | J10: -121.8849124 | K10: 118.1150876 | L10: 1.091384271e-17 | M10: 0.9901241702 | N10: 8.10059321e-18 | O10: -174.7934452 | P10: -1.884912424 | Q10: 101.7723871 | S10: 4 | T10: 160.1653703 | U10: 160.1653703 | V10: 160.1653703 | W10: 8.556067555e-14 | X10: -9.710055109 | Y10: -129.7100551 | Z10: 110.2899449 | AA10: 131.6335393 | AB10: 4.364840048e-14 | AC10: 160.1653703 | AD10: 3.671376568e-14 | AE10: -60.47036823 | AF10: -9.710055109 | AG10: -161.6836758
A11: 5 | B11: 0.9877871502 | C11: 0.9877871502 | D11: 0.9877871502 | E11: 1.31599789e-17 | F11: 228.1196708 | G11: 228.1196708 | H11: 228.1196708 | I11: -1.948200895 | J11: -121.9482009 | K11: 118.0517991 | L11: 1.31599789e-17 | M11: 0.9877871502 | N11: 8.488165521e-18 | O11: 179.9732365 | P11: -1.948200895 | Q11: 98.68605087 | S11: 5 | T11: 151.2627702 | U11: 151.2627702 | V11: 151.2627702 | W11: 9.099386826e-14 | X11: -9.702725366 | Y11: -129.7027254 | Z11: 110.2972746 | AA11: 128.6598083 | AB11: 4.186103055e-14 | AC11: 151.2627702 | AD11: 3.458744548e-14 | AE11: -60.78562002 | AF11: -9.702725366 | AG11: -162.1946498
A12: 6 | B12: 0.9855812748 | C12: 0.9855812748 | D12: 0.9855812748 | E12: 1.538289268e-17 | F12: 227.6102457 | G12: 227.6102457 | H12: 227.6102457 | I12: -2.008263464 | J12: -122.0082635 | K12: 117.9917365 | L12: 1.538289268e-17 | M12: 0.9855812748 | N12: 8.870357745e-18 | O12: 176.3699355 | P12: -2.008263464 | Q12: 96.00952791 | S12: 6 | T12: 142.3610625 | U12: 142.3610625 | V12: 142.3610625 | W12: 7.553172887e-14 | X12: -9.695856643 | Y12: -129.6958566 | Z12: 110.3041434 | AA12: 138.8140748 | AB12: 3.977257529e-14 | AC12: 142.3610625 | AD12: 3.223472853e-14 | AE12: -60.49134434 | AF12: -9.695856643 | AG12: -162.6459754
A13: 7 | B13: 0.9835063244 | C13: 0.9835063244 | D13: 0.9835063244 | E13: 1.754075228e-17 | F13: 227.1310565 | G13: 227.1310565 | H13: 227.1310565 | I13: -2.065051931 | J13: -122.0650519 | K13: 117.9349481 | L13: 1.754075228e-17 | M13: 0.9835063244 | N13: 9.23976368e-18 | O13: 173.838175 | P13: -2.065051931 | Q13: 93.70043654 | S13: 7 | T13: 133.4601606 | U13: 133.4601606 | V13: 133.4601606 | W13: 4.832213033e-14 | X13: -9.689441786 | Y13: -129.6894418 | Z13: 110.3105582 | AA13: 126.0273734 | AB13: 3.786881879e-14 | AC13: 133.4601606 | AD13: 3.011447978e-14 | AE13: -61.15733986 | AF13: -9.689441786 | AG13: -163.3007558
A14: 8 | B14: 0.9815620908 | C14: 0.9815620908 | D14: 0.9815620908 | E14: 1.961344117e-17 | F14: 226.6820549 | G14: 226.6820549 | H14: 226.6820549 | I14: -2.11852049 | J14: -122.1185205 | K14: 117.8814795 | L14: 1.961344117e-17 | M14: 0.9815620908 | N14: 9.593713924e-18 | O14: 171.8776636 | P14: -2.11852049 | Q14: 91.68211776 | S14: 8 | T14: 124.5599839 | U14: 124.5599839 | V14: 124.5599839 | W14: 3.826389735e-14 | X14: -9.683473989 | Y14: -129.683474 | Z14: 110.316526 | AA14: 111.8014095 | AB14: 3.524213596e-14 | AC14: 124.5599839 | AD14: 2.827801466e-14 | AE14: -60.81254736 | AF14: -9.683473989 | AG14: -162.1811111
A15: 9 | B15: 0.9797483775 | C15: 0.9797483775 | D15: 0.9797483775 | E15: 2.156217766e-17 | F15: 226.2631958 | G15: 226.2631958 | H15: 226.2631958 | I15: -2.1686258 | J15: -122.1686258 | K15: 117.8313742 | L15: 2.156217766e-17 | M15: 0.9797483775 | N15: 9.941862934e-18 | O15: 170.424577 | P15: -2.1686258 | Q15: 89.95919954 | S15: 9 | T15: 115.6604576 | U15: 115.6604576 | V15: 115.6604576 | W15: 4.832213033e-14 | X15: -9.677946807 | Y15: -129.6779468 | Z15: 110.3220532 | AA15: 126.0273734 | AB15: 3.26169349e-14 | AC15: 115.6604576 | AD15: 2.652908931e-14 | AE15: -60.41223653 | AF15: -9.677946807 | AG15: -162.0575529
A16: 10 | B16: 0.9780650003 | C16: 0.9780650003 | D16: 0.9780650003 | E16: 2.337904764e-17 | F16: 225.8744365 | G16: 225.8744365 | H16: 225.8744365 | I16: -2.215327068 | J16: -122.2153271 | K16: 117.7846729 | L16: 2.337904764e-17 | M16: 0.9780650003 | N16: 1.027667616e-17 | O16: 169.3274056 | P16: -2.215327068 | Q16: 88.45429257 | S16: 10 | T16: 106.7615124 | U16: 106.7615124 | V16: 106.7615124 | W16: 3.826389735e-14 | X16: -9.672854176 | Y16: -129.6728542 | Z16: 110.3271458 | AA16: 111.8014095 | AB16: 3.05301081e-14 | AC16: 106.7615124 | AD16: 2.432376778e-14 | AE16: -60.00333223 | AF16: -9.672854176 | AG16: -161.5650512
A17: 11 | B17: 0.9765117868 | C17: 0.9765117868 | D17: 0.9765117868 | E17: 2.508888151e-17 | F17: 225.5157372 | G17: 225.5157372 | H17: 225.5157372 | I17: -2.258586108 | J17: -122.2585861 | K17: 117.7414139 | L17: 2.508888151e-17 | M17: 0.9765117868 | N17: 1.059149294e-17 | O17: 168.4726132 | P17: -2.258586108 | Q17: 87.17362735 | S17: 11 | T17: 97.86308389 | U17: 97.86308389 | V17: 97.86308389 | W17: 4.019436694e-14 | X17: -9.66819042 | Y17: -129.6681904 | Z17: 110.3318096 | AA17: 135 | AB17: 2.832394955e-14 | AC17: 97.86308389 | AD17: 2.234797873e-14 | AE17: -59.95356475 | AF17: -9.66819042 | AG17: -161.17529
A18: 12 | B18: 0.9750885772 | C18: 0.9750885772 | D18: 0.9750885772 | E18: 2.667979955e-17 | F18: 225.187061 | G18: 225.187061 | H18: 225.187061 | I18: -2.298367414 | J18: -122.2983674 | K18: 117.7016326 | L18: 2.667979955e-17 | M18: 0.9750885772 | N18: 1.088653194e-17 | O18: 167.780673 | P18: -2.298367414 | Q18: 86.0733939 | S18: 12 | T18: 88.96511249 | U18: 88.96511249 | V18: 88.96511249 | W18: 6.355287432e-14 | X18: -9.66395027 | Y18: -129.6639503 | Z18: 110.3360497 | AA18: 116.5650512 | AB18: 2.546139163e-14 | AC18: 88.96511249 | AD18: 2.113619431e-14 | AE18: -60.28866424 | AF18: -9.66395027 | AG18: -162.8014588
A19: 13 | B19: 0.9737952243 | C19: 0.9737952243 | D19: 0.9737952243 | E19: 2.811136056e-17 | F19: 224.888374 | G19: 224.888374 | H19: 224.888374 | I19: -2.334638216 | J19: -122.3346382 | K19: 117.6653618 | L19: 2.811136056e-17 | M19: 0.9737952243 | N19: 1.116364416e-17 | O19: 167.2084871 | P19: -2.334638216 | Q19: 85.04564241 | S19: 13 | T19: 80.06754286 | U19: 80.06754286 | V19: 80.06754286 | W19: 3.552713679e-14 | X19: -9.660128874 | Y19: -129.6601289 | Z19: 110.3398711 | AA19: 143.1301024 | AB19: 2.259992525e-14 | AC19: 80.06754286 | AD19: 1.878736759e-14 | AE19: -60.70863783 | AF19: -9.660128874 | AG19: -163.6518285
A20: 14 | B20: 0.9726315937 | C20: 0.9726315937 | D20: 0.9726315937 | E20: 2.938247772e-17 | F20: 224.619645 | G20: 224.619645 | H20: 224.619645 | I20: -2.36736854 | J20: -122.3673685 | K20: 117.6326315 | L20: 2.938247772e-17 | M20: 0.9726315937 | N20: 1.141029136e-17 | O20: 166.7291578 | P20: -2.36736854 | Q20: 84.15567112 | S20: 14 | T20: 71.17032358 | U20: 71.17032358 | V20: 71.17032358 | W20: 4.146946797e-14 | X20: -9.656721805 | Y20: -129.6567218 | Z20: 110.3432782 | AA20: 133.2642954 | AB20: 1.956915711e-14 | AC20: 71.17032358 | AD20: 1.749922459e-14 | AE20: -62.17590362 | AF20: -9.656721805 | AG20: -164.0546041
A21: 15 | B21: 0.9715975639 | C21: 0.9715975639 | D21: 0.9715975639 | E21: 3.047928907e-17 | F21: 224.380846 | G21: 224.380846 | H21: 224.380846 | I21: -2.396531256 | J21: -122.3965313 | K21: 117.6034687 | L21: 3.047928907e-17 | M21: 0.9715975639 | N21: 1.164128367e-17 | O21: 166.2934595 | P21: -2.396531256 | Q21: 83.35276518 | S21: 15 | T21: 62.27340679 | U21: 62.27340679 | V21: 62.27340679 | W21: 2.586414599e-14 | X21: -9.653725076 | Y21: -129.6537251 | Z21: 110.3462749 | AA21: 105.9453959 | AB21: 1.730833334e-14 | AC21: 62.27340679 | AD21: 1.492620434e-14 | AE21: -62.72323662 | AF21: -9.653725076 | AG21: -165.0685828
A22: 16 | B22: 0.9706930265 | C22: 0.9706930265 | D22: 0.9706930265 | E22: 3.144888566e-17 | F22: 224.1719521 | G22: 224.1719521 | H22: 224.1719521 | I22: -2.422102128 | J22: -122.4221021 | K22: 117.5778979 | L22: 3.144888566e-17 | M22: 0.9706930265 | N22: 1.183764916e-17 | O22: 165.9165392 | P22: -2.422102128 | Q22: 82.67579106 | S22: 16 | T22: 53.37674774 | U22: 53.37674774 | V22: 53.37674774 | W22: 1.913194867e-14 | X22: -9.651135146 | Y22: -129.6511351 | Z22: 110.3488649 | AA22: 111.8014095 | AB22: 1.462115672e-14 | AC22: 53.37674774 | AD22: 1.271238694e-14 | AE22: -62.59242456 | AF22: -9.651135146 | AG22: -164.6498635
A23: 17 | B23: 0.9699178863 | C23: 0.9699178863 | D23: 0.9699178863 | E23: 3.226932558e-17 | F23: 223.9929411 | G23: 223.9929411 | H23: 223.9929411 | I23: -2.444059857 | J23: -122.4440599 | K23: 117.5559401 | L23: 3.226932558e-17 | M23: 0.9699178863 | N23: 1.200699338e-17 | O23: 165.6191236 | P23: -2.444059857 | Q23: 82.12266078 | S23: 17 | T23: 44.48030447 | U23: 44.48030447 | V23: 44.48030447 | W23: 2.488485103e-14 | X23: -9.648948931 | Y23: -129.6489489 | Z23: 110.3510511 | AA23: 124.8244892 | AB23: 1.210533744e-14 | AC23: 44.48030447 | AD23: 1.096257399e-14 | AE23: -65.9797532 | AF23: -9.648948931 | AG23: -164.7448813
A24: 18 | B24: 0.9692720616 | C24: 0.9692720616 | D24: 0.9692720616 | E24: 3.294023768e-17 | F24: 223.8437943 | G24: 223.8437943 | H24: 223.8437943 | I24: -2.462386115 | J24: -122.4623861 | K24: 117.5376139 | L24: 3.294023768e-17 | M24: 0.9692720616 | N24: 1.215374158e-17 | O24: 165.3145958 | P24: -2.462386115 | Q24: 81.65692972 | S24: 18 | T24: 35.58403738 | U24: 35.58403738 | V24: 35.58403738 | W24: 1.509903313e-14 | X24: -9.647163808 | Y24: -129.6471638 | Z24: 110.3528362 | AA24: 118.0724869 | AB24: 9.910722838e-15 | AC24: 35.58403738 | AD24: 9.212802649e-15 | AE24: -67.16634582 | AF24: -9.647163808 | AG24: -164.8759927
A25: 19 | B25: 0.968755484 | C25: 0.968755484 | D25: 0.968755484 | E25: 3.348720942e-17 | F25: 223.7244958 | G25: 223.7244958 | H25: 223.7244958 | I25: -2.47706558 | J25: -122.4770656 | K25: 117.5229344 | L25: 3.348720942e-17 | M25: 0.968755484 | N25: 1.227748803e-17 | O25: 165.0549207 | P25: -2.47706558 | Q25: 81.27284037 | S25: 19 | T25: 26.68790887 | U25: 26.68790887 | V25: 26.68790887 | W25: 8.747542958e-15 | X25: -9.645777623 | Y25: -129.6457776 | Z25: 110.3542224 | AA25: 113.962489 | AB25: 7.640034148e-15 | AC25: 26.68790887 | AD25: 7.118371783e-15 | AE25: -70.70995378 | AF25: -9.645777623 | AG25: -168.3106308
A26: 20 | B26: 0.9683680989 | C26: 0.9683680989 | D26: 0.9683680989 | E26: 3.390149592e-17 | F26: 223.635033 | G26: 223.635033 | H26: 223.635033 | I26: -2.488085961 | J26: -122.488086 | K26: 117.511914 | L26: 3.390149592e-17 | M26: 0.9683680989 | N26: 1.236955965e-17 | O26: 164.8167158 | P26: -2.488085961 | Q26: 80.95518013 | S26: 20 | T26: 17.7918829 | U26: 17.7918829 | V26: 17.7918829 | W26: 8.881784197e-15 | X26: -9.644788694 | Y26: -129.6447887 | Z26: 110.3552113 | AA26: 90 | AB26: 4.985874122e-15 | AC26: 17.7918829 | AD26: 4.667147702e-15 | AE26: -74.62374875 | AF26: -9.644788694 | AG26: -168.111342
A27: 21 | B27: 0.968109865 | C27: 0.968109865 | D27: 0.968109865 | E27: 3.416538937e-17 | F27: 223.5753965 | G27: 223.5753965 | H27: 223.5753965 | I27: -2.495438022 | J27: -122.495438 | K27: 117.504562 | L27: 3.416538937e-17 | M27: 0.968109865 | N27: 1.243028419e-17 | O27: 164.633736 | P27: -2.495438022 | Q27: 80.75043859 | S27: 21 | T27: 8.895924624 | U27: 8.895924624 | V27: 8.895924624 | W27: 2.886579864e-15 | X27: -9.644195819 | Y27: -129.6441958 | Z27: 110.3558042 | AA27: 90 | AB27: 2.014670533e-15 | AC27: 8.895924624 | AD27: 1.982144568e-15 | AE27: -72.64597536 | AF27: -9.644195819 | AG27: -165.9637565
A28: 22 | B28: 0.9679807549 | C28: 0.9679807549 | D28: 0.9679807549 | E28: 3.427356181e-17 | F28: 223.5455798 | G28: 223.5455798 | H28: 223.5455798 | I28: -2.499115595 | J28: -122.4991156 | K28: 117.5008844 | L28: 3.427356181e-17 | M28: 0.9679807549 | N28: 1.245680557e-17 | O28: 164.5668008 | P28: -2.499115595 | Q28: 80.66860533 | S28: 22 | T28: 177.9736276 | U28: 177.9736276 | V28: 177.9736276 | W28: 7.553172887e-14 | X28: -9.726127915 | Y28: -129.7261279 | Z28: 110.2738721 | AA28: 138.8140748 | AB28: 4.549687275e-14 | AC28: 177.9736276 | AD28: 4.15027072e-14 | AE28: -60.04861449 | AF28: -9.726127915 | AG28: -161.7749249
A29: 23 | B29: 0.9925925657 | C29: 0.9925925657 | D29: 0.9925925657 | E29: 8.671362207e-18 | F29: 229.229434 | G29: 229.229434 | H29: 229.229434 | I29: -1.818448566 | J29: -121.8184486 | K29: 118.1815514 | L29: 8.671362207e-18 | M29: 0.9925925657 | N29: 7.733395023e-18 | O29: -165.369423 | P29: -1.818448566 | Q29: 105.4759345 | S29: 23 | T29: 169.0689561 | U29: 169.0689561 | V29: 169.0689561 | W29: 7.324106878e-14 | X29: -9.717853359 | Y29: -129.7178534 | Z29: 110.2821466 | AA29: 140.9061411 | AB29: 4.281443737e-14 | AC29: 169.0689561 | AD29: 3.96807672e-14 | AE29: -59.83618071 | AF29: -9.717853359 | AG29: -160.906508
A30: 24 | B30: 0.9901241702 | C30: 0.9901241702 | D30: 0.9901241702 | E30: 1.071995029e-17 | F30: 228.6593825 | G30: 228.6593825 | H30: 228.6593825 | I30: -1.884912424 | J30: -121.8849124 | K30: 118.1150876 | L30: 1.071995029e-17 | M30: 0.9901241702 | N30: 8.12950178e-18 | O30: -173.3699925 | P30: -1.884912424 | Q30: 101.8508782 | S30: 24 | T30: 160.1653703 | U30: 160.1653703 | V30: 160.1653703 | W30: 7.553172887e-14 | X30: -9.710055109 | Y30: -129.7100551 | Z30: 110.2899449 | AA30: 138.8140748 | AB30: 4.07909593e-14 | AC30: 160.1653703 | AD30: 3.725352491e-14 | AE30: -59.35471092 | AF30: -9.710055109 | AG30: -160.3959118
A31: 25 | B31: 0.9877871502 | C31: 0.9877871502 | D31: 0.9877871502 | E31: 1.281189528e-17 | F31: 228.1196708 | G31: 228.1196708 | H31: 228.1196708 | I31: -1.948200895 | J31: -121.9482009 | K31: 118.0517991 | L31: 1.281189528e-17 | M31: 0.9877871502 | N31: 8.532153269e-18 | O31: -178.4423524 | P31: -1.948200895 | Q31: 98.7900212 | S31: 25 | T31: 151.2627702 | U31: 151.2627702 | V31: 151.2627702 | W31: 4.832213033e-14 | X31: -9.702725366 | Y31: -129.7027254 | Z31: 110.2972746 | AA31: 126.0273734 | AB31: 3.834189413e-14 | AC31: 151.2627702 | AD31: 3.51204011e-14 | AE31: -59.89869543 | AF31: -9.702725366 | AG31: -160.820992
A32: 26 | B32: 0.9855812748 | C32: 0.9855812748 | D32: 0.9855812748 | E32: 1.483707903e-17 | F32: 227.6102457 | G32: 227.6102457 | H32: 227.6102457 | I32: -2.008263464 | J32: -122.0082635 | K32: 117.9917365 | L32: 1.483707903e-17 | M32: 0.9855812748 | N32: 8.929151427e-18 | O32: 178.0417547 | P32: -2.008263464 | Q32: 96.14463757 | S32: 26 | T32: 142.3610625 | U32: 142.3610625 | V32: 142.3610625 | W32: 4.549693413e-14 | X32: -9.695856643 | Y32: -129.6958566 | Z32: 110.3041434 | AA32: 128.6598083 | AB32: 3.625709844e-14 | AC32: 142.3610625 | AD32: 3.276186834e-14 | AE32: -59.52482554 | AF32: -9.695856643 | AG32: -161.1662471
A33: 27 | B33: 0.9835063244 | C33: 0.9835063244 | D33: 0.9835063244 | E33: 1.679564096e-17 | F33: 227.1310565 | G33: 227.1310565 | H33: 227.1310565 | I33: -2.065051931 | J33: -122.0650519 | K33: 117.9349481 | L33: 1.679564096e-17 | M33: 0.9835063244 | N33: 9.313088257e-18 | O33: 175.5496183 | P33: -2.065051931 | Q33: 93.87003747 | S33: 27 | T33: 133.4601606 | U33: 133.4601606 | V33: 133.4601606 | W33: 4.549693413e-14 | X33: -9.689441786 | Y33: -129.6894418 | Z33: 110.3105582 | AA33: 128.6598083 | AB33: 3.458744548e-14 | AC33: 133.4601606 | AD33: 3.101429431e-14 | AE33: -59.51426629 | AF33: -9.689441786 | AG33: -161.0033458
A34: 28 | B34: 0.9815620908 | C34: 0.9815620908 | D34: 0.9815620908 | E34: 1.868763597e-17 | F34: 226.6820549 | G34: 226.6820549 | H34: 226.6820549 | I34: -2.11852049 | J34: -122.1185205 | K34: 117.8814795 | L34: 1.868763597e-17 | M34: 0.9815620908 | N34: 9.689930532e-18 | O34: 173.6634173 | P34: -2.11852049 | Q34: 91.89218517 | S34: 28 | T34: 124.5599839 | U34: 124.5599839 | V34: 124.5599839 | W34: 6.029155041e-14 | X34: -9.683473989 | Y34: -129.683474 | Z34: 110.316526 | AA34: 135 | AB34: 3.196857692e-14 | AC34: 124.5599839 | AD34: 2.920277006e-14 | AE34: -58.99930229 | AF34: -9.683473989 | AG34: -159.7751406
A35: 29 | B35: 0.9797483775 | C35: 0.9797483775 | D35: 0.9797483775 | E35: 2.045530062e-17 | F35: 226.2631958 | G35: 226.2631958 | H35: 226.2631958 | I35: -2.1686258 | J35: -122.1686258 | K35: 117.8313742 | L35: 2.045530062e-17 | M35: 0.9797483775 | N35: 1.006071233e-17 | O35: 172.2763598 | P35: -2.1686258 | Q35: 90.2126996 | S35: 29 | T35: 115.6604576 | U35: 115.6604576 | V35: 115.6604576 | W35: 3.826389735e-14 | X35: -9.677946807 | Y35: -129.6779468 | Z35: 110.3220532 | AA35: 111.8014095 | AB35: 2.970130294e-14 | AC35: 115.6604576 | AD35: 2.668110727e-14 | AE35: -59.07600459 | AF35: -9.677946807 | AG35: -161.0753556
A36: 30 | B36: 0.9780650003 | C36: 0.9780650003 | D36: 0.9780650003 | E36: 2.210615988e-17 | F36: 225.8744365 | G36: 225.8744365 | H36: 225.8744365 | I36: -2.215327068 | J36: -122.2153271 | K36: 117.7846729 | L36: 2.210615988e-17 | M36: 0.9780650003 | N36: 1.04007366e-17 | O36: 171.1812837 | P36: -2.215327068 | Q36: 88.74069529 | S36: 30 | T36: 106.7615124 | U36: 106.7615124 | V36: 106.7615124 | W36: 4.49386684e-14 | X36: -9.672854176 | Y36: -129.6728542 | Z36: 110.3271458 | AA36: 108.4349488 | AB36: 2.762063304e-14 | AC36: 106.7615124 | AD36: 2.448004006e-14 | AE36: -58.52316065 | AF36: -9.672854176 | AG36: -160.4975515
A37: 31 | B37: 0.9765117868 | C37: 0.9765117868 | D37: 0.9765117868 | E37: 2.365085211e-17 | F37: 225.5157372 | G37: 225.5157372 | H37: 225.5157372 | I37: -2.258586108 | J37: -122.2585861 | K37: 117.7414139 | L37: 2.365085211e-17 | M37: 0.9765117868 | N37: 1.072068453e-17 | O37: 170.3365463 | P37: -2.258586108 | Q37: 87.49034921 | S37: 31 | T37: 97.86308389 | U37: 97.86308389 | V37: 97.86308389 | W37: 5.123796534e-14 | X37: -9.66819042 | Y37: -129.6681904 | Z37: 110.3318096 | AA37: 123.6900675 | AB37: 2.54159664e-14 | AC37: 97.86308389 | AD37: 2.250770118e-14 | AE37: -58.3392489 | AF37: -9.66819042 | AG37: -160.0168935
A38: 32 | B38: 0.9750885772 | C38: 0.9750885772 | D38: 0.9750885772 | E38: 2.507715279e-17 | F38: 225.187061 | G38: 225.187061 | H38: 225.187061 | I38: -2.298367414 | J38: -122.2983674 | K38: 117.7016326 | L38: 2.507715279e-17 | M38: 0.9750885772 | N38: 1.102080019e-17 | O38: 169.6617799 | P38: -2.298367414 | Q38: 86.4184137 | S38: 32 | T38: 88.96511249 | U38: 88.96511249 | V38: 88.96511249 | W38: 3.895854697e-14 | X38: -9.66395027 | Y38: -129.6639503 | Z38: 110.3360497 | AA38: 136.8476103 | AB38: 2.308556549e-14 | AC38: 88.96511249 | AD38: 2.105539869e-14 | AE38: -58.62699486 | AF38: -9.66395027 | AG38: -161.3582081
A39: 33 | B39: 0.9737952243 | C39: 0.9737952243 | D39: 0.9737952243 | E39: 2.637415485e-17 | F39: 224.888374 | G39: 224.888374 | H39: 224.888374 | I39: -2.334638216 | J39: -122.3346382 | K39: 117.6653618 | L39: 2.637415485e-17 | M39: 0.9737952243 | N39: 1.130050532e-17 | O39: 169.0980287 | P39: -2.334638216 | Q39: 85.43383455 | S39: 33 | T39: 80.06754286 | U39: 80.06754286 | V39: 80.06754286 | W39: 4.146946797e-14 | X39: -9.660128874 | Y39: -129.6601289 | Z39: 110.3398711 | AA39: 133.2642954 | AB39: 2.063303175e-14 | AC39: 80.06754286 | AD39: 1.892830546e-14 | AE39: -59.55137646 | AF39: -9.660128874 | AG39: -162.2553284
A40: 34 | B40: 0.9726315937 | C40: 0.9726315937 | D40: 0.9726315937 | E40: 2.753178319e-17 | F40: 224.619645 | G40: 224.619645 | H40: 224.619645 | I40: -2.36736854 | J40: -122.3673685 | K40: 117.6326315 | L40: 2.753178319e-17 | M40: 0.9726315937 | N40: 1.155203311e-17 | O40: 168.6001963 | P40: -2.36736854 | Q40: 84.56989638 | S40: 34 | T40: 71.17032358 | U40: 71.17032358 | V40: 71.17032358 | W40: 3.019806627e-14 | X40: -9.656721805 | Y40: -129.6567218 | Z40: 110.3432782 | AA40: 118.0724869 | AB40: 1.872421659e-14 | AC40: 71.17032358 | AD40: 1.703749281e-14 | AE40: -60.80251395 | AF40: -9.656721805 | AG40: -163.6104597
A41: 35 | B41: 0.9715975639 | C41: 0.9715975639 | D41: 0.9715975639 | E41: 2.857936093e-17 | F41: 224.380846 | G41: 224.380846 | H41: 224.380846 | I41: -2.396531256 | J41: -122.3965313 | K41: 117.6034687 | L41: 2.857936093e-17 | M41: 0.9715975639 | N41: 1.177696998e-17 | O41: 168.1373529 | P41: -2.396531256 | Q41: 83.79775278 | S41: 35 | T41: 62.27340679 | U41: 62.27340679 | V41: 62.27340679 | W41: 1.888293222e-14 | X41: -9.653725076 | Y41: -129.6537251 | Z41: 110.3462749 | AA41: 138.8140748 | AB41: 1.64596648e-14 | AC41: 62.27340679 | AD41: 1.459742748e-14 | AE41: -61.18920626 | AF41: -9.653725076 | AG41: -162.7585406
A42: 36 | B42: 0.9706930265 | C42: 0.9706930265 | D42: 0.9706930265 | E42: 2.950038098e-17 | F42: 224.1719521 | G42: 224.1719521 | H42: 224.1719521 | I42: -2.422102128 | J42: -122.4221021 | K42: 117.5778979 | L42: 2.950038098e-17 | M42: 0.9706930265 | N42: 1.197326351e-17 | O42: 167.7455661 | P42: -2.422102128 | Q42: 83.17332131 | S42: 36 | T42: 53.37674774 | U42: 53.37674774 | V42: 53.37674774 | W42: 2.24693342e-14 | X42: -9.651135146 | Y42: -129.6511351 | Z42: 110.3488649 | AA42: 108.4349488 | AB42: 1.419610191e-14 | AC42: 53.37674774 | AD42: 1.248075374e-14 | AE42: -61.69924423 | AF42: -9.651135146 | AG42: -164.3577535
A43: 37 | B43: 0.9699178863 | C43: 0.9699178863 | D43: 0.9699178863 | E43: 3.029429413e-17 | F43: 223.9929411 | G43: 223.9929411 | H43: 223.9929411 | I43: -2.444059857 | J43: -122.4440599 | K43: 117.5559401 | L43: 3.029429413e-17 | M43: 0.9699178863 | N43: 1.213910273e-17 | O43: 167.413417 | P43: -2.444059857 | Q43: 82.6333793 | S43: 37 | T43: 44.48030447 | U43: 44.48030447 | V43: 44.48030447 | W43: 1.551136925e-14 | X43: -9.648948931 | Y43: -129.6489489 | Z43: 110.3510511 | AA43: 156.3706223 | AB43: 1.166786925e-14 | AC43: 44.48030447 | AD43: 1.073085977e-14 | AE43: -65.01876039 | AF43: -9.648948931 | AG43: -164.4071891
A44: 38 | B44: 0.9692720616 | C44: 0.9692720616 | D44: 0.9692720616 | E44: 3.093850233e-17 | F44: 223.8437943 | G44: 223.8437943 | H44: 223.8437943 | I44: -2.462386115 | J44: -122.4623861 | K44: 117.5376139 | L44: 3.093850233e-17 | M44: 0.9692720616 | N44: 1.228244751e-17 | O44: 167.0835313 | P44: -2.462386115 | Q44: 82.18025376 | S44: 38 | T44: 35.58403738 | U44: 35.58403738 | V44: 35.58403738 | W44: 1.668735748e-14 | X44: -9.647163808 | Y44: -129.6471638 | Z44: 110.3528362 | AA44: 115.2011236 | AB44: 9.469493028e-15 | AC44: 35.58403738 | AD44: 8.9809769e-15 | AE44: -66.03751103 | AF44: -9.647163808 | AG44: -164.475889
A45: 39 | B45: 0.968755484 | C45: 0.968755484 | D45: 0.968755484 | E45: 3.145950301e-17 | F45: 223.7244958 | G45: 223.7244958 | H45: 223.7244958 | I45: -2.47706558 | J45: -122.4770656 | K45: 117.5229344 | L45: 3.145950301e-17 | M45: 0.968755484 | N45: 1.240289952e-17 | O45: 166.8088147 | P45: -2.47706558 | Q45: 81.80842063 | S45: 39 | T45: 26.68790887 | U45: 26.68790887 | V45: 26.68790887 | W45: 1.065814104e-14 | X45: -9.645777623 | Y45: -129.6457776 | Z45: 110.3542224 | AA45: 90 | AB45: 7.640034148e-15 | AC45: 26.68790887 | AD45: 7.118371783e-15 | AE45: -70.70995378 | AF45: -9.645777623 | AG45: -168.3106308
A46: 40 | B46: 0.9683680989 | C46: 0.9683680989 | D46: 0.9683680989 | E46: 3.18693587e-17 | F46: 223.635033 | G46: 223.635033 | H46: 223.635033 | I46: -2.488085961 | J46: -122.488086 | K46: 117.511914 | L46: 3.18693587e-17 | M46: 0.9683680989 | N46: 1.249432891e-17 | O46: 166.5327589 | P46: -2.488085961 | Q46: 81.49000775 | S46: 40 | T46: 17.7918829 | U46: 17.7918829 | V46: 17.7918829 | W46: 9.565974336e-15 | X46: -9.644788694 | Y46: -129.6447887 | Z46: 110.3552113 | AA46: 111.8014095 | AB46: 4.985874122e-15 | AC46: 17.7918829 | AD46: 4.667147702e-15 | AE46: -74.62374875 | AF46: -9.644788694 | AG46: -168.111342
A47: 41 | B47: 0.968109865 | C47: 0.968109865 | D47: 0.968109865 | E47: 3.212990509e-17 | F47: 223.5753965 | G47: 223.5753965 | H47: 223.5753965 | I47: -2.495438022 | J47: -122.495438 | K47: 117.504562 | L47: 3.212990509e-17 | M47: 0.968109865 | N47: 1.255463741e-17 | O47: 166.3241912 | P47: -2.495438022 | Q47: 81.28471954 | S47: 41 | T47: 8.895924624 | U47: 8.895924624 | V47: 8.895924624 | W47: 3.552713679e-15 | X47: -9.644195819 | Y47: -129.6441958 | Z47: 110.3558042 | AA47: 90 | AB47: 2.014670533e-15 | AC47: 8.895924624 | AD47: 1.982144568e-15 | AE47: -72.64597536 | AF47: -9.644195819 | AG47: -165.9637565
A48: 42 | B48: 0.9679807549 | C48: 0.9679807549 | D48: 0.9679807549 | E48: 3.223685488e-17 | F48: 223.5455798 | G48: 223.5455798 | H48: 223.5455798 | I48: -2.499115595 | J48: -122.4991156 | K48: 117.5008844 | L48: 3.223685488e-17 | M48: 0.9679807549 | N48: 1.258099196e-17 | O48: 166.2473876 | P48: -2.499115595 | Q48: 81.20257185 | S48: 42 | T48: 177.9736276 | U48: 177.9736276 | V48: 177.9736276 | W48: 7.791709393e-14 | X48: -9.726127915 | Y48: -129.7261279 | Z48: 110.2738721 | AA48: 136.8476103 | AB48: 4.657791649e-14 | AC48: 177.9736276 | AD48: 4.293958886e-14 | AE48: -61.31874657 | AF48: -9.726127915 | AG48: -158.3177084
A49: 43 | B49: 0.9925925657 | C49: 0.9925925657 | D49: 0.9925925657 | E49: 8.684050112e-18 | F49: 229.229434 | G49: 229.229434 | H49: 229.229434 | I49: -1.818448566 | J49: -121.8184486 | K49: 118.1815514 | L49: 8.684050112e-18 | M49: 0.9925925657 | N49: 7.780049343e-18 | O49: -165.9250024 | P49: -1.818448566 | Q49: 105.523657 | S49: 43 | T49: 169.0689561 | U49: 169.0689561 | V49: 169.0689561 | W49: 7.553172887e-14 | X49: -9.717853359 | Y49: -129.7178534 | Z49: 110.2821466 | AA49: 138.8140748 | AB49: 4.406733039e-14 | AC49: 169.0689561 | AD49: 4.079786386e-14 | AE49: -60.77844178 | AF49: -9.717853359 | AG49: -158.5747062
A50: 44 | B50: 0.9901241702 | C50: 0.9901241702 | D50: 0.9901241702 | E50: 1.078660785e-17 | F50: 228.6593825 | G50: 228.6593825 | H50: 228.6593825 | I50: -1.884912424 | J50: -121.8849124 | K50: 118.1150876 | L50: 1.078660785e-17 | M50: 0.9901241702 | N50: 8.20735157e-18 | O50: -174.1823442 | P50: -1.884912424 | Q50: 101.943621 | S50: 44 | T50: 160.1653703 | U50: 160.1653703 | V50: 160.1653703 | W50: 6.355287432e-14 | X50: -9.710055109 | Y50: -129.7100551 | Z50: 110.2899449 | AA50: 116.5650512 | AB50: 4.186103055e-14 | AC50: 160.1653703 | AD50: 3.860994114e-14 | AE50: -60.78562002 | AF50: -9.710055109 | AG50: -158.066115
A51: 45 | B51: 0.9877871502 | C51: 0.9877871502 | D51: 0.9877871502 | E51: 1.292371318e-17 | F51: 228.1196708 | G51: 228.1196708 | H51: 228.1196708 | I51: -1.948200895 | J51: -121.9482009 | K51: 118.0517991 | L51: 1.292371318e-17 | M51: 0.9877871502 | N51: 8.642210652e-18 | O51: -179.4433661 | P51: -1.948200895 | Q51: 98.9189163 | S51: 45 | T51: 151.2627702 | U51: 151.2627702 | V51: 151.2627702 | W51: 6.898122194e-14 | X51: -9.702725366 | Y51: -129.7027254 | Z51: 110.2972746 | AA51: 145.491477 | AB51: 3.95379977e-14 | AC51: 151.2627702 | AD51: 3.651730951e-14 | AE51: -61.09764296 | AF51: -9.702725366 | AG51: -159.1791071
A52: 46 | B52: 0.9855812748 | C52: 0.9855812748 | D52: 0.9855812748 | E52: 1.500982503e-17 | F52: 227.6102457 | G52: 227.6102457 | H52: 227.6102457 | I52: -2.008263464 | J52: -122.0082635 | K52: 117.9917365 | L52: 1.500982503e-17 | M52: 0.9855812748 | N52: 9.065907701e-18 | O52: 176.9455068 | P52: -2.008263464 | Q52: 96.27800687 | S52: 46 | T52: 142.3610625 | U52: 142.3610625 | V52: 142.3610625 | W52: 3.776586444e-14 | X52: -9.695856643 | Y52: -129.6958566 | Z52: 110.3041434 | AA52: 138.8140748 | AB52: 3.738995149e-14 | AC52: 142.3610625 | AD52: 3.410210459e-14 | AE52: -60.96328406 | AF52: -9.695856643 | AG52: -158.4985657
A53: 47 | B53: 0.9835063244 | C53: 0.9835063244 | D53: 0.9835063244 | E53: 1.70258654e-17 | F53: 227.1310565 | G53: 227.1310565 | H53: 227.1310565 | I53: -2.065051931 | J53: -122.0650519 | K53: 117.9349481 | L53: 1.70258654e-17 | M53: 0.9835063244 | N53: 9.481648573e-18 | O53: 174.3699661 | P53: -2.065051931 | Q53: 94.05952125 | S53: 47 | T53: 133.4601606 | U53: 133.4601606 | V53: 133.4601606 | W53: 6.355287432e-14 | X53: -9.689441786 | Y53: -129.6894418 | Z53: 110.3105582 | AA53: 153.4349488 | AB53: 3.501020965e-14 | AC53: 133.4601606 | AD53: 3.173707771e-14 | AE53: -61.49942252 | AF53: -9.689441786 | AG53: -158.6820877
A54: 48 | B54: 0.9815620908 | C54: 0.9815620908 | D54: 0.9815620908 | E54: 1.893293412e-17 | F54: 226.6820549 | G54: 226.6820549 | H54: 226.6820549 | I54: -2.11852049 | J54: -122.1185205 | K54: 117.8814795 | L54: 1.893293412e-17 | M54: 0.9815620908 | N54: 9.879274816e-18 | O54: 172.4045474 | P54: -2.11852049 | Q54: 92.15770201 | S54: 48 | T54: 124.5599839 | U54: 124.5599839 | V54: 124.5599839 | W54: 6.029155041e-14 | X54: -9.683473989 | Y54: -129.683474 | Z54: 110.316526 | AA54: 135 | AB54: 3.23244483e-14 | AC54: 124.5599839 | AD54: 2.977197908e-14 | AE54: -61.3385352 | AF54: -9.683473989 | AG54: -158.1985905
A55: 49 | B55: 0.9797483775 | C55: 0.9797483775 | D55: 0.9797483775 | E55: 2.071134855e-17 | F55: 226.2631958 | G55: 226.2631958 | H55: 226.2631958 | I55: -2.1686258 | J55: -122.1686258 | K55: 117.8313742 | L55: 2.071134855e-17 | M55: 0.9797483775 | N55: 1.026381172e-17 | O55: 170.9266943 | P55: -2.1686258 | Q55: 90.52753899 | S55: 49 | T55: 115.6604576 | U55: 115.6604576 | V55: 115.6604576 | W55: 5.123796534e-14 | X55: -9.677946807 | Y55: -129.6779468 | Z55: 110.3220532 | AA55: 123.6900675 | AB55: 3.011831675e-14 | AC55: 115.6604576 | AD55: 2.740643498e-14 | AE55: -61.38954033 | AF55: -9.677946807 | AG55: -158.3852211
A56: 50 | B56: 0.9780650003 | C56: 0.9780650003 | D56: 0.9780650003 | E56: 2.23785045e-17 | F56: 225.8744365 | G56: 225.8744365 | H56: 225.8744365 | I56: -2.215327068 | J56: -122.2153271 | K56: 117.7846729 | L56: 2.23785045e-17 | M56: 0.9780650003 | N56: 1.062381016e-17 | O56: 169.7579749 | P56: -2.215327068 | Q56: 89.12584125 | S56: 50 | T56: 106.7615124 | U56: 106.7615124 | V56: 106.7615124 | W56: 4.832213033e-14 | X56: -9.672854176 | Y56: -129.6728542 | Z56: 110.3271458 | AA56: 107.102729 | AB56: 2.808632489e-14 | AC56: 106.7615124 | AD56: 2.477680709e-14 | AE56: -60.80251395 | AF56: -9.672854176 | AG56: -157.1663458
A57: 51 | B57: 0.9765117868 | C57: 0.9765117868 | D57: 0.9765117868 | E57: 2.394413775e-17 | F57: 225.5157372 | G57: 225.5157372 | H57: 225.5157372 | I57: -2.258586108 | J57: -122.2585861 | K57: 117.7414139 | L57: 2.394413775e-17 | M57: 0.9765117868 | N57: 1.095900505e-17 | O57: 168.8535433 | P57: -2.258586108 | Q57: 87.97583512 | S57: 51 | T57: 97.86308389 | U57: 97.86308389 | V57: 97.86308389 | W57: 4.019436694e-14 | X57: -9.66819042 | Y57: -129.6681904 | Z57: 110.3318096 | AA57: 135 | AB57: 2.576367483e-14 | AC57: 97.86308389 | AD57: 2.259992525e-14 | AE57: -61.28288413 | AF57: -9.66819042 | AG57: -156.1612598
A58: 52 | B58: 0.9750885772 | C58: 0.9750885772 | D58: 0.9750885772 | E58: 2.538231341e-17 | F58: 225.187061 | G58: 225.187061 | H58: 225.187061 | I58: -2.298367414 | J58: -122.2983674 | K58: 117.7016326 | L58: 2.538231341e-17 | M58: 0.9750885772 | N58: 1.127165154e-17 | O58: 168.0948928 | P58: -2.298367414 | Q58: 87.01476695 | S58: 52 | T58: 88.96511249 | U58: 88.96511249 | V58: 88.96511249 | W58: 4.019436694e-14 | X58: -9.66395027 | Y58: -129.6639503 | Z58: 110.3360497 | AA58: 135 | AB58: 2.322032186e-14 | AC58: 88.96511249 | AD58: 2.111568236e-14 | AE58: -62.90444751 | AF58: -9.66395027 | AG58: -157.2296211
A59: 53 | B59: 0.9737952243 | C59: 0.9737952243 | D59: 0.9737952243 | E59: 2.667374852e-17 | F59: 224.888374 | G59: 224.888374 | H59: 224.888374 | I59: -2.334638216 | J59: -122.3346382 | K59: 117.6653618 | L59: 2.667374852e-17 | M59: 0.9737952243 | N59: 1.156330988e-17 | O59: 167.4024494 | P59: -2.334638216 | Q59: 86.13677691 | S59: 53 | T59: 80.06754286 | U59: 80.06754286 | V59: 80.06754286 | W59: 3.662053439e-14 | X59: -9.660128874 | Y59: -129.6601289 | Z59: 110.3398711 | AA59: 112.8336542 | AB59: 2.101591538e-14 | AC59: 80.06754286 | AD59: 1.937927602e-14 | AE59: -63.14187834 | AF59: -9.660128874 | AG59: -156.6147789
A60: 54 | B60: 0.9726315937 | C60: 0.9726315937 | D60: 0.9726315937 | E60: 2.784453204e-17 | F60: 224.619645 | G60: 224.619645 | H60: 224.619645 | I60: -2.36736854 | J60: -122.3673685 | K60: 117.6326315 | L60: 2.784453204e-17 | M60: 0.9726315937 | N60: 1.183490752e-17 | O60: 166.8211886 | P60: -2.36736854 | Q60: 85.38335787 | S60: 54 | T60: 71.17032358 | U60: 71.17032358 | V60: 71.17032358 | W60: 2.274846707e-14 | X60: -9.656721805 | Y60: -129.6567218 | Z60: 110.3432782 | AA60: 128.6598083 | AB60: 1.832853364e-14 | AC60: 71.17032358 | AD60: 1.720789728e-14 | AE60: -63.09890705 | AF60: -9.656721805 | AG60: -155.2248594
A61: 55 | B61: 0.9715975639 | C61: 0.9715975639 | D61: 0.9715975639 | E61: 2.88679354e-17 | F61: 224.380846 | G61: 224.380846 | H61: 224.380846 | I61: -2.396531256 | J61: -122.3965313 | K61: 117.6034687 | L61: 2.88679354e-17 | M61: 0.9715975639 | N61: 1.208085484e-17 | O61: 166.3543112 | P61: -2.396531256 | Q61: 84.77105792 | S61: 55 | T61: 62.27340679 | U61: 62.27340679 | V61: 62.27340679 | W61: 2.139016889e-14 | X61: -9.653725076 | Y61: -129.6537251 | Z61: 110.3462749 | AA61: 131.6335393 | AB61: 1.581519908e-14 | AC61: 62.27340679 | AD61: 1.464484751e-14 | AE61: -65.77225468 | AF61: -9.653725076 | AG61: -156.8014095
A62: 56 | B62: 0.9706930265 | C62: 0.9706930265 | D62: 0.9706930265 | E62: 2.974264956e-17 | F62: 224.1719521 | G62: 224.1719521 | H62: 224.1719521 | I62: -2.422102128 | J62: -122.4221021 | K62: 117.5778979 | L62: 2.974264956e-17 | M62: 0.9706930265 | N62: 1.228822658e-17 | O62: 165.8981593 | P62: -2.422102128 | Q62: 84.24244844 | S62: 56 | T62: 53.37674774 | U62: 53.37674774 | V62: 53.37674774 | W62: 2.079172374e-14 | X62: -9.651135146 | Y62: -129.6511351 | Z62: 110.3488649 | AA62: 109.9831065 | AB62: 1.317933257e-14 | AC62: 53.37674774 | AD62: 1.27214737e-14 | AE62: -65.77225468 | AF62: -9.651135146 | AG62: -157.7965215
A63: 57 | B63: 0.9699178863 | C63: 0.9699178863 | D63: 0.9699178863 | E63: 3.047294227e-17 | F63: 223.9929411 | G63: 223.9929411 | H63: 223.9929411 | I63: -2.444059857 | J63: -122.4440599 | K63: 117.5559401 | L63: 3.047294227e-17 | M63: 0.9699178863 | N63: 1.246750177e-17 | O63: 165.5380554 | P63: -2.444059857 | Q63: 83.78315974 | S63: 57 | T63: 44.48030447 | U63: 44.48030447 | V63: 44.48030447 | W63: 7.105427358e-15 | X63: -9.648948931 | Y63: -129.6489489 | Z63: 110.3510511 | AA63: 180 | AB63: 1.152023578e-14 | AC63: 44.48030447 | AD63: 1.080330295e-14 | AE63: -66.64443514 | AF63: -9.648948931 | AG63: -159.145542
A64: 58 | B64: 0.9692720616 | C64: 0.9692720616 | D64: 0.9692720616 | E64: 3.110973501e-17 | F64: 223.8437943 | G64: 223.8437943 | H64: 223.8437943 | I64: -2.462386115 | J64: -122.4623861 | K64: 117.5376139 | L64: 3.110973501e-17 | M64: 0.9692720616 | N64: 1.261837054e-17 | O64: 165.2192406 | P64: -2.462386115 | Q64: 83.38712397 | S64: 58 | T64: 35.58403738 | U64: 35.58403738 | V64: 35.58403738 | W64: 1.509903313e-14 | X64: -9.647163808 | Y64: -129.6471638 | Z64: 110.3528362 | AA64: 118.0724869 | AB64: 9.693364079e-15 | AC64: 35.58403738 | AD64: 8.666675708e-15 | AE64: -70.44174846 | AF64: -9.647163808 | AG64: -160.5599652
A65: 59 | B65: 0.968755484 | C65: 0.968755484 | D65: 0.968755484 | E65: 3.163581653e-17 | F65: 223.7244958 | G65: 223.7244958 | H65: 223.7244958 | I65: -2.47706558 | J65: -122.4770656 | K65: 117.5229344 | L65: 3.163581653e-17 | M65: 0.968755484 | N65: 1.273810078e-17 | O65: 164.8970959 | P65: -2.47706558 | Q65: 83.06279475 | S65: 59 | T65: 26.68790887 | U65: 26.68790887 | V65: 26.68790887 | W65: 1.208053258e-14 | X65: -9.645777623 | Y65: -129.6457776 | Z65: 110.3542224 | AA65: 107.102729 | AB65: 7.49496909e-15 | AC65: 26.68790887 | AD65: 6.413880542e-15 | AE65: -74.18080605 | AF65: -9.645777623 | AG65: -167.0053832
A66: 60 | B66: 0.9683680989 | C66: 0.9683680989 | D66: 0.9683680989 | E66: 3.203368711e-17 | F66: 223.635033 | G66: 223.635033 | H66: 223.635033 | I66: -2.488085961 | J66: -122.488086 | K66: 117.511914 | L66: 3.203368711e-17 | M66: 0.9683680989 | N66: 1.282051555e-17 | O66: 164.608221 | P66: -2.488085961 | Q66: 82.78352069 | S66: 60 | T66: 17.7918829 | U66: 17.7918829 | V66: 17.7918829 | W66: 8.881784197e-15 | X66: -9.644788694 | Y66: -129.6447887 | Z66: 110.3552113 | AA66: 90 | AB66: 5.423001959e-15 | AC66: 17.7918829 | AD66: 4.432209994e-15 | AE66: -77.19573393 | AF66: -9.644788694 | AG66: -167.4711923
A67: 61 | B67: 0.968109865 | C67: 0.968109865 | D67: 0.968109865 | E67: 3.231565246e-17 | F67: 223.5753965 | G67: 223.5753965 | H67: 223.5753965 | I67: -2.495438022 | J67: -122.495438 | K67: 117.504562 | L67: 3.231565246e-17 | M67: 0.968109865 | N67: 1.287729387e-17 | O67: 164.3770127 | P67: -2.495438022 | Q67: 82.59056169 | S67: 61 | T67: 8.895924624 | U67: 8.895924624 | V67: 8.895924624 | W67: 3.774758284e-15 | X67: -9.644195819 | Y67: -129.6441958 | Z67: 110.3558042 | AA67: 90 | AB67: 2.546678049e-15 | AC67: 8.895924624 | AD67: 1.749922459e-15 | AE67: -70.70995378 | AF67: -9.644195819 | AG67: -164.0546041
A68: 62 | B68: 0.9679807549 | C68: 0.9679807549 | D68: 0.9679807549 | E68: 3.245422817e-17 | F68: 223.5455798 | G68: 223.5455798 | H68: 223.5455798 | I68: -2.499115595 | J68: -122.4991156 | K68: 117.5008844 | L68: 3.245422817e-17 | M68: 0.9679807549 | N68: 1.29007253e-17 | O68: 164.2969587 | P68: -2.499115595 | Q68: 82.52092707 | S68: 62 | T68: 177.9736276 | U68: 177.9736276 | V68: 177.9736276 | W68: 8.293893593e-14 | X68: -9.726127915 | Y68: -129.7261279 | Z68: 110.2738721 | AA68: 133.2642954 | AB68: 4.638602568e-14 | AC68: 177.9736276 | AD68: 4.304441478e-14 | AE68: -63.03660683 | AF68: -9.726127915 | AG68: -159.7435378
A69: 63 | B69: 0.9925925657 | C69: 0.9925925657 | D69: 0.9925925657 | E69: 8.62521023e-18 | F69: 229.229434 | G69: 229.229434 | H69: 229.229434 | I69: -1.818448566 | J69: -121.8184486 | K69: 118.1815514 | L69: 8.62521023e-18 | M69: 0.9925925657 | N69: 7.767580319e-18 | O69: -166.2889331 | P69: -1.818448566 | Q69: 105.4351198 | S69: 63 | T69: 169.0689561 | U69: 169.0689561 | V69: 169.0689561 | W69: 7.791709393e-14 | X69: -9.717853359 | Y69: -129.7178534 | Z69: 110.2821466 | AA69: 136.8476103 | AB69: 4.354950646e-14 | AC69: 169.0689561 | AD69: 4.084952242e-14 | AE69: -62.02052561 | AF69: -9.717853359 | AG69: -159.3255752
A70: 64 | B70: 0.9901241702 | C70: 0.9901241702 | D70: 0.9901241702 | E70: 1.068350269e-17 | F70: 228.6593825 | G70: 228.6593825 | H70: 228.6593825 | I70: -1.884912424 | J70: -121.8849124 | K70: 118.1150876 | L70: 1.068350269e-17 | M70: 0.9901241702 | N70: 8.189817259e-18 | O70: -174.6903208 | P70: -1.884912424 | Q70: 101.8097312 | S70: 64 | T70: 160.1653703 | U70: 160.1653703 | V70: 160.1653703 | W70: 6.355287432e-14 | X70: -9.710055109 | Y70: -129.7100551 | Z70: 110.2899449 | AA70: 116.5650512 | AB70: 4.080653715e-14 | AC70: 160.1653703 | AD70: 3.888134141e-14 | AE70: -62.07641028 | AF70: -9.710055109 | AG70: -158.9879199
A71: 65 | B71: 0.9877871502 | C71: 0.9877871502 | D71: 0.9877871502 | E71: 1.275269953e-17 | F71: 228.1196708 | G71: 228.1196708 | H71: 228.1196708 | I71: -1.948200895 | J71: -121.9482009 | K71: 118.0517991 | L71: 1.275269953e-17 | M71: 0.9877871502 | N71: 8.621804142e-18 | O71: 179.987929 | P71: -1.948200895 | Q71: 98.7178515 | S71: 65 | T71: 151.2627702 | U71: 151.2627702 | V71: 151.2627702 | W71: 8.556067555e-14 | X71: -9.702725366 | Y71: -129.7027254 | Z71: 110.2972746 | AA71: 131.6335393 | AB71: 3.848928829e-14 | AC71: 151.2627702 | AD71: 3.680100456e-14 | AE71: -62.47477426 | AF71: -9.702725366 | AG71: -160.1447856
A72: 66 | B72: 0.9855812748 | C72: 0.9855812748 | D72: 0.9855812748 | E72: 1.477176439e-17 | F72: 227.6102457 | G72: 227.6102457 | H72: 227.6102457 | I72: -2.008263464 | J72: -122.0082635 | K72: 117.9917365 | L72: 1.477176439e-17 | M72: 0.9855812748 | N72: 9.043497147e-18 | O72: 176.3065692 | P72: -2.008263464 | Q72: 96.01472985 | S72: 66 | T72: 142.3610625 | U72: 142.3610625 | V72: 142.3610625 | W72: 4.832213033e-14 | X72: -9.695856643 | Y72: -129.6958566 | Z72: 110.3041434 | AA72: 126.0273734 | AB72: 3.676644815e-14 | AC72: 142.3610625 | AD72: 3.39875495e-14 | AE72: -62.7648533 | AF72: -9.695856643 | AG72: -160.1553724
A73: 67 | B73: 0.9835063244 | C73: 0.9835063244 | D73: 0.9835063244 | E73: 1.674035233e-17 | F73: 227.1310565 | G73: 227.1310565 | H73: 227.1310565 | I73: -2.065051931 | J73: -122.0650519 | K73: 117.9349481 | L73: 1.674035233e-17 | M73: 0.9835063244 | N73: 9.449209986e-18 | O73: 173.5946712 | P73: -2.065051931 | Q73: 93.73666106 | S73: 67 | T73: 133.4601606 | U73: 133.4601606 | V73: 133.4601606 | W73: 4.549693413e-14 | X73: -9.689441786 | Y73: -129.6894418 | Z73: 110.3105582 | AA73: 128.6598083 | AB73: 3.489615208e-14 | AC73: 133.4601606 | AD73: 3.179073761e-14 | AE73: -61.84625897 | AF73: -9.689441786 | AG73: -159.6467709
A74: 68 | B74: 0.9815620908 | C74: 0.9815620908 | D74: 0.9815620908 | E74: 1.864564346e-17 | F74: 226.6820549 | G74: 226.6820549 | H74: 226.6820549 | I74: -2.11852049 | J74: -122.1185205 | K74: 117.8814795 | L74: 1.864564346e-17 | M74: 0.9815620908 | N74: 9.84398104e-18 | O74: 171.6489671 | P74: -2.11852049 | Q74: 91.79928503 | S74: 68 | T74: 124.5599839 | U74: 124.5599839 | V74: 124.5599839 | W74: 6.029155041e-14 | X74: -9.683473989 | Y74: -129.683474 | Z74: 110.316526 | AA74: 135 | AB74: 3.220984922e-14 | AC74: 124.5599839 | AD74: 2.982142537e-14 | AE74: -61.71372383 | AF74: -9.683473989 | AG74: -159.2277453
A75: 69 | B75: 0.9797483775 | C75: 0.9797483775 | D75: 0.9797483775 | E75: 2.042101817e-17 | F75: 226.2631958 | G75: 226.2631958 | H75: 226.2631958 | I75: -2.1686258 | J75: -122.1686258 | K75: 117.8313742 | L75: 2.042101817e-17 | M75: 0.9797483775 | N75: 1.022585716e-17 | O75: 170.1883391 | P75: -2.1686258 | Q75: 90.13546247 | S75: 69 | T75: 115.6604576 | U75: 115.6604576 | V75: 115.6604576 | W75: 4.832213033e-14 | X75: -9.677946807 | Y75: -129.6779468 | Z75: 110.3220532 | AA75: 126.0273734 | AB75: 3.011831675e-14 | AC75: 115.6604576 | AD75: 2.763004471e-14 | AE75: -61.38954033 | AF75: -9.677946807 | AG75: -158.5688327
A76: 70 | B76: 0.9780650003 | C76: 0.9780650003 | D76: 0.9780650003 | E76: 2.209354501e-17 | F76: 225.8744365 | G76: 225.8744365 | H76: 225.8744365 | I76: -2.215327068 | J76: -122.2153271 | K76: 117.7846729 | L76: 2.209354501e-17 | M76: 0.9780650003 | N76: 1.058974791e-17 | O76: 169.0602116 | P76: -2.215327068 | Q76: 88.72487263 | S76: 70 | T76: 106.7615124 | U76: 106.7615124 | V76: 106.7615124 | W76: 4.97379915e-14 | X76: -9.672854176 | Y76: -129.6728542 | Z76: 110.3271458 | AA76: 90 | AB76: 2.802789236e-14 | AC76: 106.7615124 | AD76: 2.522056468e-14 | AE76: -61.01698576 | AF76: -9.672854176 | AG76: -157.5901626
A77: 71 | B77: 0.9765117868 | C77: 0.9765117868 | D77: 0.9765117868 | E77: 2.365887026e-17 | F77: 225.5157372 | G77: 225.5157372 | H77: 225.5157372 | I77: -2.258586108 | J77: -122.2585861 | K77: 117.7414139 | L77: 2.365887026e-17 | M77: 0.9765117868 | N77: 1.093090579e-17 | O77: 168.178669 | P77: -2.258586108 | Q77: 87.55054867 | S77: 71 | T77: 97.86308389 | U77: 97.86308389 | V77: 97.86308389 | W77: 4.832213033e-14 | X77: -9.66819042 | Y77: -129.6681904 | Z77: 110.3318096 | AA77: 126.0273734 | AB77: 2.599808261e-14 | AC77: 97.86308389 | AD77: 2.281999557e-14 | AE77: -60.35367786 | AF77: -9.66819042 | AG77: -156.4051794
A78: 72 | B78: 0.9750885772 | C78: 0.9750885772 | D78: 0.9750885772 | E78: 2.511858418e-17 | F78: 225.187061 | G78: 225.187061 | H78: 225.187061 | I78: -2.298367414 | J78: -122.2983674 | K78: 117.7016326 | L78: 2.511858418e-17 | M78: 0.9750885772 | N78: 1.12472017e-17 | O78: 167.4979103 | P78: -2.298367414 | Q78: 86.58308173 | S78: 72 | T78: 88.96511249 | U78: 88.96511249 | V78: 88.96511249 | W78: 3.351623381e-14 | X78: -9.66395027 | Y78: -129.6639503 | Z78: 110.3360497 | AA78: 147.9946168 | AB78: 2.350011908e-14 | AC78: 88.96511249 | AD78: 2.026537198e-14 | AE78: -61.60001368 | AF78: -9.66395027 | AG78: -157.6937949
A79: 73 | B79: 0.9737952243 | C79: 0.9737952243 | D79: 0.9737952243 | E79: 2.64352276e-17 | F79: 224.888374 | G79: 224.888374 | H79: 224.888374 | I79: -2.334638216 | J79: -122.3346382 | K79: 117.6653618 | L79: 2.64352276e-17 | M79: 0.9737952243 | N79: 1.152697254e-17 | O79: 166.8850448 | P79: -2.334638216 | Q79: 85.7370085 | S79: 73 | T79: 80.06754286 | U79: 80.06754286 | V79: 80.06754286 | W79: 4.278033777e-14 | X79: -9.660128874 | Y79: -129.6601289 | Z79: 110.3398711 | AA79: 131.6335393 | AB79: 2.098943722e-14 | AC79: 80.06754286 | AD79: 1.850070998e-14 | AE79: -60.49927538 | AF79: -9.660128874 | AG79: -155.4328287
A80: 74 | B80: 0.9726315937 | C80: 0.9726315937 | D80: 0.9726315937 | E80: 2.761773592e-17 | F80: 224.619645 | G80: 224.619645 | H80: 224.619645 | I80: -2.36736854 | J80: -122.3673685 | K80: 117.6326315 | L80: 2.761773592e-17 | M80: 0.9726315937 | N80: 1.179013047e-17 | O80: 166.4342046 | P80: -2.36736854 | Q80: 85.04994294 | S80: 74 | T80: 71.17032358 | U80: 71.17032358 | V80: 71.17032358 | W80: 2.711491036e-14 | X80: -9.656721805 | Y80: -129.6567218 | Z80: 110.3432782 | AA80: 121.6075022 | AB80: 1.832853364e-14 | AC80: 71.17032358 | AD80: 1.720789728e-14 | AE80: -63.09890705 | AF80: -9.656721805 | AG80: -155.2248594
A81: 75 | B81: 0.9715975639 | C81: 0.9715975639 | D81: 0.9715975639 | E81: 2.864265633e-17 | F81: 224.380846 | G81: 224.380846 | H81: 224.380846 | I81: -2.396531256 | J81: -122.3965313 | K81: 117.6034687 | L81: 2.864265633e-17 | M81: 0.9715975639 | N81: 1.203681217e-17 | O81: 165.9774802 | P81: -2.396531256 | Q81: 84.44220679 | S81: 75 | T81: 62.27340679 | U81: 62.27340679 | V81: 62.27340679 | W81: 2.139016889e-14 | X81: -9.653725076 | Y81: -129.6537251 | Z81: 110.3462749 | AA81: 131.6335393 | AB81: 1.581519908e-14 | AC81: 62.27340679 | AD81: 1.464484751e-14 | AE81: -65.77225468 | AF81: -9.653725076 | AG81: -156.8014095
A82: 76 | B82: 0.9706930265 | C82: 0.9706930265 | D82: 0.9706930265 | E82: 2.951887049e-17 | F82: 224.1719521 | G82: 224.1719521 | H82: 224.1719521 | I82: -2.422102128 | J82: -122.4221021 | K82: 117.5778979 | L82: 2.951887049e-17 | M82: 0.9706930265 | N82: 1.22448221e-17 | O82: 165.5290347 | P82: -2.422102128 | Q82: 83.91728763 | S82: 76 | T82: 53.37674774 | U82: 53.37674774 | V82: 53.37674774 | W82: 1.588821858e-14 | X82: -9.651135146 | Y82: -129.6511351 | Z82: 110.3488649 | AA82: 116.5650512 | AB82: 1.317933257e-14 | AC82: 53.37674774 | AD82: 1.27214737e-14 | AE82: -65.77225468 | AF82: -9.651135146 | AG82: -157.7965215
A83: 77 | B83: 0.9699178863 | C83: 0.9699178863 | D83: 0.9699178863 | E83: 3.025035692e-17 | F83: 223.9929411 | G83: 223.9929411 | H83: 223.9929411 | I83: -2.444059857 | J83: -122.4440599 | K83: 117.5559401 | L83: 3.025035692e-17 | M83: 0.9699178863 | N83: 1.242465481e-17 | O83: 165.1751926 | P83: -2.444059857 | Q83: 83.46110382 | S83: 77 | T83: 44.48030447 | U83: 44.48030447 | V83: 44.48030447 | W83: 7.105427358e-15 | X83: -9.648948931 | Y83: -129.6489489 | Z83: 110.3510511 | AA83: 180 | AB83: 1.152023578e-14 | AC83: 44.48030447 | AD83: 1.080330295e-14 | AE83: -66.64443514 | AF83: -9.648948931 | AG83: -159.145542
A84: 78 | B84: 0.9692720616 | C84: 0.9692720616 | D84: 0.9692720616 | E84: 3.08882143e-17 | F84: 223.8437943 | G84: 223.8437943 | H84: 223.8437943 | I84: -2.462386115 | J84: -122.4623861 | K84: 117.5376139 | L84: 3.08882143e-17 | M84: 0.9692720616 | N84: 1.257600662e-17 | O84: 164.861573 | P84: -2.462386115 | Q84: 83.06759612 | S84: 78 | T84: 35.58403738 | U84: 35.58403738 | V84: 35.58403738 | W84: 1.33226763e-14 | X84: -9.647163808 | Y84: -129.6471638 | Z84: 110.3528362 | AA84: 90 | AB84: 9.693364079e-15 | AC84: 35.58403738 | AD84: 8.666675708e-15 | AE84: -70.44174846 | AF84: -9.647163808 | AG84: -160.5599652
A85: 79 | B85: 0.968755484 | C85: 0.968755484 | D85: 0.968755484 | E85: 3.141538102e-17 | F85: 223.7244958 | G85: 223.7244958 | H85: 223.7244958 | I85: -2.47706558 | J85: -122.4770656 | K85: 117.5229344 | L85: 3.141538102e-17 | M85: 0.968755484 | N85: 1.269613401e-17 | O85: 164.543158 | P85: -2.47706558 | Q85: 82.74520808 | S85: 79 | T85: 26.68790887 | U85: 26.68790887 | V85: 26.68790887 | W85: 1.208053258e-14 | X85: -9.645777623 | Y85: -129.6457776 | Z85: 110.3542224 | AA85: 107.102729 | AB85: 7.49496909e-15 | AC85: 26.68790887 | AD85: 6.413880542e-15 | AE85: -74.18080605 | AF85: -9.645777623 | AG85: -167.0053832
A86: 80 | B86: 0.9683680989 | C86: 0.9683680989 | D86: 0.9683680989 | E86: 3.181423212e-17 | F86: 223.635033 | G86: 223.635033 | H86: 223.635033 | I86: -2.488085961 | J86: -122.488086 | K86: 117.511914 | L86: 3.181423212e-17 | M86: 0.9683680989 | N86: 1.277889217e-17 | O86: 164.2567179 | P86: -2.488085961 | Q86: 82.4670731 | S86: 80 | T86: 17.7918829 | U86: 17.7918829 | V86: 17.7918829 | W86: 8.881784197e-15 | X86: -9.644788694 | Y86: -129.6447887 | Z86: 110.3552113 | AA86: 90 | AB86: 5.423001959e-15 | AC86: 17.7918829 | AD86: 4.432209994e-15 | AE86: -77.19573393 | AF86: -9.644788694 | AG86: -167.4711923
A87: 81 | B87: 0.968109865 | C87: 0.968109865 | D87: 0.968109865 | E87: 3.209698699e-17 | F87: 223.5753965 | G87: 223.5753965 | H87: 223.5753965 | I87: -2.495438022 | J87: -122.495438 | K87: 117.504562 | L87: 3.209698699e-17 | M87: 0.968109865 | N87: 1.283590832e-17 | O87: 164.0270238 | P87: -2.495438022 | Q87: 82.27489289 | S87: 81 | T87: 8.895924624 | U87: 8.895924624 | V87: 8.895924624 | W87: 3.996802889e-15 | X87: -9.644195819 | Y87: -129.6441958 | Z87: 110.3558042 | AA87: 90 | AB87: 2.546678049e-15 | AC87: 8.895924624 | AD87: 1.749922459e-15 | AE87: -70.70995378 | AF87: -9.644195819 | AG87: -164.0546041
A88: 82 | B88: 0.9679807549 | C88: 0.9679807549 | D88: 0.9679807549 | E88: 3.223583614e-17 | F88: 223.5455798 | G88: 223.5455798 | H88: 223.5455798 | I88: -2.499115595 | J88: -122.4991156 | K88: 117.5008844 | L88: 3.223583614e-17 | M88: 0.9679807549 | N88: 1.285942565e-17 | O88: 163.9479331 | P88: -2.499115595 | Q88: 82.20561064 | S88: 82 | T88: 177.9736276 | U88: 177.9736276 | V88: 177.9736276 | W88: 6.204547701e-14 | X88: -9.726127915 | Y88: -129.7261279 | Z88: 110.2738721 | AA88: 156.3706223 | AB88: 4.462415563e-14 | AC88: 177.9736276 | AD88: 4.378766443e-14 | AE88: -62.05459475 | AF88: -9.726127915 | AG88: -158.0817797
A89: 83 | B89: 0.9925925657 | C89: 0.9925925657 | D89: 0.9925925657 | E89: 8.575998544e-18 | F89: 229.229434 | G89: 229.229434 | H89: 229.229434 | I89: -1.818448566 | J89: -121.8184486 | K89: 118.1815514 | L89: 8.575998544e-18 | M89: 0.9925925657 | N89: 7.790904496e-18 | O89: -165.631403 | P89: -1.818448566 | Q89: 105.45907 | S89: 83 | T89: 169.0689561 | U89: 169.0689561 | V89: 169.0689561 | W89: 6.898122194e-14 | X89: -9.717853359 | Y89: -129.7178534 | Z89: 110.2821466 | AA89: 145.491477 | AB89: 4.210822471e-14 | AC89: 169.0689561 | AD89: 4.164515787e-14 | AE89: -61.53310577 | AF89: -9.717853359 | AG89: -158.3214109
A90: 84 | B90: 0.9901241702 | C90: 0.9901241702 | D90: 0.9901241702 | E90: 1.056004734e-17 | F90: 228.6593825 | G90: 228.6593825 | H90: 228.6593825 | I90: -1.884912424 | J90: -121.8849124 | K90: 118.1150876 | L90: 1.056004734e-17 | M90: 0.9901241702 | N90: 8.230122313e-18 | O90: -173.8789854 | P90: -1.884912424 | Q90: 101.8310125 | S90: 84 | T90: 160.1653703 | U90: 160.1653703 | V90: 160.1653703 | W90: 7.553172887e-14 | X90: -9.710055109 | Y90: -129.7100551 | Z90: 110.2899449 | AA90: 138.8140748 | AB90: 3.948005019e-14 | AC90: 160.1653703 | AD90: 3.945882416e-14 | AE90: -61.25033803 | AF90: -9.710055109 | AG90: -157.8097111
A91: 85 | B91: 0.9877871502 | C91: 0.9877871502 | D91: 0.9877871502 | E91: 1.256128109e-17 | F91: 228.1196708 | G91: 228.1196708 | H91: 228.1196708 | I91: -1.948200895 | J91: -121.9482009 | K91: 118.0517991 | L91: 1.256128109e-17 | M91: 0.9877871502 | N91: 8.677604634e-18 | O91: -179.1036422 | P91: -1.948200895 | Q91: 98.77082895 | S91: 85 | T91: 151.2627702 | U91: 151.2627702 | V91: 151.2627702 | W91: 6.355287432e-14 | X91: -9.702725366 | Y91: -129.7027254 | Z91: 110.2972746 | AA91: 116.5650512 | AB91: 3.763926231e-14 | AC91: 151.2627702 | AD91: 3.713857818e-14 | AE91: -61.79837178 | AF91: -9.702725366 | AG91: -158.7494945
A92: 86 | B92: 0.9855812748 | C92: 0.9855812748 | D92: 0.9855812748 | E92: 1.453231037e-17 | F92: 227.6102457 | G92: 227.6102457 | H92: 227.6102457 | I92: -2.008263464 | J92: -122.0082635 | K92: 117.9917365 | L92: 1.453231037e-17 | M92: 0.9855812748 | N92: 9.112689453e-18 | O92: 177.2059277 | P92: -2.008263464 | Q92: 96.12561629 | S92: 86 | T92: 142.3610625 | U92: 142.3610625 | V92: 142.3610625 | W92: 6.998034367e-14 | X92: -9.695856643 | Y92: -129.6958566 | Z92: 110.3041434 | AA92: 113.962489 | AB92: 3.549025477e-14 | AC92: 142.3610625 | AD92: 3.472665106e-14 | AE92: -61.69924423 | AF92: -9.695856643 | AG92: -158.0513009
A93: 87 | B93: 0.9835063244 | C93: 0.9835063244 | D93: 0.9835063244 | E93: 1.643422087e-17 | F93: 227.1310565 | G93: 227.1310565 | H93: 227.1310565 | I93: -2.065051931 | J93: -122.0650519 | K93: 117.9349481 | L93: 1.643422087e-17 | M93: 0.9835063244 | N93: 9.539850182e-18 | O93: 174.5585038 | P93: -2.065051931 | Q93: 93.90656898 | S93: 87 | T93: 133.4601606 | U93: 133.4601606 | V93: 133.4601606 | W93: 4.549693413e-14 | X93: -9.689441786 | Y93: -129.6894418 | Z93: 110.3105582 | AA93: 128.6598083 | AB93: 3.351442657e-14 | AC93: 133.4601606 | AD93: 3.232064977e-14 | AE93: -61.04517946 | AF93: -9.689441786 | AG93: -157.2490237
A94: 88 | B94: 0.9815620908 | C94: 0.9815620908 | D94: 0.9815620908 | E94: 1.826230896e-17 | F94: 226.6820549 | G94: 226.6820549 | H94: 226.6820549 | I94: -2.11852049 | J94: -122.1185205 | K94: 117.8814795 | L94: 1.826230896e-17 | M94: 0.9815620908 | N94: 9.953566968e-18 | O94: 172.6344137 | P94: -2.11852049 | Q94: 92.04863149 | S94: 88 | T94: 124.5599839 | U94: 124.5599839 | V94: 124.5599839 | W94: 3.499017183e-14 | X94: -9.683473989 | Y94: -129.683474 | Z94: 110.316526 | AA94: 113.962489 | AB94: 3.082954544e-14 | AC94: 124.5599839 | AD94: 3.036287447e-14 | AE94: -60.83692239 | AF94: -9.683473989 | AG94: -156.6822916
A95: 89 | B95: 0.9797483775 | C95: 0.9797483775 | D95: 0.9797483775 | E95: 1.996060332e-17 | F95: 226.2631958 | G95: 226.2631958 | H95: 226.2631958 | I95: -2.1686258 | J95: -122.1686258 | K95: 117.8313742 | L95: 1.996060332e-17 | M95: 0.9797483775 | N95: 1.035375861e-17 | O95: 171.1949227 | P95: -2.1686258 | Q95: 90.46213038 | S95: 89 | T95: 115.6604576 | U95: 115.6604576 | V95: 115.6604576 | W95: 3.499017183e-14 | X95: -9.677946807 | Y95: -129.6779468 | Z95: 110.3220532 | AA95: 113.962489 | AB95: 2.874109623e-14 | AC95: 115.6604576 | AD95: 2.799566379e-14 | AE95: -60.4334245 | AF95: -9.677946807 | AG95: -156.7368145
A96: 90 | B96: 0.9780650003 | C96: 0.9780650003 | D96: 0.9780650003 | E96: 2.155622164e-17 | F96: 225.8744365 | G96: 225.8744365 | H96: 225.8744365 | I96: -2.215327068 | J96: -122.2153271 | K96: 117.7846729 | L96: 2.155622164e-17 | M96: 0.9780650003 | N96: 1.072904339e-17 | O96: 170.0878223 | P96: -2.215327068 | Q96: 89.10320225 | S96: 90 | T96: 106.7615124 | U96: 106.7615124 | V96: 106.7615124 | W96: 4.618527782e-14 | X96: -9.672854176 | Y96: -129.6728542 | Z96: 110.3271458 | AA96: 90 | AB96: 2.713098643e-14 | AC96: 106.7615124 | AD96: 2.538383584e-14 | AE96: -60.2551187 | AF96: -9.672854176 | AG96: -155.3764352
A97: 91 | B97: 0.9765117868 | C97: 0.9765117868 | D97: 0.9765117868 | E97: 2.306989365e-17 | F97: 225.5157372 | G97: 225.5157372 | H97: 225.5157372 | I97: -2.258586108 | J97: -122.2585861 | K97: 117.7414139 | L97: 2.306989365e-17 | M97: 0.9765117868 | N97: 1.107922098e-17 | O97: 169.1952888 | P97: -2.258586108 | Q97: 87.9941989 | S97: 91 | T97: 97.86308389 | U97: 97.86308389 | V97: 97.86308389 | W97: 4.832213033e-14 | X97: -9.66819042 | Y97: -129.6681904 | Z97: 110.3318096 | AA97: 126.0273734 | AB97: 2.510575816e-14 | AC97: 97.86308389 | AD97: 2.30053374e-14 | AE97: -59.5066416 | AF97: -9.66819042 | AG97: -153.9704078
A98: 92 | B98: 0.9750885772 | C98: 0.9750885772 | D98: 0.9750885772 | E98: 2.447868094e-17 | F98: 225.187061 | G98: 225.187061 | H98: 225.187061 | I98: -2.298367414 | J98: -122.2983674 | K98: 117.7016326 | L98: 2.447868094e-17 | M98: 0.9750885772 | N98: 1.140435516e-17 | O98: 168.5109595 | P98: -2.298367414 | Q98: 87.08828131 | S98: 92 | T98: 88.96511249 | U98: 88.96511249 | V98: 88.96511249 | W98: 3.351623381e-14 | X98: -9.66395027 | Y98: -129.6639503 | Z98: 110.3360497 | AA98: 147.9946168 | AB98: 2.290591833e-14 | AC98: 88.96511249 | AD98: 2.067324633e-14 | AE98: -61.82140989 | AF98: -9.66395027 | AG98: -156.7139351
A99: 93 | B99: 0.9737952243 | C99: 0.9737952243 | D99: 0.9737952243 | E99: 2.575610811e-17 | F99: 224.888374 | G99: 224.888374 | H99: 224.888374 | I99: -2.334638216 | J99: -122.3346382 | K99: 117.6653618 | L99: 2.575610811e-17 | M99: 0.9737952243 | N99: 1.169115817e-17 | O99: 167.8365442 | P99: -2.334638216 | Q99: 86.24886569 | S99: 93 | T99: 80.06754286 | U99: 80.06754286 | V99: 80.06754286 | W99: 4.549693413e-14 | X99: -9.660128874 | Y99: -129.6601289 | Z99: 110.3398711 | AA99: 128.6598083 | AB99: 2.070012895e-14 | AC99: 80.06754286 | AD99: 1.893898606e-14 | AE99: -61.94708129 | AF99: -9.660128874 | AG99: -156.037511
A100: 94 | B100: 0.9726315937 | C100: 0.9726315937 | D100: 0.9726315937 | E100: 2.691276468e-17 | F100: 224.619645 | G100: 224.619645 | H100: 224.619645 | I100: -2.36736854 | J100: -122.3673685 | K100: 117.6326315 | L100: 2.691276468e-17 | M100: 0.9726315937 | N100: 1.195775131e-17 | O100: 167.2768037 | P100: -2.36736854 | Q100: 85.53044099 | S100: 94 | T100: 71.17032358 | U100: 71.17032358 | V100: 71.17032358 | W100: 2.711491036e-14 | X100: -9.656721805 | Y100: -129.6567218 | Z100: 110.3432782 | AA100: 121.6075022 | AB100: 1.806459437e-14 | AC100: 71.17032358 | AD100: 1.764554035e-14 | AE100: -64.79887635 | AF100: -9.656721805 | AG100: -155.8790169
A101: 95 | B101: 0.9715975639 | C101: 0.9715975639 | D101: 0.9715975639 | E101: 2.791235443e-17 | F101: 224.380846 | G101: 224.380846 | H101: 224.380846 | I101: -2.396531256 | J101: -122.3965313 | K101: 117.6034687 | L101: 2.791235443e-17 | M101: 0.9715975639 | N101: 1.220812682e-17 | O101: 166.7234248 | P101: -2.396531256 | Q101: 84.89266818 | S101: 95 | T101: 62.27340679 | U101: 62.27340679 | V101: 62.27340679 | W101: 2.139016889e-14 | X101: -9.653725076 | Y101: -129.6537251 | Z101: 110.3462749 | AA101: 131.6335393 | AB101: 1.55782418e-14 | AC101: 62.27340679 | AD101: 1.50879064e-14 | AE101: -67.78816931 | AF101: -9.653725076 | AG101: -157.5205656
A102: 96 | B102: 0.9706930265 | C102: 0.9706930265 | D102: 0.9706930265 | E102: 2.87638391e-17 | F102: 224.1719521 | G102: 224.1719521 | H102: 224.1719521 | I102: -2.422102128 | J102: -122.4221021 | K102: 117.5778979 | L102: 2.87638391e-17 | M102: 0.9706930265 | N102: 1.242007558e-17 | O102: 166.1878721 | P102: -2.422102128 | Q102: 84.33947926 | S102: 96 | T102: 53.37674774 | U102: 53.37674774 | V102: 53.37674774 | W102: 2.079172374e-14 | X102: -9.651135146 | Y102: -129.6511351 | Z102: 110.3488649 | AA102: 109.9831065 | AB102: 1.294433873e-14 | AC102: 53.37674774 | AD102: 1.31678196e-14 | AE102: -68.19859051 | AF102: -9.651135146 | AG102: -158.5870305
A103: 97 | B103: 0.9699178863 | C103: 0.9699178863 | D103: 0.9699178863 | E103: 2.947163553e-17 | F103: 223.9929411 | G103: 223.9929411 | H103: 223.9929411 | I103: -2.444059857 | J103: -122.4440599 | K103: 117.5559401 | L103: 2.947163553e-17 | M103: 0.9699178863 | N103: 1.26040499e-17 | O103: 165.7565586 | P103: -2.444059857 | Q103: 83.8562448 | S103: 97 | T103: 44.48030447 | U103: 44.48030447 | V103: 44.48030447 | W103: 7.105427358e-15 | X103: -9.648948931 | Y103: -129.6489489 | Z103: 110.3510511 | AA103: 180 | AB103: 1.129548777e-14 | AC103: 44.48030447 | AD103: 1.125385059e-14 | AE103: -69.44395478 | AF103: -9.648948931 | AG103: -160.0168935
A104: 98 | B104: 0.9692720616 | C104: 0.9692720616 | D104: 0.9692720616 | E104: 3.008641177e-17 | F104: 223.8437943 | G104: 223.8437943 | H104: 223.8437943 | I104: -2.462386115 | J104: -122.4623861 | K104: 117.5376139 | L104: 3.008641177e-17 | M104: 0.9692720616 | N104: 1.275971977e-17 | O104: 165.3712231 | P104: -2.462386115 | Q104: 83.43670879 | S104: 98 | T104: 35.58403738 | U104: 35.58403738 | V104: 35.58403738 | W104: 1.776356839e-14 | X104: -9.647163808 | Y104: -129.6471638 | Z104: 110.3528362 | AA104: 90 | AB104: 9.509069928e-15 | AC104: 35.58403738 | AD104: 9.121412917e-15 | AE104: -73.85566122 | AF104: -9.647163808 | AG104: -161.5650512
A105: 99 | B105: 0.968755484 | C105: 0.968755484 | D105: 0.968755484 | E105: 3.059084495e-17 | F105: 223.7244958 | G105: 223.7244958 | H105: 223.7244958 | I105: -2.47706558 | J105: -122.4770656 | K105: 117.5229344 | L105: 3.059084495e-17 | M105: 0.968755484 | N105: 1.288433653e-17 | O105: 164.9849774 | P105: -2.47706558 | Q105: 83.08899641 | S105: 99 | T105: 26.68790887 | U105: 26.68790887 | V105: 26.68790887 | W105: 1.208053258e-14 | X105: -9.645777623 | Y105: -129.6457776 | Z105: 110.3542224 | AA105: 72.89727103 | AB105: 7.353918196e-15 | AC105: 26.68790887 | AD105: 6.883158914e-15 | AE105: -78.69006753 | AF105: -9.645777623 | AG105: -167.9052429
A106: 100 | B106: 0.9683680989 | C106: 0.9683680989 | D106: 0.9683680989 | E106: 3.096745072e-17 | F106: 223.635033 | G106: 223.635033 | H106: 223.635033 | I106: -2.488085961 | J106: -122.488086 | K106: 117.511914 | L106: 3.096745072e-17 | M106: 0.9683680989 | N106: 1.29717032e-17 | O106: 164.634891 | P106: -2.488085961 | Q106: 82.78651837 | S106: 100 | T106: 17.7918829 | U106: 17.7918829 | V106: 17.7918829 | W106: 9.325873407e-15 | X106: -9.644788694 | Y106: -129.6447887 | Z106: 110.3552113 | AA106: 90 | AB106: 5.423001959e-15 | AC106: 17.7918829 | AD106: 4.432209994e-15 | AE106: -77.19573393 | AF106: -9.644788694 | AG106: -167.4711923
A107: 101 | B107: 0.968109865 | C107: 0.968109865 | D107: 0.968109865 | E107: 3.124936486e-17 | F107: 223.5753965 | G107: 223.5753965 | H107: 223.5753965 | I107: -2.495438022 | J107: -122.495438 | K107: 117.504562 | L107: 3.124936486e-17 | M107: 0.968109865 | N107: 1.30284784e-17 | O107: 164.395553 | P107: -2.495438022 | Q107: 82.59578546 | S107: 101 | T107: 8.895924624 | U107: 8.895924624 | V107: 8.895924624 | W107: 3.774758284e-15 | X107: -9.644195819 | Y107: -129.6441958 | Z107: 110.3558042 | AA107: 90 | AB107: 2.546678049e-15 | AC107: 8.895924624 | AD107: 1.749922459e-15 | AE107: -70.70995378 | AF107: -9.644195819 | AG107: -164.0546041
A108: 102 | B108: 0.9679807549 | C108: 0.9679807549 | D108: 0.9679807549 | E108: 3.138792704e-17 | F108: 223.5455798 | G108: 223.5455798 | H108: 223.5455798 | I108: -2.499115595 | J108: -122.4991156 | K108: 117.5008844 | L108: 3.138792704e-17 | M108: 0.9679807549 | N108: 1.30519083e-17 | O108: 164.3126976 | P108: -2.499115595 | Q108: 82.52694806

Sheet Templates (hidden)
D6: Low voltage knots | E6: Feeder length | F6: Lines(Typ, Number parallel lines)
D7: 20 | E7: 500 | F7: N(A)YY 4x150 | H7: 1
B8: Charging power of EV | D8: 3.7 | E8: 11 | F8: 22 | G8: Number households | H8: Peak Power [kVA] | I8: Concurrency
B9: Number EV | D9: 3 | E9: 2 | F9: 1 | G9: 10 | H9: 30 | I9: =Concurrency!$D$9+(1-Concurrency!$D$9)*POWER(G9,-3/4) -> 0.2312691248
B10: Concurrency | D10: =IF(D9>Concurrency!$J$8+1,Concurrency!$H$8+(1-Concurrency!$H$8)/(D9-Concurrency!$J$8)^Concurrency!$I$8,1) -> 1 | E10: =IF(E9>Concurrency!$J$12+1,Concurrency!$H$12+(1-Concurrency!$H$12)/(E9-Concurrency!$J$12)^Concurrency!$I$12,1) -> 1 | F10: =IF(F9>Concurrency!$J$16+1,Concurrency!$H$16+(1-Concurrency!$H$16)/(F9-Concurrency!$J$16)^Concurrency!$I$16,1) -> 1 | G10: Power per household | H10: =I9*H9 -> 6.938073745
B11: Power
B12: Households | D12: E-Mobility | F12: PV | H12: Additional
B13: S | C13: cos(ϕ) | D13: S | E13: cos(ϕ) | F13: S | G13: cos(ϕ) | H13: S | I13: cos(ϕ)
B14: =G9*H10 -> 69.38073745 | C14: 0.95 | D14: =D9*D10*D8+E8*E9*E10+F8*F9*F10 -> 55.1 | E14: 1 | F14: 0 | G14: 0.95 | H14: 0 | I14: 0.95
D15: Max ΔU | F15: Current
B18: Knoten | G18: Lines
B19: Nr. | C19: S | D19: cos(ϕ) | E19: Max ΔU | F19: Unbalanced | G19: Max Current | H19: Length | I19: Linetype
F20: =IF(AND(C23=E23,D23=F23,G23=E23,H23=F23,C24=E24,D24=F24,G24=E24,H24=F24,C25=E25,D25=F25,G25=E25,H25=F25,C26=E26,D26=F26,G26=E26,H26=F26),"No","Yes") -> Yes | I20: =F7 -> N(A)YY 4x150
F26: =IF(AND(C29=E29,D29=F29,G29=E29,H29=F29,C30=E30,D30=F30,G30=E30,H30=F30,C31=E31,D31=F31,G31=E31,H31=F31,C32=E32,D32=F32,G32=E32,H32=F32),"No","Yes") -> No | I26: N(A)YY CU 4x300
C28: L1 | E28: L2 | G28: L3 | I28: N
C29: S | D29: cos(ϕ) | E29: S | F29: cos(ϕ) | G29: S | H29: cos(ϕ)
B30: Households
B31: E-Mobility
B32: PV
B33: Additional
B34: Sum
B35: ΔU
B36: I

Sheet Concurrency (hidden)
A1: Concurrency factors
A3: Households | H3: Electric vehicle
A4: Source: Wolfgang Kaufmann, Planung öffentlicher Elektrizitätsverteilungs-Systeme, Tabelle 2.1 | H4: Source: Johannes Rolink, Modellierung und Systemintegration von Elektrofahrzeugen aus Sicht der elektrischen Energieversorgung, Tabelle 4.1
A6: EG | B6: PeakPower | C6: PeakPower/Appartment | D6: gunlimited | H6: 3,7 kW
A7: 1 | B7: 5 | C7: 0.8 | D7: 0.175 | H7: g_infinite | I7: q | J7: Delta nEV
A8: 2 | B8: 8 | C8: 1.1 | D8: 0.135 | H8: 0.056 | I8: 0.2793 | J8: 2
A9: 3 | B9: 30 | C9: 1.9 | D9: 0.065
A10: 4 | B10: 16 | C10: 11 | D10: 0.7 | H10: 11 kW
H11: g_infinite | I11: q | J11: Delta nEV
H12: 0.0585 | I12: 0.4953 | J12: 1
H14: 22 kW
H15: g_infinite | I15: q | J15: Delta nEV
H16: 0.032 | I16: 0.5875 | J16: 0
